Workbook

Sheet Letter (hidden)
A1: clean
A2: Important!!
A3: If you accidentally stumbled into this page do not change any information on this page.
A5: Contact Name
A6: Company Name
A7: Address
A8: =B8&", "&C8&" "&D8 -> ,
A9: Salutation
A10: Rep Name
A11: Contact Phone
C12: // SAP Customer Number
C13: // Cust group 3
A14: Date | C14: Date
A24: Please do not change cell A25.
A25: 2020-09-17 | B25: Quote Date
A36: Equipment Type | B36: Scrubber
A37: Country | B37: USA

Sheet CRM Mapping (hidden)

Sheet Log (hidden)
A1: Date | B1: UpdatedBy | C1: Description
A2: 2019-08-23 | B2: Pao Leepalao | C2: show user ID instead of full name on approve box
A3: 2019-08-23 | B3: Pao Leepalao | C3: date stamp when it's approved (yellow and red)
A4: 2019-08-23 | B4: Pao Leepalao | C4: revision date on all machine tabs
A5: 2019-08-23 | B5: Pao Leepalao | C5: change log (date, name, what changed) - hide tab
A6: 2019-08-23 | B6: Pao Leepalao | C6: fix T6 quick ship hide/show blank qty issue
A7: 2019-08-23 | B7: Jeannie Smallish | C7: T300/SS300: removed drain hose/cap
A8: 2019-08-23 | B8: Jeannie Smallish | C8: T20/M20/M30/S30/800/T16 quick ship: update built-in values
A9: 2019-08-23 | B9: Jeannie Smallish | C9: T16: update preconfigured machines
A10: 2019-08-23 | B10: Jeannie Smallish | C10: T20/S30: prices correction
A11: 2019-08-23 | B11: Pao Leepalao | C11: Update freight rates
A12: 2019-09-16 | B12: Jeannie Smallish | C12: corrected column issue on Extractors
A13: 2019-09-16 | B13: Jeannie Smallish | C13: Add new machine S10_Quick_Ship
A14: 2019-09-16 | B14: Pao Leepalao | C14: Discount/Service rates for S10_Quick_Ship
A15: 2019-09-16 | B15: Pao Leepalao | C15: Update leasing contact for Tennant
A16: 2019-10-02 | B16: Pao Leepalao | C16: Update finance rates - US Bank
A17: 2019-10-02 | B17: Pao Leepalao | C17: Add governance approval process
A18: 2019-10-21 | B18: Jeannie/Pao | C18: T12_Quick_Ship
A19: 2019-10-21 | B19: Jeannie/Pao | C19: T20_Quick_Ship
A20: 2019-10-21 | B20: Jeannie/Pao | C20: M20_Quick_Ship
A21: 2019-11-04 | B21: Jeannie/Pao | C21: VC Changes for T17, M17, T600, T600e, T12, and T16
A22: 2019-11-04 | B22: Jeannie/Pao | C22: Price update for T600
A23: 2019-11-08 | B23: Pao Leepalao | C23: Fix GT formatting issue
A24: 2019-11-22 | B24: Jeannie/Pao | C24: T17_Quick_Ship
A25: 2019-11-22 | B25: Jeannie/Pao | C25: M17_Quick_Ship
A26: 2019-12-04 | B26: Pao/Jeannie | C26: New 2020 price increase
A27: 2019-12-04 | B27: Pao Leepalao | C27: Only positive allow in custom solution
A28: 2020-01-03 | B28: Pao/Jeannie | C28: T300_Quick_Ship
A29: 2020-01-03 | B29: Pao/Jeannie | C29: T300e_Quick_Ship
A30: 2020-01-03 | B30: Pao/Jeannie | C30: T500_Quick_Ship
A31: 2020-01-03 | B31: Pao/Jeannie | C31: T500e_Quick_Ship
A32: 2020-01-03 | B32: Pao Leepalao | C32: US Bank 2020 rates
A33: 2020-04-01 | B33: Pao Leepalao | C33: Q2 US Bank rates
A34: 2020-04-01 | B34: Pao Leepalao | C34: new service contract and rate for AMR

Sheet Start_Here
A1: Distributor | C1: Please fill out as much buyer information as you can. Overkey addresses and contacts for proper display on the machine sheets. | O1: Alabama | P1: Discount | Q1: ALL OTHER COUNTIES
O2: Arkansas | P2: =TTDiscountLow -> 0 | Q2: BARBOUR
A3: Buyer Info | O3: Arizona | P3: =TTDiscountHigh -> 5 | Q3: COVINGTON
B4: CRM Address Information | F4: Who is Buying the Machine? (Bill-To for Machine Aquisition Info) (Please Verify) | I4: Select One | O4: British Columbia | Q4: DALE
B5: Company | C5: =Letter!$A$6 -> Company Name | F5: Company | H5: Company Name | O5: Canada | Q5: ESCAMBIA
B6: Address | C6: =Address -> Address | F6: Address | H6: Address | O6: California | Q6: GENEVA
B7: City, State Zip | C7: =CityStateZip -> , | F7: City, State Zip | H7: City, State Zip | O7: Colorado | Q7: HENRY
B8: Name | C8: =ContactName -> Contact Name | F8: Name | H8: Contact Name | O8: Connecticut | Q8: HOUSTON
B9: Phone | C9: =Letter!$A$11 -> Contact Phone | F9: Phone | H9: Contact Phone | O9: District of Columbia | Q9: LEE
O10: Delaware | Q10: RUSSELL
B11: Where is the Machine Being Shipped? (Ship-To Info) (Please Verify) | D11: Select One | F11: Where is the Machine Being Used? (Machine Use Location - Specific) (Please Verify) | I11: Select One | O11: Florida
B12: Company | C12: Company Name | F12: Company | H12: Company Name | O12: Georgia
B13: Address | C13: Address | F13: Address | H13: Address | O13: Hawaii
B14: City, State Zip | C14: City, State Zip | F14: City, State Zip | H14: City, State Zip | O14: Iowa
B15: Name | C15: Contact Name | F15: Name | H15: Contact Name | O15: Idaho
B16: Phone | C16: Contact Phone | F16: Phone | H16: Contact Phone | O16: Illinois
O17: Indiana
B18: Who Owns the Machine? (Sold-To Info) (Please Verify) | D18: Select One | F18: Who Pays for Service on the Machine? (Service Bill-To Info) (Please Verify) | I18: Select One | O18: Kansas
B19: Company | C19: Company Name | F19: Company | H19: Company Name | O19: Kentucky
B20: Address | C20: Address | F20: Address | H20: Address | O20: Louisiana
B21: City, State Zip | C21: City, State Zip | F21: City, State Zip | H21: City, State Zip | O21: Massachusetts
B22: Name | C22: Contact Name | F22: Name | H22: Contact Name | O22: Maryland
B23: Phone | C23: Contact Phone | F23: Phone | H23: Contact Phone | O23: Maine
O24: Michigan
B25: Customer Number | C25: =Letter!$A$12 -> 0 | F25: Finance Partner | H25: TennantTrue Details | O25: Minnesota
B26: Authorized Buyer's Name | F26: First Western Equipment Finance | H26: State | O26: Missouri
B27: Buyer's Phone # | O27: Mississippi
B28: Requested Delivery Date | F28: Select Market | H28: County | O28: Montana
B29: Cust Grp 3 | C29: =Letter!$A$13 -> 0 | F29: Internal use only | O29: North Carolina
H30: National Account | O30: North Dakota
B31: Shipping / Carrier Instructions: | F31: Quote Service | O31: Nebraska
F32: Yes | H32: TennantTrue Discount (%) | O32: New Hampshire
O33: New Jersey
O34: New Mexico
B35: Seller Info | O35: Nevada
B36: Letter/Quote | E36: Terms and Conditions | O36: New York
B37: Company | C37: Tennant Sales and Service Company | E37: Ask your local sales rep for estimated lead times. Verify when placing order | O37: Ohio
B38: Address | C38: 10400 Clean Street | E38: All orders subject to acceptance by Tennant Sales and Service Company, Minneapolis, Minnesota | O38: Oklahoma
C39: Eden Prairie, MN 55344 | E39: Prices subject to change without notice. | O39: Ontario
E40: Terms: Net 30 days. Subject to any applicable taxes. | O40: Oregon
B41: Name | C41: =RepName -> Rep Name | E41: Freight: Machines and accessory orders delivered FOB shipping point Frt PPD & Add | O41: Pennsylvania
E42: Parts, supplies, detergents and floor treating material orders delivered FOB | O42: Prince Edward Isle
B43: Phone | C43: 800-553-8033 | E43: shipping point Frt PPD | O43: Rhode Island
B44: Fax | C44: 763-513-2116 | E44: All orders are subject to Tennant’s General Terms and Conditions available at http://www.tennantco.com/terms. | O44: Quebec
E45: Printed General Terms and Conditions are also available upon request. | O45: South Carolina
O46: South Dakota
B47: Footer | O47: Tennessee
B48: Line 1 | C48: TENNANT · 10400 Clean Street · Eden Prairie, MN 55344 · | O48: Texas
B49: Line 2 | C49: PHONE:800-553-8033 · FAX:763-513-2116 | O49: Utah
O50: Virginia
O51: Vermont
O52: Washington
O53: West Virginia
O54: Wisconsin
O55: Wyoming
C61: Battery Surcharge | D61: Price
C62: 36 Volt Machines | D62: 0 | O62: Wisconsin
C63: 24 Volt Machines | D63: 0 | O63: West Virginia
C64: Small 24 Volt Machines | D64: 0 | O64: Wyoming

Sheet Cover_Letter
A1: =Letter!$A$25 -> 2020-09-17
A4: =Start_Here!C37 -> Tennant Sales and Service Company
A5: =Start_Here!C38 -> 10400 Clean Street
A6: =Start_Here!C39 -> Eden Prairie, MN 55344
A7: =Start_Here!C40 -> 0
A9: =Start_Here!$C$22 -> Contact Name
A10: =Start_Here!$C$19 -> Company Name
A11: =Start_Here!$C$20 -> Address
A12: =Start_Here!$C$21 -> City, State Zip
A15: =Salutation -> Salutation
A17: Thank you for your interest in TENNANT maintenance equipment. We are pleased to send you the attached quotation and literature on the products you are considering.
A19: A variety of lease and finance programs are available that will allow you to maximize the cost savings and productivity advantages that Tennant provides.
A21: I will be in contact with you, but in the meantime, feel free to call my sales office listed below, should you need to--your questions are invited and your orders will be given prompt attention.
A23: Yours Truly,
A27: =Start_Here!$C$41 -> Rep Name
A28: =Start_Here!C37 -> Tennant Sales and Service Company
A29: =Start_Here!C38 -> 10400 Clean Street
A30: =Start_Here!C39 -> Eden Prairie, MN 55344
A31: =Start_Here!$C$43 -> 800-553-8033
A33: attachment
A36: =Start_Here!C48 -> TENNANT · 10400 Clean Street · Eden Prairie, MN 55344 ·
A37: =Start_Here!C49 -> PHONE:800-553-8033 · FAX:763-513-2116

Sheet TennantTrue Summary_ (hidden)
O8: Choose the best plan for you
B9: Prepared for: | K9: Prepared On:
B10: =Start_Here!$C$22 -> Contact Name | K10: =Letter!$A$25 -> 2020-09-17
B11: =Start_Here!$C$19 -> Company Name
B12: =Start_Here!$C$20 -> Address
B13: =Start_Here!$C$21 -> City, State Zip
C16: Machine 1 | E16: Term | I16: Service Hours
C18: Used Machine? | E18: Gold | F18: Silver | G18: Pay As You Go | H18: Block of Time - Weekly | I18: Block of Time - Bi-Weekly | K18: On Demand
C19: Monthly Rate
C20: Annually
C21: Pre Pay 12 mo
C22: Per Visit
C23: Hourly Labor Rate | E23: See Below
C24: Site Visit Charge
C28: Machine 2 | E28: Term | I28: Service Hours
C30: Used Machine? | E30: Gold | F30: Silver | G30: Pay As You Go | H30: Block of Time - Weekly | I30: Block of Time - Bi-Weekly | K30: On Demand
C31: Monthly Rate
C32: Annually
C33: Pre Pay 36 mo
C34: Per Visit
C35: Hourly Labor Rate | E35: See Below
C36: Site Visit Charge
C40: Machine 3 | E40: Term | I40: Service Hours
C42: Used Machine? | E42: Gold | F42: Silver | G42: Pay As You Go | H42: Block of Time - Weekly | I42: Block of Time - Bi-Weekly | K42: On Demand
C43: Monthly Rate
C44: Annually
C45: Pre Pay 36 mo
C46: Per Visit
C47: Hourly Labor Rate | E47: See Below
C48: Site Visit Charge
B50: **All rates and fees above reflect service for one (1) unit with the exception of Block of Time service.
B52: ** Breakdown service calls for Silver customers include a Site Visit Charge and will be billed at the current "Pay As You Go" Hourly Labor Rate. Parts will be billed at list price.
B57: Tennant Company Sales Representative: | G57: =Start_Here!$C$41 -> Rep Name
B59: Customer
B60: Accepted By*:
B61: Print Name:
B62: Title:
B63: Date:
C64: *Acceptance is contingent upon customer review and approval of the Master Usage Agreement and the Usage Schedule / Equipment Schedule.
C66: **This quote is good for 60 days from the above date.

Sheet Sheet1 (hidden)
A1: Customer Information ("Customer")
A2: Sold-To | C2: =Start_Here!$C$19 -> Company Name | G2: =Start_Here!$C$20 -> Address
C3: Full Legal Name | G3: Street Address
C4: =Start_Here!$C$21 -> City, State Zip | G4: =Start_Here!$C$23 -> Contact Phone
C5: City, State Zip | G5: Phone
C6: =Start_Here!$C$22 -> Contact Name
C7: Contact Name | G7: Email
A9: Bill-To | C9: =Start_Here!$H$19 -> Company Name | G9: =Start_Here!$H$20 -> Address
C10: Billing Name (If Different from Sold-To) | G10: Billing Address (If Different from Sold-To)
C11: =Start_Here!$H$21 -> City, State Zip | G11: =Start_Here!$H$23 -> Contact Phone
C12: City, State Zip | G12: Billing Phone
C14: =Start_Here!$H$13 & " " &Start_Here!$H$14 -> Address City, State Zip
C15: Equipment Location; Where is the Machine Being Used (If Different from Sold-To)

Sheet AMR Autonomy Parts (hidden)
A1: product | B1: Term | C1: Part Number | D1: Price | F1: based | G1: difference | I1: Discount %
A2: T7AMR | B2: 1 Year | C2: T7AMRRENEW1 | D2: 6000 | I2: 1
A3: T7AMR | B3: 2 Years | C3: T7AMRRENEW2 | D3: 12000 | I3: 2
A4: T7AMR | B4: 3 Years | C4: T7AMRRENEW3 | D4: 18000 | I4: 3
A5: T7AMR | B5: 4 Years | C5: T7AMRRENEW4 | D5: 24000 | I5: 4
A6: T7AMR | B6: 5 Years | C6: T7AMRRENEW5 | D6: 30000 | I6: 5
A7: T7AMR | B7: Monthly | C7: T7AMRMONTH | D7: 500 | I7: 6
A8: T380AMR | B8: 1 Year | C8: T380AMRRENEW1 | D8: 4800 | I8: 7
A9: T380AMR | B9: 2 Years | C9: T380AMRRENEW2 | D9: 9600 | I9: 8
A10: T380AMR | B10: 3 Years | C10: T380AMRRENEW3 | D10: 14400 | I10: 9
A11: T380AMR | B11: 4 Years | C11: T380AMRRENEW4 | D11: 19200 | I11: 10
A12: T380AMR | B12: 5 Years | C12: T380AMRRENEW5 | D12: 24000 | I12: 11
A13: T380AMR | B13: Monthly | C13: T380AMRMONTH | D13: 400 | I13: 12
A14: T16AMR | B14: 1 Year | C14: T16AMRRENEW1 | D14: 8640 | I14: 13
A15: T16AMR | B15: 2 Years | C15: T16AMRRENEW2 | D15: 17280 | I15: 14
A16: T16AMR | B16: 3 Years | C16: T16AMRRENEW3 | D16: 25920 | I16: 15
A17: T16AMR | B17: 4 Years | C17: T16AMRRENEW4 | D17: 34560 | I17: 16
A18: T16AMR | B18: 5 Years | C18: T16AMRRENEW5 | D18: 43200 | I18: 17
A19: T16AMR | B19: Monthly | C19: T16AMRMONTH | D19: 720 | I19: 18
A20: M_X4ROVR | B20: A | C20: X4ROVR5 1-4 | D20: 15500 | E20: 5YR AUTONOMY SERVICES (Qty1-4) | F20: 15500 | G20: 0 | I20: 19
A21: M_X4ROVR | B21: B | C21: X4ROVR5 5-49 | D21: 14500 | E21: 5YR AUTONOMY SERVICES (Qty5-49) | F21: 15500 | G21: =SUM(D$20-D21) -> 1000 | I21: 20
A22: M_X4ROVR | B22: B | C22: X4ROVR5 50-299 | D22: 11500 | E22: 5YR AUTONOMY SERVICES (Qty50-299) | F22: 15500 | G22: =SUM(D$20-D22) -> 4000 | I22: 21
A23: M_X4ROVR | B23: C | C23: X4ROVR5 300 | D23: 8500 | E23: 5YR AUTONOMY SERVICES (Qty300+) | F23: 15500 | G23: 7000 | I23: 22
A24: T16AMR | B24: A | C24: T16AMR3 1-4 | D24: 25920 | E24: 3YR AUTONOMY SERVICES (Qty1-4) | F24: 25920 | G24: 0 | I24: 23
A25: T16AMR | B25: B | C25: T16AMR3 5-9 | D25: 25531 | E25: 3YR AUTONOMY SERVICES (Qty5-9) | F25: 25920 | G25: =SUM(D$24-D25) -> 389 | I25: 24
A26: T16AMR | B26: B | C26: T16AMR3 10-19 | D26: 24494 | E26: 3YR AUTONOMY SERVICES (Qty10-19) | F26: 25920 | G26: =SUM(D$24-D26) -> 1426 | I26: 25
A27: T16AMR | B27: C | C27: T16AMR3 20 | D27: 23717 | E27: 3YR AUTONOMY SERVICES (Qty20+) | F27: 25920 | G27: 2203 | I27: 26
A28: T16AMR | B28: A | C28: T16AMR5 1-4 | D28: 43200 | E28: 5YR AUTONOMY SERVICES (Qty1-4) | F28: 43200 | G28: 0 | I28: 27
A29: T16AMR | B29: B | C29: T16AMR5 5-9 | D29: 41904 | E29: 5YR AUTONOMY SERVICES (Qty5-9) | F29: 43200 | G29: =SUM(D$28-D29) -> 1296 | I29: 28
A30: T16AMR | B30: B | C30: T16AMR5 10-19 | D30: 38448 | E30: 5YR AUTONOMY SERVICES (Qty10-19) | F30: 43200 | G30: =SUM(D$28-D30) -> 4752 | I30: 29
A31: T16AMR | B31: C | C31: T16AMR5 20 | D31: 35856 | E31: 5YR AUTONOMY SERVICES (Qty20+) | F31: 43200 | G31: 7344 | I31: 30
A32: T7AMR | B32: A | C32: T7AMR(3) | D32: 18000 | E32: 3YR AUTONOMY SERVICES | F32: 18000 | G32: 0 | I32: 31
A33: T7AMR | B33: A | C33: T7AMR(5) | D33: 30000 | E33: 5YR AUTONOMY SERVICES | F33: 30000 | G33: 0 | I33: 32
A34: T7AMR | B34: A | C34: T7AMREDU5 1-4 | D34: 30000 | E34: 5YR AUTONOMY SERVICES ED&H(Qty1-4) | F34: 30000 | G34: 0 | I34: 33
A35: T7AMR | B35: B | C35: T7AMREDU5 5-9 | D35: 29100 | E35: 5YR AUTONOMY SERVICES ED&H(Qty5-9) | F35: 30000 | G35: =SUM(D$34-D35) -> 900 | I35: 34
A36: T7AMR | B36: B | C36: T7AMREDU5 10-19 | D36: 26700 | E36: 5YR AUTONOMY SERVICES ED&H(Qty10-19) | F36: 30000 | G36: =SUM(D$34-D36) -> 3300 | I36: 35
A37: T7AMR | B37: C | C37: T7AMREDU5 20 | D37: 24900 | E37: 5YR AUTONOMY SERVICES ED&H(Qty20+) | F37: 30000 | G37: 5100 | I37: 36
A38: T7AMR | B38: A | C38: T7AMRBR5 1-9 | D38: 30000 | E38: 5YR AUTONOMY SERVICES B&R(Qty1-9) | F38: 30000 | G38: 0 | I38: 37
A39: T7AMR | B39: B | C39: T7AMRBR5 10-49 | D39: 29100 | E39: 5YR AUTONOMY SERVICES B&R(Qty10-49) | F39: 30000 | G39: =SUM(D$38-D39) -> 900 | I39: 38
A40: T7AMR | B40: B | C40: T7AMRBR5 50-99 | D40: 26700 | E40: 5YR AUTONOMY SERVICES B&R(Qty50-99) | F40: 30000 | G40: =SUM(D$38-D40) -> 3300 | I40: 39
A41: T7AMR | B41: C | C41: T7AMRBR5 100 | D41: 24900 | E41: 5YR AUTONOMY SERVICES B&R(Qty100+) | F41: 30000 | G41: 5100 | I41: 40
A42: T380AMR | B42: A | C42: T380AMR(3) | D42: 14400 | E42: 3YR AUTONOMY SERVICES | F42: 14400 | G42: 0 | I42: 41
A43: T380AMR | B43: A | C43: T380AMR(5) | D43: 24000 | E43: 5YR AUTONOMY SERVICES | F43: 24000 | G43: 0 | I43: 42
A44: T380AMR | B44: A | C44: T380AMREDU5 1-4 | D44: 24000 | E44: 5YR AUTONOMY SERVICES ED&H(Qty1-4) | F44: 24000 | G44: 0 | I44: 43
A45: T380AMR | B45: B | C45: T380AMREDU5 5-9 | D45: 23280 | E45: 5YR AUTONOMY SERVICES ED&H(Qty5-9) | F45: 24000 | G45: =SUM(D$44-D45) -> 720 | I45: 44
A46: T380AMR | B46: B | C46: T380AMREDU5 10-19 | D46: 21360 | E46: 5YR AUTONOMY SERVICES ED&H(Qty10-19) | F46: 24000 | G46: =SUM(D$44-D46) -> 2640 | I46: 45
A47: T380AMR | B47: C | C47: T380AMREDU5 20 | D47: 19920 | E47: 5YR AUTONOMY SERVICES ED&H(Qty20+) | F47: 24000 | G47: =SUM(D$44-D47) -> 4080 | I47: 46
A48: T380AMR | B48: A | C48: T380AMRBR5 1-9 | D48: 24000 | E48: 5YR AUTONOMY SERVICES B&R(Qty1-9) | F48: 24000 | G48: 0 | I48: 47
A49: T380AMR | B49: B | C49: T380AMRBR5 10-49 | D49: 23280 | E49: 5YR AUTONOMY SERVICES B&R(Qty10-49) | F49: 24000 | G49: =SUM(D$48-D49) -> 720 | I49: 48
A50: T380AMR | B50: B | C50: T380AMRBR5 50-99 | D50: 21360 | E50: 5YR AUTONOMY SERVICES B&R(Qty50-99) | F50: 24000 | G50: =SUM(D$48-D50) -> 2640 | I50: 49
A51: T380AMR | B51: C | C51: T380AMRBR5 100 | D51: 19920 | E51: 5YR AUTONOMY SERVICES B&R(Qty100+) | F51: 24000 | G51: =SUM(D$48-D51) -> 4080 | I51: 50
A52: M_X6ROVR | B52: A | C52: X6ROVR(3) | D52: 13680 | E52: 3YR AUTONOMY SERVICES | F52: 13680 | G52: 0
A53: M_X6ROVR | B53: A | C53: X6ROVR5 1-4 | D53: 22800 | E53: 5YR AUTONOMY SERVICES (Qty1-4) | F53: 22800 | G53: 0
A54: M_X6ROVR | B54: B | C54: X6ROVR5 5-9 | D54: 22230 | E54: 5YR AUTONOMY SERVICES (Qty5-9) | F54: 22800 | G54: =SUM(D$53-D54) -> 570
A55: M_X6ROVR | B55: B | C55: X6ROVR5 10-24 | D55: 21660 | E55: 5YR AUTONOMY SERVICES (Qty10-24) | F55: 22800 | G55: =SUM(D$53-D55) -> 1140
A56: M_X6ROVR | B56: B | C56: X6ROVR5 25-74 | D56: 20520 | E56: 5YR AUTONOMY SERVICES (Qty25-74) | F56: 22800 | G56: =SUM(D$53-D56) -> 2280
A57: M_X6ROVR | B57: B | C57: X6ROVR5 75-149 | D57: 19380 | E57: 5YR AUTONOMY SERVICES (Qty 75-149) | F57: 22800 | G57: 3420
A58: M_X6ROVR | B58: B | C58: X6ROVR5 150-299 | D58: 17100 | E58: 5YR AUTONOMY SERVICES (Qty 150-299) | F58: 22800 | G58: =SUM(D$53-D58) -> 5700
A59: M_X6ROVR | B59: C | C59: X6ROVR5 300 | D59: 13680 | E59: 5YR AUTONOMY SERVICES (Qty300+) | F59: 22800 | G59: =SUM(D$53-D59) -> 9120

Sheet Specialty
A1: Specialty | C1: =Start_Here!$C19 -> Company Name
A2: =SUM(G72) -> 0 | C2: =Start_Here!$C20 -> Address
C3: =Start_Here!$C21 -> City, State Zip
C4: =Start_Here!$C22 -> Contact Name
C5: =Start_Here!$C$41 -> Rep Name
C6: =Start_Here!$C$37 -> Tennant Sales and Service Company
C7: =Start_Here!$C$38 -> 10400 Clean Street
C8: =Start_Here!$C$39 -> Eden Prairie, MN 55344
C9: =Start_Here!$C$43 -> 800-553-8033 | E9: Quote Date : | G9: =Letter!$A$25 -> 2020-09-17
C11: =Help!C2 -> US Date Rev - 5/6/2025
C13: EXCLUSIVE FACTORY-DIRECT WARRANTY
C14: BLOWER
C15: 12 MONTHS ON PARTS / LABOR (Blower)
C16: ASC15
C17: 36 MONTHS | E17: Quote Request Information
C18: 36 MONTHS – LABOR | G18: Fax (quote only)
C19: NO TRAVEL | G19: Mail (quote,lit, specs)
G20: Fax + Mail
E22: Primary Use
G23: Inside
G24: Outside
C25: Description | D25: Reference # | E25: US Price | F25: Qty. | G25: Extended Price
C26: Cleaning Type | F26: =SUM(F38) -> 0
H27: =IFERROR(IFERROR(VLOOKUP(D27,Surcharge!A:B,2,FALSE)*F27, VLOOKUP(D27 & "",Surcharge!A:B,2,FALSE)*F27), "") -> 
C28: Q12 Multi-Surface Cleaner | F28: =SUM(F34:F35) -> 0
C29: 15 gal (57 L) capacity, variable 400-1200 psi (27.6 to 83 bar), Hard Surface Turbo Tool option, 25 ft (8 m) vacuum and solution hoses, and two 40 ft (12 m) hospital grade safety yellow electrical cords. | F29: =SUM(F28) -> 0
C30: ETL (US/C) certified to UL & CSA Standards. | F30: =SUM(F29) -> 0
C31: Boxed Dimensions: 28.5 in x 38 in x 55 in (724 mm x 965 mm x 1397 mm) | F31: =SUM(F30) -> 0
C32: Shipping Weight: 205 lb (93 kg) | F32: =SUM(F31) -> 0
C34: Q12, 400-1200psi (27.6 to 83 bar) Multi-Surface Cleaner w/ vacuum and solution hoses. | D34: 1072856 | E34: 11948 | G34: =F34*E34 -> 0 | P34: =VLOOKUP(D34,'MPF SAP Download PreConfigured'!C:E,3,FALSE) -> 11166
C35: Q12, 400-1200 psi (27.6 to 83 bar) Multi-Surface Cleaner w/ hard surface turbo tool, vacuum, and solution hoses. | D35: 9011458 | E35: 14573 | G35: =F35*E35 -> 0 | P35: =VLOOKUP(D35,'MPF SAP Download PreConfigured'!C:E,3,FALSE) -> 13619
F36: =SUM(F35) -> 0
C38: ASC-15 All Surface Cleaner | D38: 9007354 | E38: 6929 | G38: =F38*E38 -> 0 | H38: =IFERROR(IFERROR(VLOOKUP(D38,Surcharge!A:B,2,FALSE)*F38, VLOOKUP(D38 & "",Surcharge!A:B,2,FALSE)*F38), "") ->  | P38: =VLOOKUP(D38,'MPF SAP Download PreConfigured'!C:E,3,FALSE) -> 6475
C39: 15-gal. (57L) solution capacity 19-gal. (72L) recovery capacity. Includes double-bend telescopic aluminum wand, 25-ft. (7.6m) recovery hose, scrub brush, standard 6-ft. (1.8m) to 25-ft. (7.6m) expandable blower hose, 25-ft. (7.6m) high pressure hose with variable pressure gun, floor squeegee tool, hand squeegee tool, blower tool, gulper floor drain tool, fill hose and metering tip packet with 3 different dilution ratio tips. | F39: =SUM(F38) -> 0 | H39: =IFERROR(IFERROR(VLOOKUP(D39,Surcharge!A:B,2,FALSE)*F39, VLOOKUP(D39 & "",Surcharge!A:B,2,FALSE)*F39), "") -> 
C40: Boxed dimensions: 45L x 22.25W x 42H (1143mm x 565mm x 1067mm) | F40: =SUM(F39) -> 0 | H40: =IFERROR(IFERROR(VLOOKUP(D40,Surcharge!A:B,2,FALSE)*F40, VLOOKUP(D40 & "",Surcharge!A:B,2,FALSE)*F40), "") -> 
C41: Shipping Weight: 190 lbs. (86 kg) / Cu. Ft.: 19 (Cu.M. .54) | F41: =SUM(F40) -> 0 | H41: =IFERROR(IFERROR(VLOOKUP(D41,Surcharge!A:B,2,FALSE)*F41, VLOOKUP(D41 & "",Surcharge!A:B,2,FALSE)*F41), "") -> 
H42: =IFERROR(IFERROR(VLOOKUP(D42,Surcharge!A:B,2,FALSE)*F42, VLOOKUP(D42 & "",Surcharge!A:B,2,FALSE)*F42), "") -> 
H43: =IFERROR(IFERROR(VLOOKUP(D43,Surcharge!A:B,2,FALSE)*F43, VLOOKUP(D43 & "",Surcharge!A:B,2,FALSE)*F43), "") -> 
H44: =IFERROR(IFERROR(VLOOKUP(D44,Surcharge!A:B,2,FALSE)*F44, VLOOKUP(D44 & "",Surcharge!A:B,2,FALSE)*F44), "") -> 
C45: Blower - Three-speed Air Mover | D45: 9014819 | E45: 461 | G45: =F45*E45 -> 0 | H45: =IFERROR(IFERROR(VLOOKUP(D45,Surcharge!A:B,2,FALSE)*F45, VLOOKUP(D45 & "",Surcharge!A:B,2,FALSE)*F45), "") ->  | P45: =VLOOKUP(D45,'MPF SAP Download PreConfigured'!C:E,3,FALSE) -> 419
C46: 1/2 Horsepower, Three speeds, Stackable, Rotomolded durability. | F46: =SUM(F45) -> 0 | H46: =IFERROR(IFERROR(VLOOKUP(D46,Surcharge!A:B,2,FALSE)*F46, VLOOKUP(D46 & "",Surcharge!A:B,2,FALSE)*F46), "") -> 
C47: ETL-certified to UL & CSA Standards. | F47: =SUM(F46) -> 0 | H47: =IFERROR(IFERROR(VLOOKUP(D47,Surcharge!A:B,2,FALSE)*F47, VLOOKUP(D47 & "",Surcharge!A:B,2,FALSE)*F47), "") -> 
C48: Boxed dimensions: 20.5L x 17.75W x 22.5H (521mm x 451mmx 572mm) * | F48: =SUM(F47) -> 0 | H48: =IFERROR(IFERROR(VLOOKUP(D48,Surcharge!A:B,2,FALSE)*F48, VLOOKUP(D48 & "",Surcharge!A:B,2,FALSE)*F48), "") -> 
C49: Shipping Weight: 37.3 lbs. | F49: =SUM(F48) -> 0 | H49: =IFERROR(IFERROR(VLOOKUP(D49,Surcharge!A:B,2,FALSE)*F49, VLOOKUP(D49 & "",Surcharge!A:B,2,FALSE)*F49), "") -> 
F50: =SUM(#REF!) -> 
B52: Custom Solution--write in description, qty, price, and PN if applicable | F52: =SUM(F53) -> 0
E53: Insert Prices Here | F53: =SUM(F54:F57) -> 0
D54: Custom | F54: =IF(E54 <> "", 1, 0) -> 0 | G54: =F54*E54 -> 0
D55: Custom | F55: =IF(E55 <> "", 1, 0) -> 0 | G55: =F55*E55 -> 0
D56: Custom | F56: =IF(E56 <> "", 1, 0) -> 0 | G56: =F56*E56 -> 0
D57: Custom | F57: =IF(E57 <> "", 1, 0) -> 0 | G57: =F57*E57 -> 0
E58: =ROUND(SUM(G27:G57), 0) -> 0 | F58: =SUM(E59) -> 0
D59: Machine Subtotal | E59: =ROUND(SUM(G27:G57), 0) -> 0 | F59: =F58 -> 0
B60: Discounts | F60: =SUM(F61) -> 0
F61: =SUM(F62:F65) -> 0
D62: Discount % | F62: =IF(E62 <> "", 1, 0) -> 0 | G62: =IF(F62*(E62*0.01)*E58 < 0, F62*(E62*0.01)*E58, -(F62*(E62*0.01)*E58)) -> 0
D63: Discount $ | F63: =IF(E63 <> "", 1, 0) -> 0 | G63: =IF(F63*E63 < 0, F63*E63, -(F63*E63)) -> 0
D64: Discount $ | F64: =IF(E64 <> "", 1, 0) -> 0 | G64: =IF(F64*E64 < 0, F64*E64, -(F64*E64)) -> 0
D65: Discount $ | F65: =IF(E65 <> "", 1, 0) -> 0 | G65: =IF(F65*E65 < 0, F65*E65, -(F65*E65)) -> 0
D66: Discount Total | E66: =SUM(G62:G65) -> 0 | F66: =SUM(E66) -> 0
F67: =#REF! -> 
F68: =F67 -> 
C69: Prepaid and Add | D69: Freight | F69: =IF(E69 <> "", 1, 0) -> 0 | G69: =F69*E69 -> 0
C70: Subject to all applicable taxes | D70: Tax | F70: =IF(E70 <> "", 1, 0) -> 0 | G70: =F70*E70 -> 0
F71: =SUM(F72) -> 0
D72: MACHINE TOTAL* | F72: =SUM(G72) -> 0 | G72: =SUM(G27:G70) -> 0 | N72: This goes to "My Documents"
B73: Financing | G73: =G72 -> 0
C75: Is customer interested in financing? | D75: No
C77: If not, why?
C80: First Western Equipment Finance - Leasing Calculation Option: | D80: Option 1 | F80: Option 2 | J80: =Financing!A38 -> Rates 2025 - Rev. 5/6/2025
D81: Monthly Payment | E81: Cost Per Day | F81: Monthly Payment | G81: Cost Per Day | J81: =Financing!A39 -> “Blank Payment Amounts Indicate The Financing Option Or Purchase Options Selected Are Not
C82: Purchase Option: | D82: FWEF: $1 Buyout Lease | F82: FWEF: Municipal Lease | J82: =Financing!A40 -> Applicable Or The Machine Total Is Below The Minimum Amount For The Selected Vendor”
C83: 24 Months | D83: 0 | E83: 0 | F83: 0 | G83: 0 | J83: =Financing!A41 -> "Quoted monthly payments are estimates only and are based on a certain level of credit rating.
C84: 30 Months | D84: 0 | E84: 0 | F84: 0 | G84: 0 | J84: =Financing!A42 -> Actual monthly payments may be higher depending on your credit rating."
C85: 36 Months | D85: 0 | E85: 0 | F85: 0 | G85: 0 | J85: =Financing!A43 -> “Financing rates do not include Pre-Paid Service”
C86: 48 Months | D86: 0 | E86: 0 | F86: 0 | G86: 0 | I86: =Financing!A44 -> 0
D88: Benefits of Equipment Financing:
D89: • Spreads out investment over time. | F89: • Keep current with latest technology.
D90: • Preserve capital. | F90: • Service and parts bundling available.
D91: • Low monthly payment. | F91: • Pay for labor savings as you go.
C94: Bundled Offerings | D94: Flexclean – Fair Market Value | F94: Flexclean - $1 Buyout
C95: FlexClean: | D95: 36 Month Term | F95: 36 Month Term | I95: No | J95: AB Brushes
C96: Hours included per Month: | D96: Gold | E96: Silver | F96: Gold | G96: Silver | H96: Check
C97: < 30/mo. (Avg. 1hr./day) | I97: =FlexCleanCalc!$A21 -> “FlexClean monthly rates include payment for both machine and service.”
C98: < 60/mo. (Avg. 2hrs./day)
C99: < 90/mo. (Avg. 3hrs./day)
C100: *This value assumes one service contract regardless of the number of UNITS included in the quote
C103: Bundled Offerings | D103: Flexclean – Fair Market Value | F103: Flexclean - $1 Buyout
C104: FlexClean 2: | D104: 48 Month Term | F104: 48 Month Term
C105: Hours included per Month: | D105: Gold | E105: Silver | F105: Gold | G105: Silver
C106: < 30/mo. (Avg. 1hr./day)
C107: < 60/mo. (Avg. 2hrs./day)
C108: < 90/mo. (Avg. 3hrs./day)
C109: *This value assumes one service contract regardless of the number of UNITS included in the quote
C111: Bundled Offerings | D111: Flexclean – Fair Market Value | F111: Flexclean - $1 Buyout
C112: FlexClean 3: | D112: 60 Month Term | F112: 60 Month Term
C113: Hours included per Month: | D113: Gold | E113: Silver | F113: Gold | G113: Silver
C114: < 30/mo. (Avg. 1hr./day)
C115: < 60/mo. (Avg. 2hrs./day)
C116: < 90/mo. (Avg. 3hrs./day)
C117: *This value assumes one service contract regardless of the number of UNITS included in the quote
B119: TennantTrue
C121: Is customer interested in service program? | D121: Yes | E121: *State/County selection required for TennantTrue service options
C123: If not, why?
C125: Term: | D125: 36 | F125: AB Brushes | G125: No
C126: Monthly machine usage (hrs): | D126: < 30/mo. (Avg. 1hr./day)
C128: TennantTrue: | D128: Gold Contract | F128: Silver Contract
C129: Per Visit
C130: Monthly
C131: Annually
C132: Pre-Pay Full Term
C133: Hourly Labor Rate
C134: Site Visit
C136: * Verify customer current pricing prior to quote.
C137: **All rates and fees above reflect service for one (1) unit with the exception of Block of Time service.
C138: *Block of Time is available in 1 Year Term only and is priced as such no matter the term selection on this template.
B140: Servicing
C142: Is customer interested in a service plan? | D142: No
C144: If not, why?
B147: Quote Special Instructions:
C150: =Start_Here!E36 -> Terms and Conditions
C151: =Start_Here!E37 -> Ask your local sales rep for estimated lead times. Verify when placing order
C152: =Start_Here!E38 -> All orders subject to acceptance by Tennant Sales and Service Company, Minneapolis, Minnesota
C153: =Start_Here!E39 -> Prices subject to change without notice.
C154: =Start_Here!E40 -> Terms: Net 30 days. Subject to any applicable taxes.
C155: =Start_Here!E41 -> Freight: Machines and accessory orders delivered FOB shipping point Frt PPD & Add
C156: =Start_Here!E42 -> Parts, supplies, detergents and floor treating material orders delivered FOB
C157: =Start_Here!E43 -> shipping point Frt PPD
C158: =Start_Here!E44 -> All orders are subject to Tennant’s General Terms and Conditions available at http://www.tennantco.com/terms.
C159: =Start_Here!E45 -> Printed General Terms and Conditions are also available upon request.
C160: =Start_Here!E46 -> 0
E162: Quote Date : | G162: =Letter!$A$25 -> 2020-09-17
A163: Order Placement Information: To place your order, fill in PO# and customer signatures,
A164: call or fax to the numbers listed below. Customer Purchase Order is required.
A165: If information is missing, orders will be entered and held until all information is received.
C166: Customer Number | E166: Cust Grp 3
C167: =Start_Here!$C$25 -> 0 | E167: =Start_Here!$C$29 -> 0
C168: =Start_Here!$B$18 -> Who Owns the Machine? (Sold-To Info) (Please Verify)
A169: Company | C169: =Start_Here!$C$19 -> Company Name
A170: Address | C170: =Start_Here!$C$20 -> Address
C171: =Start_Here!$C$21 -> City, State Zip
A172: Name | C172: =Start_Here!$C$22 -> Contact Name
A173: Phone | C173: =Start_Here!$C$23 -> Contact Phone
C174: =Start_Here!$B$11 -> Where is the Machine Being Shipped? (Ship-To Info) (Please Verify)
A175: Company | C175: =Start_Here!$C$12 -> Company Name
A176: Address | C176: =Start_Here!$C$13 -> Address
C177: =Start_Here!$C$14 -> City, State Zip
A178: Name | C178: =Start_Here!$C$15 -> Contact Name
A179: Phone | C179: =Start_Here!$C$16 -> Contact Phone
C180: =Start_Here!$B$31 -> Shipping / Carrier Instructions: | E180: Order Special Instructions:
C181: =Start_Here!$C$32 -> 0
C183: Customer Purchase Order No.
C184: (please attach copy)
C187: Tax Exempt | E187: Yes
E188: No
C189: If Yes, attach a copy of your exemption certificate.
C191: Requested Delivery Date
C192: =Start_Here!$C$28 -> 0
C194: =Start_Here!$C$26 -> 0 | E194: =Start_Here!$C$27 -> 0
B195: 0 | C195: Authorized Buyer (please print) | E195: Phone Number
B198: 0 | C198: Authorized Buyer Signature
C200: =Start_Here!$C$41 -> Rep Name
C201: Tennant Representative
A203: Specialized Maintenance Equipment
A204: =Start_Here!$C$48 -> TENNANT · 10400 Clean Street · Eden Prairie, MN 55344 ·
A205: =Start_Here!$C$49 -> PHONE:800-553-8033 · FAX:763-513-2116

Sheet CS5_CS16
A1: CS5_CS16 | C1: =Start_Here!$C19 -> Company Name
A2: =SUM(G57) -> 0 | C2: =Start_Here!$C20 -> Address
C3: =Start_Here!$C21 -> City, State Zip
C4: =Start_Here!$C22 -> Contact Name
C5: =Start_Here!$C$41 -> Rep Name
C6: =Start_Here!$C$37 -> Tennant Sales and Service Company
C7: =Start_Here!$C$38 -> 10400 Clean Street
C8: =Start_Here!$C$39 -> Eden Prairie, MN 55344
C9: =Start_Here!$C$43 -> 800-553-8033 | E9: Quote Date : | G9: =Letter!$A$25 -> 2020-09-17
C11: =Help!C2 -> US Date Rev - 5/6/2025
C14: EXCLUSIVE FACTORY-DIRECT WARRANTY -CS5
C15: 1 Year Parts
C16: 1 Year Battery | E16: Quote Request Information
G17: Fax (quote only)
C18: EXCLUSIVE FACTORY-DIRECT WARRANTY -CS16 | G18: Mail (quote,lit, specs)
C19: 12 MONTHS PARTS and LABOR | G19: Fax + Mail
C20: 90 DAYS TRAVEL
C21: 12 MONTHS BATTERY | E21: Primary Use
C22: 12 MONTHS ON Rotationally Molded Components | G22: Inside
G23: Outside
C24: Description | D24: Reference # | E24: Price | F24: Qty. | G24: Extended Price
C26: CS5 Li-ON Battery Micro-scrubber | D26: 1251580 | E26: 2907 | G26: =F26*E26 -> 0 | P26: =VLOOKUP(D26,'MPF SAP Download PreConfigured'!C:E,3,FALSE) -> 3017
C27: 11" cleaning path. Includes 5.5 AH Lithium ion battery, removable, fill and dump nearly anywhere 1.3 gallon (5 liter) solution & recovery tanks, forward and reverse dry system, foldable handle, medium polyproplylene brush, Linatex squeegees, charger with power cord and multi-language operator manual. | F27: =SUM(F26) -> 0
F28: =SUM(F27) -> 0
C29: Boxed Dimensions: 31.5" L x 15.74" W x 18.5" H (800 mm x 400 mm x 470 mm) | F29: =SUM(F28) -> 0
C30: Shipping Weight 48.62 lbs/ 22 kg | F30: =SUM(F29) -> 0
C33: CS16 Sealed AGM Battery Micro-Scrubber | D33: LPTB03328 | E33: 4681 | G33: =F33*E33 -> 0 | P33: =VLOOKUP(D33,'MPF SAP Download PreConfigured'!C:E,3,FALSE) -> 4246
C34: 14" cleaning path. Includes 2 x12V Sealed AGM battery, foldable handle, removeable 3.9 gal (15 L) solution and 4.4 gal (16.5 L) recovery tank. Plus charger w/ power cord, medium bristle polypropylene brush, squeegee, and multi-language operator manual. | F34: =SUM(F33) -> 0
C36: CS16 Li-Ion Battery Micro-Scrubber | D36: LPTB03794 | E36: 4674 | G36: =F36*E36 -> 0
C37: 14" cleaning path. Includes 1 x 24V Li-Ion battery, foldable handle, removeable 3.9 gal (15 L) solution and 4.4 gal (16.5 L) recovery tank. Plus onboard charger, medium bristle polypropylene brush, squeegee, and multi-language operator manual. | F37: =SUM(F36) -> 0
F38: =SUM(F37) -> 0
C39: Boxed Dimensions: 31.9" L x 18.1" W x 27.6" H (810 mm x 460 mm x 700 mm) | F39: =SUM(F33,F36) -> 0
C40: Shipping Weight: 125.7 lbs/ 57 kg | F40: =SUM(F39) -> 0
F43: =SUM(#REF!) -> 
E44: =ROUND(SUM(G26:G43), 0) -> 0 | F44: =SUM(E45) -> 0
D45: Machine Subtotal | E45: =ROUND(SUM(G26:G43), 0) -> 0 | F45: =F44 -> 0
B46: Discounts | F46: =SUM(F47) -> 0
F47: =SUM(F48:F51) -> 0
D48: Discount % | F48: =IF(E48 <> "", 1, 0) -> 0 | G48: =IF(F48*(E48*0.01)*E44 < 0, F48*(E48*0.01)*E44, -(F48*(E48*0.01)*E44)) -> 0
D49: Discount $ | F49: =IF(E49 <> "", 1, 0) -> 0 | G49: =IF(F49*E49 < 0, F49*E49, -(F49*E49)) -> 0
D50: Discount $ | F50: =IF(E50 <> "", 1, 0) -> 0 | G50: =IF(F50*E50 < 0, F50*E50, -(F50*E50)) -> 0
D51: Discount $ | F51: =IF(E51 <> "", 1, 0) -> 0 | G51: =IF(F51*E51 < 0, F51*E51, -(F51*E51)) -> 0
D52: Discount Total | E52: =SUM(G48:G51) -> 0 | F52: =SUM(E52) -> 0
F53: =#REF! -> 
C54: Prepaid and Add | D54: Freight | F54: =IF(E54 <> "", 1, 0) -> 0 | G54: =F54*E54 -> 0
C55: Subject to all applicable taxes | D55: Tax | F55: =IF(E55 <> "", 1, 0) -> 0 | G55: =F55*E55 -> 0
F56: =SUM(F57) -> 0
D57: MACHINE TOTAL* | F57: =SUM(G57) -> 0 | G57: =SUM(G26:G55) -> 0 | N57: This goes to "My Documents"
B58: Financing | G58: =G57 -> 0
C60: Is customer interested in financing? | D60: No
C62: If not, why?
C65: First Western Equipment Finance - Leasing Calculation Option: | D65: Option 1 | F65: Option 2 | J65: =Financing!A38 -> Rates 2025 - Rev. 5/6/2025
D66: Monthly Payment | E66: Cost Per Day | F66: Monthly Payment | G66: Cost Per Day | J66: =Financing!A39 -> “Blank Payment Amounts Indicate The Financing Option Or Purchase Options Selected Are Not
C67: Purchase Option: | D67: FWEF: $1 Buyout Lease | F67: FWEF: Municipal Lease | J67: =Financing!A40 -> Applicable Or The Machine Total Is Below The Minimum Amount For The Selected Vendor”
C68: 24 Months | D68: 0 | E68: 0 | F68: 0 | G68: 0 | J68: =Financing!A41 -> "Quoted monthly payments are estimates only and are based on a certain level of credit rating.
C69: 30 Months | D69: 0 | E69: 0 | F69: 0 | G69: 0 | J69: =Financing!A42 -> Actual monthly payments may be higher depending on your credit rating."
C70: 36 Months | D70: 0 | E70: 0 | F70: 0 | G70: 0 | J70: =Financing!A43 -> “Financing rates do not include Pre-Paid Service”
C71: 48 Months | D71: 0 | E71: 0 | F71: 0 | G71: 0 | I71: =Financing!A44 -> 0
D73: Benefits of Equipment Financing:
D74: • Spreads out investment over time. | F74: • Keep current with latest technology.
D75: • Preserve capital. | F75: • Service and parts bundling available.
D76: • Low monthly payment. | F76: • Pay for labor savings as you go.
C79: Bundled Offerings | D79: Flexclean – Fair Market Value | F79: Flexclean - $1 Buyout
C80: FlexClean: | D80: 36 Month Term | F80: 36 Month Term | I80: No | J80: AB Brushes
C81: Hours included per Month: | D81: Gold | E81: Silver | F81: Gold | G81: Silver | H81: Check
C82: < 30/mo. (Avg. 1hr./day) | I82: =FlexCleanCalc!$A21 -> “FlexClean monthly rates include payment for both machine and service.”
C83: < 60/mo. (Avg. 2hrs./day)
C84: < 90/mo. (Avg. 3hrs./day)
C85: *This value assumes one service contract regardless of the number of UNITS included in the quote
C88: Bundled Offerings | D88: Flexclean – Fair Market Value | F88: Flexclean - $1 Buyout
C89: FlexClean 2: | D89: 48 Month Term | F89: 48 Month Term
C90: Hours included per Month: | D90: Gold | E90: Silver | F90: Gold | G90: Silver
C91: < 30/mo. (Avg. 1hr./day)
C92: < 60/mo. (Avg. 2hrs./day)
C93: < 90/mo. (Avg. 3hrs./day)
C94: *This value assumes one service contract regardless of the number of UNITS included in the quote
C96: Bundled Offerings | D96: Flexclean – Fair Market Value | F96: Flexclean - $1 Buyout
C97: FlexClean 3: | D97: 60 Month Term | F97: 60 Month Term
C98: Hours included per Month: | D98: Gold | E98: Silver | F98: Gold | G98: Silver
C99: < 30/mo. (Avg. 1hr./day)
C100: < 60/mo. (Avg. 2hrs./day)
C101: < 90/mo. (Avg. 3hrs./day)
C102: *This value assumes one service contract regardless of the number of UNITS included in the quote
B104: TennantTrue
C106: Is customer interested in service program? | D106: Yes | E106: *State/County selection required for TennantTrue service options
C108: If not, why?
C110: Term: | D110: 36 | F110: AB Brushes | G110: No
C111: Monthly machine usage (hrs): | D111: < 30/mo. (Avg. 1hr./day)
C113: TennantTrue: | D113: Gold Contract | F113: Silver Contract
C114: Per Visit
C115: Monthly
C116: Annually
C117: Pre-Pay Full Term
C118: Hourly Labor Rate
C119: Site Visit
C121: * Verify customer current pricing prior to quote.
C122: **All rates and fees above reflect service for one (1) unit with the exception of Block of Time service.
C123: *Block of Time is available in 1 Year Term only and is priced as such no matter the term selection on this template.
B126: Servicing
C128: Is customer interested in a service plan? | D128: No
C130: If not, why?
B133: Quote Special Instructions:
C136: =Start_Here!E36 -> Terms and Conditions
C137: =Start_Here!E37 -> Ask your local sales rep for estimated lead times. Verify when placing order
C138: =Start_Here!E38 -> All orders subject to acceptance by Tennant Sales and Service Company, Minneapolis, Minnesota
C139: =Start_Here!E39 -> Prices subject to change without notice.
C140: =Start_Here!E40 -> Terms: Net 30 days. Subject to any applicable taxes.
C141: =Start_Here!E41 -> Freight: Machines and accessory orders delivered FOB shipping point Frt PPD & Add
C142: =Start_Here!E42 -> Parts, supplies, detergents and floor treating material orders delivered FOB
C143: =Start_Here!E43 -> shipping point Frt PPD
C144: =Start_Here!E44 -> All orders are subject to Tennant’s General Terms and Conditions available at http://www.tennantco.com/terms.
C145: =Start_Here!E45 -> Printed General Terms and Conditions are also available upon request.
C146: =Start_Here!E46 -> 0
E148: Quote Date : | G148: =Letter!$A$25 -> 2020-09-17
A149: Order Placement Information: To place your order, fill in PO# and customer signatures,
A150: call or fax to the numbers listed below. Customer Purchase Order is required.
A151: If information is missing, orders will be entered and held until all information is received.
C152: Customer Number | E152: Cust Grp 3
C153: =Start_Here!$C$25 -> 0 | E153: =Start_Here!$C$29 -> 0
C154: =Start_Here!$B$18 -> Who Owns the Machine? (Sold-To Info) (Please Verify)
A155: Company | C155: =Start_Here!$C$19 -> Company Name
A156: Address | C156: =Start_Here!$C$20 -> Address
C157: =Start_Here!$C$21 -> City, State Zip
A158: Name | C158: =Start_Here!$C$22 -> Contact Name
A159: Phone | C159: =Start_Here!$C$23 -> Contact Phone
C160: =Start_Here!$B$11 -> Where is the Machine Being Shipped? (Ship-To Info) (Please Verify)
A161: Company | C161: =Start_Here!$C$12 -> Company Name
A162: Address | C162: =Start_Here!$C$13 -> Address
C163: =Start_Here!$C$14 -> City, State Zip
A164: Name | C164: =Start_Here!$C$15 -> Contact Name
A165: Phone | C165: =Start_Here!$C$16 -> Contact Phone
C166: =Start_Here!$B$31 -> Shipping / Carrier Instructions: | E166: Order Special Instructions:
C167: =Start_Here!$C$32 -> 0
C169: Customer Purchase Order No.
C170: (please attach copy)
C173: Tax Exempt | E173: Yes
E174: No
C175: If Yes, attach a copy of your exemption certificate.
C177: Requested Delivery Date
C178: =Start_Here!$C$28 -> 0
C180: =Start_Here!$C$26 -> 0 | E180: =Start_Here!$C$27 -> 0
B181: 0 | C181: Authorized Buyer (please print) | E181: Phone Number
B184: 0 | C184: Authorized Buyer Signature
C186: =Start_Here!$C$41 -> Rep Name
C187: Tennant Representative
A189: Specialized Maintenance Equipment
A190: =Start_Here!$C$48 -> TENNANT · 10400 Clean Street · Eden Prairie, MN 55344 ·
A191: =Start_Here!$C$49 -> PHONE:800-553-8033 · FAX:763-513-2116

Sheet i_mop_Lite
A1: i_mop_Lite | C1: =Start_Here!$C19 -> Company Name
A2: =SUM(G60) -> 0 | C2: =Start_Here!$C20 -> Address
C3: =Start_Here!$C21 -> City, State Zip
C4: =Start_Here!$C22 -> Contact Name
C5: =Start_Here!$C$41 -> Rep Name
C6: =Start_Here!$C$37 -> Tennant Sales and Service Company
C7: =Start_Here!$C$38 -> 10400 Clean Street
C8: =Start_Here!$C$39 -> Eden Prairie, MN 55344
C9: =Start_Here!$C$43 -> 800-553-8033 | E9: Quote Date : | G9: =Letter!$A$25 -> 2020-09-17
C11: =Help!C2 -> US Date Rev - 5/6/2025
C14: EXCLUSIVE FACTORY-DIRECT WARRANTY
C15: 1 Year Parts
C16: 1 Year Labor | E16: Quote Request Information
C17: 1 Year Battery | G17: Fax (quote only)
C18: 90 Days Travel | G18: Mail (quote,lit, specs)
G19: Fax + Mail
E21: Primary Use
G22: Inside
G23: Outside
C24: Description | D24: Reference # | E24: Price | F24: Qty. | G24: Extended Price
C26: i-mop® Lite - Lithium-Ion Auto Disk Scrubber | D26: 1263271 | E26: 5099 | G26: =F26*E26 -> 0
C27: 14.1" (37 cm) cleaning path. Includes battery pack, removable .79 gal (3 L) solution and 1.0 gal (4 L) recovery tank with ball float, battery safe guard switch, angle switch, charger w/ power cord, 2 medium blue brushes, squeegee, and multi-language operator manual. | F27: =SUM(F26) -> 0
F28: =SUM(F27) -> 0
C29: Boxed Dimensions: 48" H x 15.7" W x 15" L (1220 mm x 400 mm x 380 mm) | F29: 0
C30: Shipping Weight with Batteries: 46.4 lbs (21.0 kg) | F30: 0
C33: i-mop® Lite - Lithium-Ion Auto Disk Scrubber + Extra Battery Pack | D33: 9022310 | E33: 6176 | G33: =F33*E33 -> 0
C34: 14.1" (37 cm) cleaning path. Includes TWO battery packs, removable .79 gal (3 L) solution and 1.0 gal (4 L) recovery tank with ball float, battery safe guard switch, angle switch, charger w/ power cord, 2 medium blue brushes, squeegee, and multi-language operator manual. | F34: =SUM(F33) -> 0
F35: =SUM(F34) -> 0
C36: Note: Batteries do not ship in machine box, but separately. | F36: 0
F39: =SUM(#REF!) -> 
B41: Custom Solution--write in description, qty, price, and PN if applicable | F41: =SUM(F42) -> 0
E42: Insert Prices Here | F42: =SUM(F43:F46) -> 0
D43: Custom | F43: =IF(E43 <> "", 1, 0) -> 0 | G43: =F43*E43 -> 0
D44: Custom | F44: =IF(E44 <> "", 1, 0) -> 0 | G44: =F44*E44 -> 0
D45: Custom | F45: =IF(E45 <> "", 1, 0) -> 0 | G45: =F45*E45 -> 0
D46: Custom | F46: =IF(E46 <> "", 1, 0) -> 0 | G46: =F46*E46 -> 0
E47: =ROUND(SUM(G26:G46), 0) -> 0 | F47: =SUM(E48) -> 0
D48: Machine Subtotal | E48: =ROUND(SUM(G26:G46), 0) -> 0 | F48: =F47 -> 0
B49: Discounts | F49: =SUM(F50) -> 0
F50: =SUM(F51:F54) -> 0
D51: Discount % | F51: =IF(E51 <> "", 1, 0) -> 0 | G51: =IF(F51*(E51*0.01)*E47 < 0, F51*(E51*0.01)*E47, -(F51*(E51*0.01)*E47)) -> 0
D52: Discount $ | F52: =IF(E52 <> "", 1, 0) -> 0 | G52: =IF(F52*E52 < 0, F52*E52, -(F52*E52)) -> 0
D53: Discount $ | F53: =IF(E53 <> "", 1, 0) -> 0 | G53: =IF(F53*E53 < 0, F53*E53, -(F53*E53)) -> 0
D54: Discount $ | F54: =IF(E54 <> "", 1, 0) -> 0 | G54: =IF(F54*E54 < 0, F54*E54, -(F54*E54)) -> 0
D55: Discount Total | E55: =SUM(G51:G54) -> 0 | F55: =SUM(E55) -> 0
F56: =#REF! -> 
C57: Prepaid and Add | D57: Freight | F57: =IF(E57 <> "", 1, 0) -> 0 | G57: =F57*E57 -> 0
C58: Subject to all applicable taxes | D58: Tax | F58: =IF(E58 <> "", 1, 0) -> 0 | G58: =F58*E58 -> 0
F59: =SUM(F60) -> 0
D60: MACHINE TOTAL* | F60: =SUM(G60) -> 0 | G60: =SUM(G26:G58) -> 0 | N60: This goes to "My Documents"
B61: Financing | G61: =G60 -> 0
C63: Is customer interested in financing? | D63: No
C65: If not, why?
C68: First Western Equipment Finance - Leasing Calculation Option: | D68: Option 1 | F68: Option 2 | J68: =Financing!A38 -> Rates 2025 - Rev. 5/6/2025
D69: Monthly Payment | E69: Cost Per Day | F69: Monthly Payment | G69: Cost Per Day | J69: =Financing!A39 -> “Blank Payment Amounts Indicate The Financing Option Or Purchase Options Selected Are Not
C70: Purchase Option: | D70: FWEF: $1 Buyout Lease | F70: FWEF: Municipal Lease | J70: =Financing!A40 -> Applicable Or The Machine Total Is Below The Minimum Amount For The Selected Vendor”
C71: 24 Months | D71: 0 | E71: 0 | F71: 0 | G71: 0 | J71: =Financing!A41 -> "Quoted monthly payments are estimates only and are based on a certain level of credit rating.
C72: 30 Months | D72: 0 | E72: 0 | F72: 0 | G72: 0 | J72: =Financing!A42 -> Actual monthly payments may be higher depending on your credit rating."
C73: 36 Months | D73: 0 | E73: 0 | F73: 0 | G73: 0 | J73: =Financing!A43 -> “Financing rates do not include Pre-Paid Service”
C74: 48 Months | D74: 0 | E74: 0 | F74: 0 | G74: 0 | I74: =Financing!A44 -> 0
D76: Benefits of Equipment Financing:
D77: • Spreads out investment over time. | F77: • Keep current with latest technology.
D78: • Preserve capital. | F78: • Service and parts bundling available.
D79: • Low monthly payment. | F79: • Pay for labor savings as you go.
C82: Bundled Offerings | D82: Flexclean – Fair Market Value | F82: Flexclean - $1 Buyout
C83: FlexClean: | D83: 36 Month Term | F83: 36 Month Term | I83: No | J83: AB Brushes
C84: Hours included per Month: | D84: Gold | E84: Silver | F84: Gold | G84: Silver | H84: Check
C85: < 30/mo. (Avg. 1hr./day) | I85: =FlexCleanCalc!$A21 -> “FlexClean monthly rates include payment for both machine and service.”
C86: < 60/mo. (Avg. 2hrs./day)
C87: < 90/mo. (Avg. 3hrs./day)
C88: *This value assumes one service contract regardless of the number of UNITS included in the quote
C91: Bundled Offerings | D91: Flexclean – Fair Market Value | F91: Flexclean - $1 Buyout
C92: FlexClean 2: | D92: 48 Month Term | F92: 48 Month Term
C93: Hours included per Month: | D93: Gold | E93: Silver | F93: Gold | G93: Silver
C94: < 30/mo. (Avg. 1hr./day)
C95: < 60/mo. (Avg. 2hrs./day)
C96: < 90/mo. (Avg. 3hrs./day)
C97: *This value assumes one service contract regardless of the number of UNITS included in the quote
C99: Bundled Offerings | D99: Flexclean – Fair Market Value | F99: Flexclean - $1 Buyout
C100: FlexClean 3: | D100: 60 Month Term | F100: 60 Month Term
C101: Hours included per Month: | D101: Gold | E101: Silver | F101: Gold | G101: Silver
C102: < 30/mo. (Avg. 1hr./day)
C103: < 60/mo. (Avg. 2hrs./day)
C104: < 90/mo. (Avg. 3hrs./day)
C105: *This value assumes one service contract regardless of the number of UNITS included in the quote
B107: TennantTrue
C109: Is customer interested in service program? | D109: Yes | E109: *State/County selection required for TennantTrue service options
C111: If not, why?
C113: Term: | D113: 36 | F113: AB Brushes | G113: No
C114: Monthly machine usage (hrs): | D114: < 30/mo. (Avg. 1hr./day)
C116: TennantTrue: | D116: Gold Contract | F116: Silver Contract
C117: Per Visit
C118: Monthly
C119: Annually
C120: Pre-Pay Full Term
C121: Hourly Labor Rate
C122: Site Visit
C124: * Verify customer current pricing prior to quote.
C125: **All rates and fees above reflect service for one (1) unit with the exception of Block of Time service.
C126: *Block of Time is available in 1 Year Term only and is priced as such no matter the term selection on this template.
B129: Servicing
C131: Is customer interested in a service plan? | D131: No
C133: If not, why?
B136: Quote Special Instructions:
C139: =Start_Here!E36 -> Terms and Conditions
C140: =Start_Here!E37 -> Ask your local sales rep for estimated lead times. Verify when placing order
C141: =Start_Here!E38 -> All orders subject to acceptance by Tennant Sales and Service Company, Minneapolis, Minnesota
C142: =Start_Here!E39 -> Prices subject to change without notice.
C143: =Start_Here!E40 -> Terms: Net 30 days. Subject to any applicable taxes.
C144: =Start_Here!E41 -> Freight: Machines and accessory orders delivered FOB shipping point Frt PPD & Add
C145: =Start_Here!E42 -> Parts, supplies, detergents and floor treating material orders delivered FOB
C146: =Start_Here!E43 -> shipping point Frt PPD
C147: =Start_Here!E44 -> All orders are subject to Tennant’s General Terms and Conditions available at http://www.tennantco.com/terms.
C148: =Start_Here!E45 -> Printed General Terms and Conditions are also available upon request.
C149: =Start_Here!E46 -> 0
E151: Quote Date : | G151: =Letter!$A$25 -> 2020-09-17
A152: Order Placement Information: To place your order, fill in PO# and customer signatures,
A153: call or fax to the numbers listed below. Customer Purchase Order is required.
A154: If information is missing, orders will be entered and held until all information is received.
C155: Customer Number | E155: Cust Grp 3
C156: =Start_Here!$C$25 -> 0 | E156: =Start_Here!$C$29 -> 0
C157: =Start_Here!$B$18 -> Who Owns the Machine? (Sold-To Info) (Please Verify)
A158: Company | C158: =Start_Here!$C$19 -> Company Name
A159: Address | C159: =Start_Here!$C$20 -> Address
C160: =Start_Here!$C$21 -> City, State Zip
A161: Name | C161: =Start_Here!$C$22 -> Contact Name
A162: Phone | C162: =Start_Here!$C$23 -> Contact Phone
C163: =Start_Here!$B$11 -> Where is the Machine Being Shipped? (Ship-To Info) (Please Verify)
A164: Company | C164: =Start_Here!$C$12 -> Company Name
A165: Address | C165: =Start_Here!$C$13 -> Address
C166: =Start_Here!$C$14 -> City, State Zip
A167: Name | C167: =Start_Here!$C$15 -> Contact Name
A168: Phone | C168: =Start_Here!$C$16 -> Contact Phone
C169: =Start_Here!$B$31 -> Shipping / Carrier Instructions: | E169: Order Special Instructions:
C170: =Start_Here!$C$32 -> 0
C172: Customer Purchase Order No.
C173: (please attach copy)
C176: Tax Exempt | E176: Yes
E177: No
C178: If Yes, attach a copy of your exemption certificate.
C180: Requested Delivery Date
C181: =Start_Here!$C$28 -> 0
C183: =Start_Here!$C$26 -> 0 | E183: =Start_Here!$C$27 -> 0
B184: 0 | C184: Authorized Buyer (please print) | E184: Phone Number
B187: 0 | C187: Authorized Buyer Signature
C189: =Start_Here!$C$41 -> Rep Name
C190: Tennant Representative
A192: Specialized Maintenance Equipment
A193: =Start_Here!$C$48 -> TENNANT · 10400 Clean Street · Eden Prairie, MN 55344 ·
A194: =Start_Here!$C$49 -> PHONE:800-553-8033 · FAX:763-513-2116

Sheet i_mop_XL
A1: i_mop_XL | C1: =Start_Here!$C19 -> Company Name
A2: =SUM(G66) -> 0 | C2: =Start_Here!$C20 -> Address
C3: =Start_Here!$C21 -> City, State Zip
C4: =Start_Here!$C22 -> Contact Name
C5: =Start_Here!$C$41 -> Rep Name
C6: =Start_Here!$C$37 -> Tennant Sales and Service Company
C7: =Start_Here!$C$38 -> 10400 Clean Street
C8: =Start_Here!$C$39 -> Eden Prairie, MN 55344
C9: =Start_Here!$C$43 -> 800-553-8033 | E9: Quote Date : | G9: =Letter!$A$25 -> 2020-09-17
C11: =Help!C2 -> US Date Rev - 5/6/2025
C14: EXCLUSIVE FACTORY-DIRECT WARRANTY
C15: 1 Year Parts
C16: 1 Year Labor | E16: Quote Request Information
C17: 1 Year Battery | G17: Fax (quote only)
C18: 90 Days Travel | G18: Mail (quote,lit, specs)
G19: Fax + Mail
E21: Primary Use
G22: Inside
G23: Outside
C24: Description | D24: Reference # | E24: Price | F24: Qty. | G24: Extended Price
F25: *
C26: i-mop XL Plus Lithium-Ion Auto Disk Scrubber | D26: 1264254 | E26: 6861 | G26: =F26*E26 -> 0 | H26: =IFERROR(IFERROR(VLOOKUP(D26,Surcharge!A:B,2,FALSE)*F26, VLOOKUP(D26 & "",Surcharge!A:B,2,FALSE)*F26), "") ->  | P26: =VLOOKUP(D26,'MPF SAP Download PreConfigured'!C:E,3,FALSE) -> 
C27: 18.1" (46 cm) cleaning path. Includes white batteries, removable 1 gal (4 L) solution and 1.5 gal (6 L) recovery tank with ball float, battery safe guard switch, angle switch & i-Balance lever, removable splash guards, XL Plus charger w/ power cord, 2 medium blue brushes, quick change squeegee assembly with Linatex blades, and multi-language operator manual. | F27: =SUM(F26) -> 0 | H27: =IFERROR(IFERROR(VLOOKUP(D27,Surcharge!A:B,2,FALSE)*F27, VLOOKUP(D27 & "",Surcharge!A:B,2,FALSE)*F27), "") -> 
F28: =SUM(F27) -> 0 | H28: =IFERROR(IFERROR(VLOOKUP(D28,Surcharge!A:B,2,FALSE)*F28, VLOOKUP(D28 & "",Surcharge!A:B,2,FALSE)*F28), "") -> 
C29: Boxed Dimensions: 48" H x 20.5" W x 14.2" L (1220 mm x 520 mm x 360 mm) | F29: =SUM(F28) -> 0 | H29: =IFERROR(IFERROR(VLOOKUP(D29,Surcharge!A:B,2,FALSE)*F29, VLOOKUP(D29 & "",Surcharge!A:B,2,FALSE)*F29), "") -> 
C30: Shipping Weight with Batteries: 77.2 lbs (35 kg) | F30: =SUM(F29) -> 0 | H30: =IFERROR(IFERROR(VLOOKUP(D30,Surcharge!A:B,2,FALSE)*F30, VLOOKUP(D30 & "",Surcharge!A:B,2,FALSE)*F30), "") -> 
F31: =SUM(F32:F34) -> 0 | H31: =IFERROR(IFERROR(VLOOKUP(D31,Surcharge!A:B,2,FALSE)*F31, VLOOKUP(D31 & "",Surcharge!A:B,2,FALSE)*F31), "") -> 
C32: i-mop XL Plus Lithium-Ion Auto Disk Scrubber + 2 Sets of Batteries | D32: 9022386 | E32: 8206 | G32: =F32*E32 -> 0 | H32: =IFERROR(IFERROR(VLOOKUP(D32,Surcharge!A:B,2,FALSE)*F32, VLOOKUP(D32 & "",Surcharge!A:B,2,FALSE)*F32), "") ->  | P32: =VLOOKUP(D32,'MPF SAP Download PreConfigured'!C:E,3,FALSE) -> 
C33: 18.1" (46 cm) cleaning path. Includes i-mop XL Plus (1264254) with white battery and charger, as well as a second set of spare white batteries (two sets in total). | F33: =SUM(F32) -> 0 | H33: =IFERROR(IFERROR(VLOOKUP(D33,Surcharge!A:B,2,FALSE)*F33, VLOOKUP(D33 & "",Surcharge!A:B,2,FALSE)*F33), "") -> 
C34: Note: Batteries do not ship in the machine box, but separately | F34: =SUM(F33) -> 0 | H34: =IFERROR(IFERROR(VLOOKUP(D34,Surcharge!A:B,2,FALSE)*F34, VLOOKUP(D34 & "",Surcharge!A:B,2,FALSE)*F34), "") -> 
F35: =SUM(F36:F40) -> 0 | H35: =IFERROR(IFERROR(VLOOKUP(D35,Surcharge!A:B,2,FALSE)*F35, VLOOKUP(D35 & "",Surcharge!A:B,2,FALSE)*F35), "") -> 
C36: iCart L Integrated Work Cart | D36: 1232057 | E36: 2149 | G36: =F36*E36 -> 0 | H36: =IFERROR(IFERROR(VLOOKUP(D36,Surcharge!A:B,2,FALSE)*F36, VLOOKUP(D36 & "",Surcharge!A:B,2,FALSE)*F36), "") ->  | P36: =VLOOKUP(D36,'MPF SAP Download PreConfigured'!C:E,3,FALSE) -> 1969
C37: Transports the iMop, includes ramp, and has storage. | F37: =SUM(F36) -> 0 | H37: =IFERROR(IFERROR(VLOOKUP(D37,Surcharge!A:B,2,FALSE)*F37, VLOOKUP(D37 & "",Surcharge!A:B,2,FALSE)*F37), "") -> 
F38: =SUM(F37) -> 0 | H38: =IFERROR(IFERROR(VLOOKUP(D38,Surcharge!A:B,2,FALSE)*F38, VLOOKUP(D38 & "",Surcharge!A:B,2,FALSE)*F38), "") -> 
C39: Boxed Dimensions: 42.5" x 34.6" x 25.2" (1080 mm x 880 mm x 640 mm) | F39: =SUM(F38) -> 0 | H39: =IFERROR(IFERROR(VLOOKUP(D39,Surcharge!A:B,2,FALSE)*F39, VLOOKUP(D39 & "",Surcharge!A:B,2,FALSE)*F39), "") -> 
C40: Shipping Weight: 132.2 lbs (60 kg) | F40: =SUM(F39) -> 0 | H40: =IFERROR(IFERROR(VLOOKUP(D40,Surcharge!A:B,2,FALSE)*F40, VLOOKUP(D40 & "",Surcharge!A:B,2,FALSE)*F40), "") -> 
H41: =IFERROR(IFERROR(VLOOKUP(D41,Surcharge!A:B,2,FALSE)*F41, VLOOKUP(D41 & "",Surcharge!A:B,2,FALSE)*F41), "") -> 
C42: Cabinet Assy, Storage (iMop) | D42: 1233400 | E42: 1517 | G42: =F42*E42 -> 0 | H42: =IFERROR(IFERROR(VLOOKUP(D42,Surcharge!A:B,2,FALSE)*F42, VLOOKUP(D42 & "",Surcharge!A:B,2,FALSE)*F42), "") ->  | P42: =VLOOKUP(D42,'MPF SAP Download PreConfigured'!C:E,3,FALSE) -> 1338
C43: iMop Storage Cabinet | F43: =SUM(F42) -> 0 | H43: =IFERROR(IFERROR(VLOOKUP(D43,Surcharge!A:B,2,FALSE)*F43, VLOOKUP(D43 & "",Surcharge!A:B,2,FALSE)*F43), "") -> 
F45: =SUM(#REF!) -> 
B47: Custom Solution--write in description, qty, price, and PN if applicable | F47: =SUM(F48) -> 0
E48: Insert Prices Here | F48: =SUM(F49:F52) -> 0
D49: Custom | F49: =IF(E49 <> "", 1, 0) -> 0 | G49: =F49*E49 -> 0
D50: Custom | F50: =IF(E50 <> "", 1, 0) -> 0 | G50: =F50*E50 -> 0
D51: Custom | F51: =IF(E51 <> "", 1, 0) -> 0 | G51: =F51*E51 -> 0
D52: Custom | F52: =IF(E52 <> "", 1, 0) -> 0 | G52: =F52*E52 -> 0
E53: =ROUND(SUM(G25:G52), 0) -> 0 | F53: =SUM(E54) -> 0
D54: Machine Subtotal | E54: =ROUND(SUM(G25:G52), 0) -> 0 | F54: =F53 -> 0
B55: Discounts | F55: =SUM(F56) -> 0
F56: =SUM(F57:F60) -> 0
D57: Discount % | F57: =IF(E57 <> "", 1, 0) -> 0 | G57: =IF(F57*(E57*0.01)*E53 < 0, F57*(E57*0.01)*E53, -(F57*(E57*0.01)*E53)) -> 0
D58: Discount $ | F58: =IF(E58 <> "", 1, 0) -> 0 | G58: =IF(F58*E58 < 0, F58*E58, -(F58*E58)) -> 0
D59: Discount $ | F59: =IF(E59 <> "", 1, 0) -> 0 | G59: =IF(F59*E59 < 0, F59*E59, -(F59*E59)) -> 0
D60: Discount $ | F60: =IF(E60 <> "", 1, 0) -> 0 | G60: =IF(F60*E60 < 0, F60*E60, -(F60*E60)) -> 0
D61: Discount Total | E61: =SUM(G57:G60) -> 0 | F61: =SUM(E61) -> 0
F62: =#REF! -> 
C63: Prepaid and Add | D63: Freight | F63: =IF(E63 <> "", 1, 0) -> 0 | G63: =F63*E63 -> 0
C64: Subject to all applicable taxes | D64: Tax | F64: =IF(E64 <> "", 1, 0) -> 0 | G64: =F64*E64 -> 0
F65: =SUM(F66) -> 0
D66: MACHINE TOTAL* | F66: =SUM(G66) -> 0 | G66: =SUM(G25:G64) -> 0 | N66: This goes to "My Documents"
B67: Financing | G67: =G66 -> 0
C69: Is customer interested in financing? | D69: No
C71: If not, why?
C74: First Western Equipment Finance - Leasing Calculation Option: | D74: Option 1 | F74: Option 2 | J74: =Financing!A38 -> Rates 2025 - Rev. 5/6/2025
D75: Monthly Payment | E75: Cost Per Day | F75: Monthly Payment | G75: Cost Per Day | J75: =Financing!A39 -> “Blank Payment Amounts Indicate The Financing Option Or Purchase Options Selected Are Not
C76: Purchase Option: | D76: FWEF: $1 Buyout Lease | F76: FWEF: Municipal Lease | J76: =Financing!A40 -> Applicable Or The Machine Total Is Below The Minimum Amount For The Selected Vendor”
C77: 24 Months | D77: 0 | E77: 0 | F77: 0 | G77: 0 | J77: =Financing!A41 -> "Quoted monthly payments are estimates only and are based on a certain level of credit rating.
C78: 30 Months | D78: 0 | E78: 0 | F78: 0 | G78: 0 | J78: =Financing!A42 -> Actual monthly payments may be higher depending on your credit rating."
C79: 36 Months | D79: 0 | E79: 0 | F79: 0 | G79: 0 | J79: =Financing!A43 -> “Financing rates do not include Pre-Paid Service”
C80: 48 Months | D80: 0 | E80: 0 | F80: 0 | G80: 0 | I80: =Financing!A44 -> 0
D82: Benefits of Equipment Financing:
D83: • Spreads out investment over time. | F83: • Keep current with latest technology.
D84: • Preserve capital. | F84: • Service and parts bundling available.
D85: • Low monthly payment. | F85: • Pay for labor savings as you go.
C88: Bundled Offerings | D88: Flexclean – Fair Market Value | F88: Flexclean - $1 Buyout
C89: FlexClean: | D89: 36 Month Term | F89: 36 Month Term | I89: No | J89: AB Brushes
C90: Hours included per Month: | D90: Gold | E90: Silver | F90: Gold | G90: Silver | H90: Check
C91: < 30/mo. (Avg. 1hr./day) | I91: =FlexCleanCalc!$A21 -> “FlexClean monthly rates include payment for both machine and service.”
C92: < 60/mo. (Avg. 2hrs./day)
C93: < 90/mo. (Avg. 3hrs./day)
C94: *This value assumes one service contract regardless of the number of UNITS included in the quote
C97: Bundled Offerings | D97: Flexclean – Fair Market Value | F97: Flexclean - $1 Buyout
C98: FlexClean 2: | D98: 48 Month Term | F98: 48 Month Term
C99: Hours included per Month: | D99: Gold | E99: Silver | F99: Gold | G99: Silver
C100: < 30/mo. (Avg. 1hr./day)
C101: < 60/mo. (Avg. 2hrs./day)
C102: < 90/mo. (Avg. 3hrs./day)
C103: *This value assumes one service contract regardless of the number of UNITS included in the quote
C105: Bundled Offerings | D105: Flexclean – Fair Market Value | F105: Flexclean - $1 Buyout
C106: FlexClean 3: | D106: 60 Month Term | F106: 60 Month Term
C107: Hours included per Month: | D107: Gold | E107: Silver | F107: Gold | G107: Silver
C108: < 30/mo. (Avg. 1hr./day)
C109: < 60/mo. (Avg. 2hrs./day)
C110: < 90/mo. (Avg. 3hrs./day)
C111: *This value assumes one service contract regardless of the number of UNITS included in the quote
B113: TennantTrue
C115: Is customer interested in service program? | D115: Yes | E115: *State/County selection required for TennantTrue service options
C117: If not, why?
C119: Term: | D119: 36 | F119: AB Brushes | G119: No
C120: Monthly machine usage (hrs): | D120: < 30/mo. (Avg. 1hr./day)
C122: TennantTrue: | D122: Gold Contract | F122: Silver Contract
C123: Per Visit
C124: Monthly
C125: Annually
C126: Pre-Pay Full Term
C127: Hourly Labor Rate
C128: Site Visit
C130: * Verify customer current pricing prior to quote.
C131: **All rates and fees above reflect service for one (1) unit with the exception of Block of Time service.
C132: *Block of Time is available in 1 Year Term only and is priced as such no matter the term selection on this template.
B135: Servicing
C137: Is customer interested in a service plan? | D137: No
C139: If not, why?
B142: Quote Special Instructions:
C145: =Start_Here!E36 -> Terms and Conditions
C146: =Start_Here!E37 -> Ask your local sales rep for estimated lead times. Verify when placing order
C147: =Start_Here!E38 -> All orders subject to acceptance by Tennant Sales and Service Company, Minneapolis, Minnesota
C148: =Start_Here!E39 -> Prices subject to change without notice.
C149: =Start_Here!E40 -> Terms: Net 30 days. Subject to any applicable taxes.
C150: =Start_Here!E41 -> Freight: Machines and accessory orders delivered FOB shipping point Frt PPD & Add
C151: =Start_Here!E42 -> Parts, supplies, detergents and floor treating material orders delivered FOB
C152: =Start_Here!E43 -> shipping point Frt PPD
C153: =Start_Here!E44 -> All orders are subject to Tennant’s General Terms and Conditions available at http://www.tennantco.com/terms.
C154: =Start_Here!E45 -> Printed General Terms and Conditions are also available upon request.
C155: =Start_Here!E46 -> 0
E157: Quote Date : | G157: =Letter!$A$25 -> 2020-09-17
A158: Order Placement Information: To place your order, fill in PO# and customer signatures,
A159: call or fax to the numbers listed below. Customer Purchase Order is required.
A160: If information is missing, orders will be entered and held until all information is received.
C161: Customer Number | E161: Cust Grp 3
C162: =Start_Here!$C$25 -> 0 | E162: =Start_Here!$C$29 -> 0
C163: =Start_Here!$B$18 -> Who Owns the Machine? (Sold-To Info) (Please Verify)
A164: Company | C164: =Start_Here!$C$19 -> Company Name
A165: Address | C165: =Start_Here!$C$20 -> Address
C166: =Start_Here!$C$21 -> City, State Zip
A167: Name | C167: =Start_Here!$C$22 -> Contact Name
A168: Phone | C168: =Start_Here!$C$23 -> Contact Phone
C169: =Start_Here!$B$11 -> Where is the Machine Being Shipped? (Ship-To Info) (Please Verify)
A170: Company | C170: =Start_Here!$C$12 -> Company Name
A171: Address | C171: =Start_Here!$C$13 -> Address
C172: =Start_Here!$C$14 -> City, State Zip
A173: Name | C173: =Start_Here!$C$15 -> Contact Name
A174: Phone | C174: =Start_Here!$C$16 -> Contact Phone
C175: =Start_Here!$B$31 -> Shipping / Carrier Instructions: | E175: Order Special Instructions:
C176: =Start_Here!$C$32 -> 0
C178: Customer Purchase Order No.
C179: (please attach copy)
C182: Tax Exempt | E182: Yes
E183: No
C184: If Yes, attach a copy of your exemption certificate.
C186: Requested Delivery Date
C187: =Start_Here!$C$28 -> 0
C189: =Start_Here!$C$26 -> 0 | E189: =Start_Here!$C$27 -> 0
B190: 0 | C190: Authorized Buyer (please print) | E190: Phone Number
B193: 0 | C193: Authorized Buyer Signature
C195: =Start_Here!$C$41 -> Rep Name
C196: Tennant Representative
A198: Specialized Maintenance Equipment
A199: =Start_Here!$C$48 -> TENNANT · 10400 Clean Street · Eden Prairie, MN 55344 ·
A200: =Start_Here!$C$49 -> PHONE:800-553-8033 · FAX:763-513-2116

Sheet i_mop_XXL
A1: i_mop_XXL | C1: =Start_Here!$C19 -> Company Name
A2: =SUM(H57) -> 0 | C2: =Start_Here!$C20 -> Address
C3: =Start_Here!$C21 -> City, State Zip
C4: =Start_Here!$C22 -> Contact Name
C5: =Start_Here!$C$41 -> Rep Name
C6: =Start_Here!$C$37 -> Tennant Sales and Service Company
C7: =Start_Here!$C$38 -> 10400 Clean Street
C8: =Start_Here!$C$39 -> Eden Prairie, MN 55344
C9: =Start_Here!$C$43 -> 800-553-8033 | F9: Quote Date : | H9: =Letter!$A$25 -> 2020-09-17
C11: =Help!C2 -> US Date Rev - 5/6/2025
F12: Quote Request Information
C13: New Machine Warranty | H13: Fax (quote only)
C14: 12 MONTHS ON PARTS | H14: Mail (quote,lit, specs)
C15: 12 MONTHS – LABOR | H15: Fax + Mail
C16: 12 MONTHS BATTERY
C17: 90 DAYS – TRAVEL | F17: Primary Use
H18: Inside
H19: Outside
C22: Description | E22: Reference # | F22: Price Each | G22: Qty | H22: Extended Pr
G23: *
C24: i-mop XXL Plus Lithium-Ion Auto Disk Scrubber | E24: 1264255 | F24: 9209 | H24: =G24*F24 -> 0 | I24: =IFERROR(IFERROR(VLOOKUP(E24,Surcharge!A:B,2,FALSE)*G24, VLOOKUP(E24 & "",Surcharge!A:B,2,FALSE)*G24), "") ->  | P24: =VLOOKUP(E24,'MPF SAP Download PreConfigured'!C:E,3,FALSE) -> 
C25: 24.4" (62 cm) cleaning path. Includes gray batteries, removable 1.25 gal (5 L) solution and 2 gal (8 L) recovery tank with ball float, battery safe guard switch, angle switch & i-Balance lever, removable splash guards, XXL Plus charger w/ power cord, 2 medium blue brushes, quick change squeegee assembly with Linatex blades, and multi-language operator manual. | G25: =SUM(G24) -> 0 | I25: =IFERROR(IFERROR(VLOOKUP(E25,Surcharge!A:B,2,FALSE)*G25, VLOOKUP(E25 & "",Surcharge!A:B,2,FALSE)*G25), "") -> 
G26: =SUM(G25) -> 0 | I26: =IFERROR(IFERROR(VLOOKUP(E26,Surcharge!A:B,2,FALSE)*G26, VLOOKUP(E26 & "",Surcharge!A:B,2,FALSE)*G26), "") -> 
C27: Boxed Dimensions: 49" H x 25" W x 13" L (1240 mm x 640 mm x 330 mm) | G27: =SUM(G26) -> 0 | I27: =IFERROR(IFERROR(VLOOKUP(E27,Surcharge!A:B,2,FALSE)*G27, VLOOKUP(E27 & "",Surcharge!A:B,2,FALSE)*G27), "") -> 
C28: Shipping Weight with Batteries: 90.2 lbs (40.9 kg) | G28: =SUM(G27) -> 0 | I28: =IFERROR(IFERROR(VLOOKUP(E28,Surcharge!A:B,2,FALSE)*G28, VLOOKUP(E28 & "",Surcharge!A:B,2,FALSE)*G28), "") -> 
I29: =IFERROR(IFERROR(VLOOKUP(E29,Surcharge!A:B,2,FALSE)*G29, VLOOKUP(E29 & "",Surcharge!A:B,2,FALSE)*G29), "") -> 
I30: =IFERROR(IFERROR(VLOOKUP(E30,Surcharge!A:B,2,FALSE)*G30, VLOOKUP(E30 & "",Surcharge!A:B,2,FALSE)*G30), "") -> 
C31: i-mop XXL Plus Lithium-Ion Auto Disk Scrubber + 2 Sets of Batteries | E31: 9022387 | F31: 10923 | H31: =G31*F31 -> 0 | I31: =IFERROR(IFERROR(VLOOKUP(E31,Surcharge!A:B,2,FALSE)*G31, VLOOKUP(E31 & "",Surcharge!A:B,2,FALSE)*G31), "") ->  | P31: =VLOOKUP(E31,'MPF SAP Download PreConfigured'!C:E,3,FALSE) -> 
C32: 24.4" (62 cm) cleaning path. Includes i-mop XXL Plus (1264255) with grey battery and charger, as well as a second set of spare grey batteries (two sets in total). | G32: =SUM(G31) -> 0 | I32: =IFERROR(IFERROR(VLOOKUP(E32,Surcharge!A:B,2,FALSE)*G32, VLOOKUP(E32 & "",Surcharge!A:B,2,FALSE)*G32), "") -> 
C33: Note: Extra batteries do not ship in machine box, but separately. | G33: =SUM(G32) -> 0 | I33: =IFERROR(IFERROR(VLOOKUP(E33,Surcharge!A:B,2,FALSE)*G33, VLOOKUP(E33 & "",Surcharge!A:B,2,FALSE)*G33), "") -> 
I34: =IFERROR(IFERROR(VLOOKUP(E34,Surcharge!A:B,2,FALSE)*G34, VLOOKUP(E34 & "",Surcharge!A:B,2,FALSE)*G34), "") -> 
G35: =SUM(#REF!) -> 
B37: Custom Solution--write in description, qty, price, and PN if applicable | F37: =SUM(G38) -> 0
F38: Insert Prices Here | G38: =SUM(G39:G42) -> 0
E39: Custom | G39: =IF(F39 <> "", 1, 0) -> 0 | H39: =G39*F39 -> 0
E40: Custom | G40: =IF(F40 <> "", 1, 0) -> 0 | H40: =G40*F40 -> 0
E41: Custom | G41: =IF(F41 <> "", 1, 0) -> 0 | H41: =G41*F41 -> 0
E42: Custom | G42: =IF(F42 <> "", 1, 0) -> 0 | H42: =G42*F42 -> 0
F43: =ROUND(SUM(H24:H42), 0) -> 0 | G43: =SUM(F44) -> 0
E44: Machine Subtotal | F44: =ROUND(SUM(H24:H42), 0) -> 0 | G44: =G43 -> 0
B45: Discounts | G45: =SUM(G46) -> 0
G46: =SUM(G47:G50) -> 0
E47: Discount % | G47: =IF(F47 <> "", 1, 0) -> 0 | H47: =IF(G47*(F47*0.01)*F43 < 0, G47*(F47*0.01)*F43, -(G47*(F47*0.01)*F43)) -> 0
E48: Discount $ | G48: =IF(F48 <> "", 1, 0) -> 0 | H48: =IF(G48*F48 < 0, G48*F48, -(G48*F48)) -> 0
E49: Discount $ | G49: =IF(F49 <> "", 1, 0) -> 0 | H49: =IF(G49*F49 < 0, G49*F49, -(G49*F49)) -> 0
E50: Discount $ | G50: =IF(F50 <> "", 1, 0) -> 0 | H50: =IF(G50*F50 < 0, G50*F50, -(G50*F50)) -> 0
E51: Discount Total | F51: =SUM(H47:H50) -> 0 | G51: =SUM(F51) -> 0
G52: =#REF! -> 
G53: =G52 -> 
C54: Prepaid and Add | E54: Freight | G54: =IF(F54 <> "", 1, 0) -> 0 | H54: =G54*F54 -> 0
C55: Subject to all applicable taxes | E55: Tax | G55: =IF(F55 <> "", 1, 0) -> 0 | H55: =G55*F55 -> 0
G56: =SUM(G57) -> 0
E57: MACHINE TOTAL* | G57: =SUM(H57) -> 0 | H57: =SUM(H24:H55) -> 0 | M57: This goes to "My Documents"
H58: =SUM(H57) -> 0
B59: Financing
C61: Is customer interested in financing? | D61: Yes
C63: If not, why?
C66: First Western Equipment Finance - Leasing Calculation Option: | E66: Option 1 | G66: Option 2 | J66: =Financing!A38 -> Rates 2025 - Rev. 5/6/2025
E67: Monthly Payment | F67: Cost Per Day | G67: Monthly Payment | H67: Cost Per Day | J67: =Financing!A39 -> “Blank Payment Amounts Indicate The Financing Option Or Purchase Options Selected Are Not
C68: Purchase Option: | E68: FWEF: $1 Buyout Lease | G68: FWEF: Municipal Lease | J68: =Financing!A40 -> Applicable Or The Machine Total Is Below The Minimum Amount For The Selected Vendor”
C69: 24 Months | E69: 0 | F69: 0 | G69: 0 | H69: 0 | J69: =Financing!A41 -> "Quoted monthly payments are estimates only and are based on a certain level of credit rating.
C70: 30 Months | E70: 0 | F70: 0 | G70: 0 | H70: 0 | J70: =Financing!A42 -> Actual monthly payments may be higher depending on your credit rating."
C71: 36 Months | E71: 0 | F71: 0 | G71: 0 | H71: 0 | J71: =Financing!A43 -> “Financing rates do not include Pre-Paid Service”
C72: 48 Months | E72: 0 | F72: 0 | G72: 0 | H72: 0 | J72: =Financing!A44 -> 0
D74: Benefits of Equipment Financing:
D75: • Spreads out investment over time. | F75: • Keep current with latest technology.
D76: • Preserve capital. | F76: • Service and parts bundling available.
D77: • Low monthly payment. | F77: • Pay for labor savings as you go.
C80: Bundled Offerings | E80: Flexclean – Fair Market Value | G80: Flexclean - $1 Buyout
C81: FlexClean: | E81: 36 Month Term | G81: 36 Month Term | J81: No | K81: AB Brushes
C82: Hours included per Month: | E82: Gold | F82: Silver | G82: Gold | H82: Silver | I82: Check
C83: < 30/mo. (Avg. 1hr./day) | K83: =FlexCleanCalc!$A21 -> “FlexClean monthly rates include payment for both machine and service.”
C84: < 60/mo. (Avg. 2hrs./day)
C85: < 90/mo. (Avg. 3hrs./day)
C86: *This value assumes one service contract regardless of the number of UNITS included in the quote
C89: Bundled Offerings | E89: Flexclean – Fair Market Value | G89: Flexclean - $1 Buyout
C90: FlexClean 2: | E90: 48 Month Term | G90: 48 Month Term
C91: Hours included per Month: | E91: Gold | F91: Silver | G91: Gold | H91: Silver
C92: < 30/mo. (Avg. 1hr./day)
C93: < 60/mo. (Avg. 2hrs./day)
C94: < 90/mo. (Avg. 3hrs./day)
C95: *This value assumes one service contract regardless of the number of UNITS included in the quote
C97: Bundled Offerings | E97: Flexclean – Fair Market Value | G97: Flexclean - $1 Buyout
C98: FlexClean 3: | E98: 60 Month Term | G98: 60 Month Term
C99: Hours included per Month: | E99: Gold | F99: Silver | G99: Gold | H99: Silver
C100: < 30/mo. (Avg. 1hr./day)
C101: < 60/mo. (Avg. 2hrs./day)
C102: < 90/mo. (Avg. 3hrs./day)
C103: *This value assumes one service contract regardless of the number of UNITS included in the quote
B105: TennantTrue | D105: 0
C107: Is customer interested in service program? | D107: Yes | E107: *State/County selection required for TennantTrue service options
C109: If not, why?
C111: Term: | D111: 36 | F111: AB Brushes | G111: No
C112: Monthly machine usage (hrs): | D112: < 30/mo. (Avg. 1hr./day)
C114: TennantTrue: | D114: Gold Contract | F114: Silver Contract
C115: Per Visit
C116: Monthly
C117: Annually
C118: Pre-Pay Full Term
C119: Hourly Labor Rate
C120: Site Visit
C122: * Verify customer current pricing prior to quote.
C123: **All rates and fees above reflect service for one (1) unit with the exception of Block of Time service.
C124: *Block of Time is available in 1 Year Term only and is priced as such no matter the term selection on this template.
C128: Quote Special Instructions:
C131: =Start_Here!E37 -> Ask your local sales rep for estimated lead times. Verify when placing order
C132: =Start_Here!$E$38:$E$46 -> All orders subject to acceptance by Tennant Sales and Service Company, Minneapolis, Minnesota
C133: Prices subject to change without notice.
C134: Terms: Net 30 days. Subject to any applicable taxes.
C135: Freight: Machines and accessory orders delivered FOB shipping point Frt PPD & Add
C136: Parts, supplies, detergents and floor treating material orders delivered FOB
C137: shipping point Frt PPD
C138: All orders are subject to Tennant’s General Terms and Conditions available at http://www.tennantco.com/terms.
C139: Printed General Terms and Conditions are also available upon request.
C140: 0
F141: Quote Date : | H141: =Letter!$A$25 -> 2020-09-17
B142: Order Placement Information: To place your order, fill in PO# and customer signatures,
B143: call or fax to the numbers listed below. Customer Purchase Order is required.
B144: If information is missing, orders will be entered and held until all information is received.
C145: Customer Number | E145: Cust Grp 3
C146: =Start_Here!$C$25 -> 0 | E146: =Start_Here!$C$29 -> 0
C147: =Start_Here!$B$18 -> Who Owns the Machine? (Sold-To Info) (Please Verify)
A148: Company | C148: =Start_Here!$C$19 -> Company Name
A149: Address | C149: =Start_Here!$C$20 -> Address
C150: =Start_Here!$C$21 -> City, State Zip
A151: Name | C151: =Start_Here!$C$22 -> Contact Name
A152: Phone | C152: =Start_Here!$C$23 -> Contact Phone
C153: =Start_Here!$B$11 -> Where is the Machine Being Shipped? (Ship-To Info) (Please Verify)
A154: Company | C154: =Start_Here!$C$12 -> Company Name
A155: Address | C155: =Start_Here!$C$13 -> Address
C156: =Start_Here!$C$14 -> City, State Zip
A157: Name | C157: =Start_Here!$C$15 -> Contact Name
A158: Phone | C158: =Start_Here!$C$16 -> Contact Phone
C159: =Start_Here!$B$31 -> Shipping / Carrier Instructions: | E159: Order Special Instructions:
C160: =Start_Here!$C$32 -> 0
C162: Customer Purchase Order No.
C163: (please attach copy)
C166: Tax Exempt | E166: Yes
E167: No
C168: If Yes, attach a copy of your exemption certificate.
C170: Requested Delivery Date
C171: =Start_Here!$C$28 -> 0
C173: =Start_Here!$C$26 -> 0 | E173: =Start_Here!$C$27 -> 0
B174: 0 | C174: Authorized Buyer (please print) | E174: Phone Number
B177: 0 | C177: Authorized Buyer Signature
C179: =Start_Here!$C$41 -> Rep Name
C180: Tennant Representative
A183: Specialized Maintenance Equipment
A184: =Start_Here!$C$48 -> TENNANT · 10400 Clean Street · Eden Prairie, MN 55344 ·
A185: =Start_Here!$C$49 -> PHONE:800-553-8033 · FAX:763-513-2116

Sheet T1_T1B
A1: T1_T1B | C1: =Start_Here!$C19 -> Company Name
A2: =SUM(G64) -> 0 | C2: =Start_Here!$C20 -> Address
C3: =Start_Here!$C21 -> City, State Zip
C4: =Start_Here!$C22 -> Contact Name
C5: =Start_Here!$C$41 -> Rep Name
C6: =Start_Here!$C$37 -> Tennant Sales and Service Company
C7: =Start_Here!$C$38 -> 10400 Clean Street
C8: =Start_Here!$C$39 -> Eden Prairie, MN 55344
C9: =Start_Here!$C$43 -> 800-553-8033 | E9: Quote Date : | G9: =Letter!$A$25 -> 2020-09-17
C11: =Help!C2 -> US Date Rev - 5/6/2025
C13: EXCLUSIVE FACTORY-DIRECT WARRANTY
C14: 10 YEARS - ROTOMOLDED PARTS
C15: 36 MONTHS OR 2500 HOURS - PARTS
C16: 36 MONTHS LABOR | E16: Quote Request Information
C17: 90 DAYS – TRAVEL T1B, No Travel on T1 | G17: Fax (quote only)
C18: BATTERIES AGM PRO-RATED 6 MONTHS | G18: Mail (quote,lit, specs)
C19: LITHIUM ION 2 YEARS (Full Replacement) | G19: Fax + Mail
E21: Primary Use
G22: Inside
G23: Outside
C24: Description | D24: Reference # | E24: Price | F24: Qty. | G24: Extended Price
F25: *
C26: T1 Cord-Electric Cylindrical Scrubber | D26: 9004191 | E26: 5236 | G26: =F26*E26 -> 0 | H26: =IFERROR(IFERROR(VLOOKUP(D26,Surcharge!A:B,2,FALSE)*F26, VLOOKUP(D26 & "",Surcharge!A:B,2,FALSE)*F26), "") ->  | P26: =VLOOKUP(D26,'MPF SAP Download PreConfigured'!C:E,3,FALSE) -> 4760
C27: 15" (380 mm) cleaning path. Complete package includes removable, Hygenic® fully cleanable 3 gallon (11.4 liter) solution/ 4.5 gallon (17 liters) recovery tanks, Insta-AdjustTM handle, nylon brush, 50-ft (15-m) "safety yellow" power cord and multi-language operator manual. | F27: =SUM(F26) -> 0 | H27: =IFERROR(IFERROR(VLOOKUP(D27,Surcharge!A:B,2,FALSE)*F27, VLOOKUP(D27 & "",Surcharge!A:B,2,FALSE)*F27), "") ->  | L27: =SUM(F27) -> 0 | M27: Surcharge Qty
C28: Boxed Dimensions: 34" L x 22" W x 32" H (864 mm x 559 mm x 813 mm). * | F28: =SUM(F27) -> 0 | H28: =IFERROR(IFERROR(VLOOKUP(D28,Surcharge!A:B,2,FALSE)*F28, VLOOKUP(D28 & "",Surcharge!A:B,2,FALSE)*F28), "") ->  | L28: =SUM(F28) -> 0 | M28: Surcharge Qty
C29: Shipping Weight / Volume: 125 lb (57 kg) / 13.9 ft3 (.39 m3) | F29: =SUM(F28) -> 0 | H29: =IFERROR(IFERROR(VLOOKUP(D29,Surcharge!A:B,2,FALSE)*F29, VLOOKUP(D29 & "",Surcharge!A:B,2,FALSE)*F29), "") ->  | L29: =SUM(F29) -> 0 | M29: Surcharge Qty
H30: =IFERROR(IFERROR(VLOOKUP(D30,Surcharge!A:B,2,FALSE)*F30, VLOOKUP(D30 & "",Surcharge!A:B,2,FALSE)*F30), "") -> 
H31: =IFERROR(IFERROR(VLOOKUP(D31,Surcharge!A:B,2,FALSE)*F31, VLOOKUP(D31 & "",Surcharge!A:B,2,FALSE)*F31), "") -> 
C32: T1B Battery Cylindrical Scrubber - 15" cleaning path. Complete package includes removable, Hygenic® fully cleanable 2.5 gallon (9.5liter) solution/ 3.4 gallon (12.9 liters) recovery tanks, Insta-AdjustTM handle, nylon brush, appropriate off board world charger with power cord and multi-language operator manual. | F32: =SUM(F37,F40) -> 0 | H32: =IFERROR(IFERROR(VLOOKUP(D32,Surcharge!A:B,2,FALSE)*F32, VLOOKUP(D32 & "",Surcharge!A:B,2,FALSE)*F32), "") -> 
C33: Boxed Dimensions: 32" L x 24" W x 37" H (813 mm x 610 mm x 940 mm). * | F33: =SUM(F32) -> 0 | H33: =IFERROR(IFERROR(VLOOKUP(D33,Surcharge!A:B,2,FALSE)*F33, VLOOKUP(D33 & "",Surcharge!A:B,2,FALSE)*F33), "") -> 
C34: Shipping Weight (see battery options below) | F34: =SUM(F33) -> 0 | H34: =IFERROR(IFERROR(VLOOKUP(D34,Surcharge!A:B,2,FALSE)*F34, VLOOKUP(D34 & "",Surcharge!A:B,2,FALSE)*F34), "") -> 
H35: =IFERROR(IFERROR(VLOOKUP(D35,Surcharge!A:B,2,FALSE)*F35, VLOOKUP(D35 & "",Surcharge!A:B,2,FALSE)*F35), "") -> 
C37: T1B Battery Cylindrical Scrubber (with AGM batteries) | D37: 9008635 | E37: 6581 | G37: =F37*E37 -> 0 | H37: =IFERROR(IFERROR(VLOOKUP(D37,Surcharge!A:B,2,FALSE)*F37, VLOOKUP(D37 & "",Surcharge!A:B,2,FALSE)*F37), "") -> 0 | P37: =VLOOKUP(D37,'MPF SAP Download PreConfigured'!C:E,3,FALSE) -> 6150
C38: Shipping Weight: 158 lbs/ 72 kg | F38: =SUM(F37) -> 0 | H38: =IFERROR(IFERROR(VLOOKUP(D38,Surcharge!A:B,2,FALSE)*F38, VLOOKUP(D38 & "",Surcharge!A:B,2,FALSE)*F38), "") -> 
H39: =IFERROR(IFERROR(VLOOKUP(D39,Surcharge!A:B,2,FALSE)*F39, VLOOKUP(D39 & "",Surcharge!A:B,2,FALSE)*F39), "") -> 
C40: T1B Battery Cylindrical Scrubber (with Li-ion batteries) | D40: 9008638 | E40: 8492 | G40: =F40*E40 -> 0 | H40: =IFERROR(IFERROR(VLOOKUP(D40,Surcharge!A:B,2,FALSE)*F40, VLOOKUP(D40 & "",Surcharge!A:B,2,FALSE)*F40), "") ->  | P40: =VLOOKUP(D40,'MPF SAP Download PreConfigured'!C:E,3,FALSE) -> 7936
C41: Shipping Weight: 143 lbs/ 65 kg | F41: =SUM(F40) -> 0 | H41: =IFERROR(IFERROR(VLOOKUP(D41,Surcharge!A:B,2,FALSE)*F41, VLOOKUP(D41 & "",Surcharge!A:B,2,FALSE)*F41), "") -> 
H42: =IFERROR(IFERROR(VLOOKUP(D42,Surcharge!A:B,2,FALSE)*F42, VLOOKUP(D42 & "",Surcharge!A:B,2,FALSE)*F42), "") -> 
F43: =SUM(#REF!) -> 
B45: Custom Solution--write in description, qty, price, and PN if applicable | F45: =SUM(F46) -> 0
E46: Insert Prices Here | F46: =SUM(F47:F50) -> 0
D47: Custom | F47: =IF(E47 <> "", 1, 0) -> 0 | G47: =F47*E47 -> 0
D48: Custom | F48: =IF(E48 <> "", 1, 0) -> 0 | G48: =F48*E48 -> 0
D49: Custom | F49: =IF(E49 <> "", 1, 0) -> 0 | G49: =F49*E49 -> 0
D50: Custom | F50: =IF(E50 <> "", 1, 0) -> 0 | G50: =F50*E50 -> 0
E51: =ROUND(SUM(G26:G50), 0) -> 0 | F51: =SUM(E52) -> 0
D52: Machine Subtotal | E52: =ROUND(SUM(G26:G50), 0) -> 0 | F52: =F51 -> 0
B53: Discounts | F53: =SUM(F54) -> 0
F54: =SUM(F55:F58) -> 0
D55: Discount % | F55: =IF(E55 <> "", 1, 0) -> 0 | G55: =IF(F55*(E55*0.01)*E51 < 0, F55*(E55*0.01)*E51, -(F55*(E55*0.01)*E51)) -> 0
D56: Discount $ | F56: =IF(E56 <> "", 1, 0) -> 0 | G56: =IF(F56*E56 < 0, F56*E56, -(F56*E56)) -> 0
D57: Discount $ | F57: =IF(E57 <> "", 1, 0) -> 0 | G57: =IF(F57*E57 < 0, F57*E57, -(F57*E57)) -> 0
D58: Discount $ | F58: =IF(E58 <> "", 1, 0) -> 0 | G58: =IF(F58*E58 < 0, F58*E58, -(F58*E58)) -> 0
D59: Discount Total | E59: =SUM(G55:G58) -> 0 | F59: =SUM(E59) -> 0
F60: =#REF! -> 
C61: Prepaid and Add | D61: Freight | F61: =IF(E61 <> "", 1, 0) -> 0 | G61: =F61*E61 -> 0
C62: Subject to all applicable taxes | D62: Tax | F62: =IF(E62 <> "", 1, 0) -> 0 | G62: =F62*E62 -> 0
F63: =SUM(F64) -> 0
D64: MACHINE TOTAL* | F64: =SUM(G64) -> 0 | G64: =SUM(G26:G62) -> 0 | N64: This goes to "My Documents"
B65: Financing | G65: =G64 -> 0
C67: Is customer interested in financing? | D67: No
C69: If not, why?
C72: First Western Equipment Finance - Leasing Calculation Option: | D72: Option 1 | F72: Option 2 | J72: =Financing!A38 -> Rates 2025 - Rev. 5/6/2025
D73: Monthly Payment | E73: Cost Per Day | F73: Monthly Payment | G73: Cost Per Day | J73: =Financing!A39 -> “Blank Payment Amounts Indicate The Financing Option Or Purchase Options Selected Are Not
C74: Purchase Option: | D74: FWEF: $1 Buyout Lease | F74: FWEF: Municipal Lease | J74: =Financing!A40 -> Applicable Or The Machine Total Is Below The Minimum Amount For The Selected Vendor”
C75: 24 Months | D75: 0 | E75: 0 | F75: 0 | G75: 0 | J75: =Financing!A41 -> "Quoted monthly payments are estimates only and are based on a certain level of credit rating.
C76: 30 Months | D76: 0 | E76: 0 | F76: 0 | G76: 0 | J76: =Financing!A42 -> Actual monthly payments may be higher depending on your credit rating."
C77: 36 Months | D77: 0 | E77: 0 | F77: 0 | G77: 0 | J77: =Financing!A43 -> “Financing rates do not include Pre-Paid Service”
C78: 48 Months | D78: 0 | E78: 0 | F78: 0 | G78: 0
D80: Benefits of Equipment Financing:
D81: • Spreads out investment over time. | F81: • Keep current with latest technology.
D82: • Preserve capital. | F82: • Service and parts bundling available.
D83: • Low monthly payment. | F83: • Pay for labor savings as you go.
C86: Bundled Offerings | D86: Flexclean – Fair Market Value | F86: Flexclean - $1 Buyout
C87: FlexClean: | D87: 36 Month Term | F87: 36 Month Term | I87: No | J87: AB Brushes
C88: Hours included per Month: | D88: Gold | E88: Silver | F88: Gold | G88: Silver | H88: Check
C89: < 30/mo. (Avg. 1hr./day) | I89: =FlexCleanCalc!$A21 -> “FlexClean monthly rates include payment for both machine and service.”
C90: < 60/mo. (Avg. 2hrs./day)
C91: < 90/mo. (Avg. 3hrs./day)
C92: *This value assumes one service contract regardless of the number of UNITS included in the quote
C95: Bundled Offerings | D95: Flexclean – Fair Market Value | F95: Flexclean - $1 Buyout
C96: FlexClean 2: | D96: 48 Month Term | F96: 48 Month Term
C97: Hours included per Month: | D97: Gold | E97: Silver | F97: Gold | G97: Silver
C98: < 30/mo. (Avg. 1hr./day)
C99: < 60/mo. (Avg. 2hrs./day)
C100: < 90/mo. (Avg. 3hrs./day)
C101: *This value assumes one service contract regardless of the number of UNITS included in the quote
C103: Bundled Offerings | D103: Flexclean – Fair Market Value | F103: Flexclean - $1 Buyout
C104: FlexClean 3: | D104: 60 Month Term | F104: 60 Month Term
C105: Hours included per Month: | D105: Gold | E105: Silver | F105: Gold | G105: Silver
C106: < 30/mo. (Avg. 1hr./day)
C107: < 60/mo. (Avg. 2hrs./day)
C108: < 90/mo. (Avg. 3hrs./day)
C109: *This value assumes one service contract regardless of the number of UNITS included in the quote
B111: TennantTrue
C113: Is customer interested in service program? | D113: Yes | E113: *State/County selection required for TennantTrue service options
C115: If not, why?
C117: Term: | D117: 36 | F117: AB Brushes | G117: No
C118: Monthly machine usage (hrs): | D118: < 30/mo. (Avg. 1hr./day)
C120: TennantTrue: | D120: Gold Contract | F120: Silver Contract
C121: Per Visit
C122: Monthly
C123: Annually
C124: Pre-Pay Full Term
C125: Hourly Labor Rate
C126: Site Visit
C128: * Verify customer current pricing prior to quote.
C129: **All rates and fees above reflect service for one (1) unit with the exception of Block of Time service.
C130: *Block of Time is available in 1 Year Term only and is priced as such no matter the term selection on this template.
B133: Servicing
C135: Is customer interested in a service plan? | D135: No
C137: If not, why?
B140: Quote Special Instructions:
C143: =Start_Here!E36 -> Terms and Conditions
C144: =Start_Here!E37 -> Ask your local sales rep for estimated lead times. Verify when placing order
C145: =Start_Here!E38 -> All orders subject to acceptance by Tennant Sales and Service Company, Minneapolis, Minnesota
C146: =Start_Here!E39 -> Prices subject to change without notice.
C147: =Start_Here!E40 -> Terms: Net 30 days. Subject to any applicable taxes.
C148: =Start_Here!E41 -> Freight: Machines and accessory orders delivered FOB shipping point Frt PPD & Add
C149: =Start_Here!E42 -> Parts, supplies, detergents and floor treating material orders delivered FOB
C150: =Start_Here!E43 -> shipping point Frt PPD
C151: =Start_Here!E44 -> All orders are subject to Tennant’s General Terms and Conditions available at http://www.tennantco.com/terms.
C152: =Start_Here!E45 -> Printed General Terms and Conditions are also available upon request.
C153: =Start_Here!E46 -> 0
E155: Quote Date : | G155: =Letter!$A$25 -> 2020-09-17
A156: Order Placement Information: To place your order, fill in PO# and customer signatures,
A157: call or fax to the numbers listed below. Customer Purchase Order is required.
A158: If information is missing, orders will be entered and held until all information is received.
C159: Customer Number | E159: Cust Grp 3
C160: =Start_Here!$C$25 -> 0 | E160: =Start_Here!$C$29 -> 0
C161: =Start_Here!$B$18 -> Who Owns the Machine? (Sold-To Info) (Please Verify)
A162: Company | C162: =Start_Here!$C$19 -> Company Name
A163: Address | C163: =Start_Here!$C$20 -> Address
C164: =Start_Here!$C$21 -> City, State Zip
A165: Name | C165: =Start_Here!$C$22 -> Contact Name
A166: Phone | C166: =Start_Here!$C$23 -> Contact Phone
C167: =Start_Here!$B$11 -> Where is the Machine Being Shipped? (Ship-To Info) (Please Verify)
A168: Company | C168: =Start_Here!$C$12 -> Company Name
A169: Address | C169: =Start_Here!$C$13 -> Address
C170: =Start_Here!$C$14 -> City, State Zip
A171: Name | C171: =Start_Here!$C$15 -> Contact Name
A172: Phone | C172: =Start_Here!$C$16 -> Contact Phone
C173: =Start_Here!$B$31 -> Shipping / Carrier Instructions: | E173: Order Special Instructions:
C174: =Start_Here!$C$32 -> 0
C176: Customer Purchase Order No.
C177: (please attach copy)
C180: Tax Exempt | E180: Yes
E181: No
C182: If Yes, attach a copy of your exemption certificate.
C184: Requested Delivery Date
C185: =Start_Here!$C$28 -> 0
C187: =Start_Here!$C$26 -> 0 | E187: =Start_Here!$C$27 -> 0
B188: 0 | C188: Authorized Buyer (please print) | E188: Phone Number
B191: 0 | C191: Authorized Buyer Signature
C193: =Start_Here!$C$41 -> Rep Name
C194: Tennant Representative
A196: Specialized Maintenance Equipment
A197: =Start_Here!$C$48 -> TENNANT · 10400 Clean Street · Eden Prairie, MN 55344 ·
A198: =Start_Here!$C$49 -> PHONE:800-553-8033 · FAX:763-513-2116

Sheet T260
A1: T260 | C1: =Start_Here!$C19 -> Company Name
A2: =SUM(G53) -> 0 | C2: =Start_Here!$C20 -> Address
C3: =Start_Here!$C21 -> City, State Zip
C4: =Start_Here!$C22 -> Contact Name
C5: =Start_Here!$C$41 -> Rep Name
C6: =Start_Here!$C$37 -> Tennant Sales and Service Company
C7: =Start_Here!$C$38 -> 10400 Clean Street
C8: =Start_Here!$C$39 -> Eden Prairie, MN 55344
C9: =Start_Here!$C$43 -> 800-553-8033 | E9: Quote Date : | G9: =Letter!$A$25 -> 2020-09-17
C11: =Help!C2 -> US Date Rev - 5/6/2025
C13: TENNANT COMPANY WARRANTY
C14: 1 YEAR BATTERY CHARGER
C15: 1 YEAR BATTERY PRO-RATED
C16: 10 YEARS ON DURAMERTM ROTOMOLD TANKS ALL MACHINES
C17: 3 YEARS or 1000 HRS PARTS
C18: 1 YEAR - LABOR, 3 MONTHS TRAVEL
E19: Quote Request Information
G20: Fax (quote only)
G21: Mail (quote,lit, specs)
G22: Fax + Mail
E24: Primary Use
G25: Inside
G26: Outside
C27: Description | D27: Reference # | E27: US Price | F27: Qty. | G27: Extended Price
C29: T260 Walk Behind Scrubber - Pad Assist - 135AH Sealed Gel Batteries | D29: TN8001004 | E29: 5405 | G29: =F29*E29 -> 0
C30: 20in (50cm) single disk cleaning path, Linatex squeegee blades. Includes off-board charger, 2-12V sealed gel batteries, nylon brush, pad driver, and 1 red pad. | F30: =SUM(F29) -> 0
C32: Shipped on skid. | F32: =SUM(F29) -> 0
C33: T260 - Pad Assist - Shipping Weight and Dimensions | D33: Skid w/Carton | F33: =SUM(F30) -> 0
C34: Weight (w/ batteries) | D34: 364 lb | F34: 0
C35: Length | D35: 54.3 in / 138 cm | F35: 0
C36: Width | D36: 24 in / 61cm | F36: 0
C37: Height | D37: 47.24 in / 120 cm | F37: 0
F38: =SUM(#REF!) -> 
E39: =ROUND(SUM(G28:G38), 0) -> 0 | F39: =SUM(E40) -> 0
D40: Machine Subtotal | E40: =ROUND(SUM(G28:G38), 0) -> 0 | F40: =F39 -> 0
B41: Discounts | F41: =SUM(F42) -> 0
F42: =SUM(F43:F46) -> 0
D43: Discount % | F43: =IF(E43 <> "", 1, 0) -> 0 | G43: =IF(F43*(E43*0.01)*E39 < 0, F43*(E43*0.01)*E39, -(F43*(E43*0.01)*E39)) -> 0
D44: Discount $ | F44: =IF(E44 <> "", 1, 0) -> 0 | G44: =IF(F44*E44 < 0, F44*E44, -(F44*E44)) -> 0
D45: Discount $ | F45: =IF(E45 <> "", 1, 0) -> 0 | G45: =IF(F45*E45 < 0, F45*E45, -(F45*E45)) -> 0
D46: Discount $ | F46: =IF(E46 <> "", 1, 0) -> 0 | G46: =IF(F46*E46 < 0, F46*E46, -(F46*E46)) -> 0
D47: Discount Total | E47: =SUM(G43:G46) -> 0 | F47: =SUM(E47) -> 0
F48: =#REF! -> 
F49: =F48 -> 
C50: Prepaid and Add | D50: Freight | F50: =IF(E50 <> "", 1, 0) -> 0 | G50: =F50*E50 -> 0
C51: Subject to all applicable taxes | D51: Tax | F51: =IF(E51 <> "", 1, 0) -> 0 | G51: =F51*E51 -> 0
F52: =SUM(F53) -> 0
D53: MACHINE TOTAL* | F53: =SUM(G53) -> 0 | G53: =SUM(G28:G51) -> 0 | N53: This goes to "My Documents"
B54: Financing | G54: =G53 -> 0
C56: Is customer interested in financing? | D56: No
C58: If not, why?
C61: First Western Equipment Finance - Leasing Calculation Option: | D61: Option 1 | F61: Option 2 | J61: =Financing!A38 -> Rates 2025 - Rev. 5/6/2025
D62: Monthly Payment | E62: Cost Per Day | F62: Monthly Payment | G62: Cost Per Day | J62: =Financing!A39 -> “Blank Payment Amounts Indicate The Financing Option Or Purchase Options Selected Are Not
C63: Purchase Option: | D63: FWEF: $1 Buyout Lease | F63: FWEF: Municipal Lease | J63: =Financing!A40 -> Applicable Or The Machine Total Is Below The Minimum Amount For The Selected Vendor”
C64: 24 Months | D64: 0 | E64: 0 | F64: 0 | G64: 0 | J64: =Financing!A41 -> "Quoted monthly payments are estimates only and are based on a certain level of credit rating.
C65: 30 Months | D65: 0 | E65: 0 | F65: 0 | G65: 0 | J65: =Financing!A42 -> Actual monthly payments may be higher depending on your credit rating."
C66: 36 Months | D66: 0 | E66: 0 | F66: 0 | G66: 0 | J66: =Financing!A43 -> “Financing rates do not include Pre-Paid Service”
C67: 48 Months | D67: 0 | E67: 0 | F67: 0 | G67: 0 | I67: =Financing!A44 -> 0
D69: Benefits of Equipment Financing:
D70: • Spreads out investment over time. | F70: • Keep current with latest technology.
D71: • Preserve capital. | F71: • Service and parts bundling available.
D72: • Low monthly payment. | F72: • Pay for labor savings as you go.
C75: Bundled Offerings | D75: Flexclean – Fair Market Value | F75: Flexclean - $1 Buyout
C76: FlexClean: | D76: 36 Month Term | F76: 36 Month Term | I76: No | J76: AB Brushes
C77: Hours included per Month: | D77: Gold | E77: Silver | F77: Gold | G77: Silver | H77: Check
C78: < 30/mo. (Avg. 1hr./day) | I78: =FlexCleanCalc!$A21 -> “FlexClean monthly rates include payment for both machine and service.”
C79: < 60/mo. (Avg. 2hrs./day)
C80: < 90/mo. (Avg. 3hrs./day)
C81: *This value assumes one service contract regardless of the number of UNITS included in the quote
C84: Bundled Offerings | D84: Flexclean – Fair Market Value | F84: Flexclean - $1 Buyout
C85: FlexClean 2: | D85: 48 Month Term | F85: 48 Month Term
C86: Hours included per Month: | D86: Gold | E86: Silver | F86: Gold | G86: Silver
C87: < 30/mo. (Avg. 1hr./day)
C88: < 60/mo. (Avg. 2hrs./day)
C89: < 90/mo. (Avg. 3hrs./day)
C90: *This value assumes one service contract regardless of the number of UNITS included in the quote
C92: Bundled Offerings | D92: Flexclean – Fair Market Value | F92: Flexclean - $1 Buyout
C93: FlexClean 3: | D93: 60 Month Term | F93: 60 Month Term
C94: Hours included per Month: | D94: Gold | E94: Silver | F94: Gold | G94: Silver
C95: < 30/mo. (Avg. 1hr./day)
C96: < 60/mo. (Avg. 2hrs./day)
C97: < 90/mo. (Avg. 3hrs./day)
C98: *This value assumes one service contract regardless of the number of UNITS included in the quote
B100: TennantTrue
C102: Is customer interested in service program? | D102: Yes | E102: *State/County selection required for TennantTrue service options
C104: If not, why?
C106: Term: | D106: 36 | F106: AB Brushes | G106: No
C107: Monthly machine usage (hrs): | D107: < 30/mo. (Avg. 1hr./day)
C109: TennantTrue: | D109: Gold Contract | F109: Silver Contract
C110: Per Visit | F110: 425
C111: Monthly | F111: 69
C112: Annually | F112: 816
C113: Pre-Pay Full Term | F113: 2397
C114: Hourly Labor Rate
C115: Site Visit
C117: * Verify customer current pricing prior to quote.
C118: **All rates and fees above reflect service for one (1) unit with the exception of Block of Time service.
C119: *Block of Time is available in 1 Year Term only and is priced as such no matter the term selection on this template.
B122: Servicing
C124: Is customer interested in a service plan? | D124: No
C126: If not, why?
B129: Quote Special Instructions:
C132: =Start_Here!E36 -> Terms and Conditions
C133: =Start_Here!E37 -> Ask your local sales rep for estimated lead times. Verify when placing order
C134: =Start_Here!E38 -> All orders subject to acceptance by Tennant Sales and Service Company, Minneapolis, Minnesota
C135: =Start_Here!E39 -> Prices subject to change without notice.
C136: =Start_Here!E40 -> Terms: Net 30 days. Subject to any applicable taxes.
C137: =Start_Here!E41 -> Freight: Machines and accessory orders delivered FOB shipping point Frt PPD & Add
C138: =Start_Here!E42 -> Parts, supplies, detergents and floor treating material orders delivered FOB
C139: =Start_Here!E43 -> shipping point Frt PPD
C140: =Start_Here!E44 -> All orders are subject to Tennant’s General Terms and Conditions available at http://www.tennantco.com/terms.
C141: =Start_Here!E45 -> Printed General Terms and Conditions are also available upon request.
C142: =Start_Here!E46 -> 0
E144: Quote Date : | G144: =Letter!$A$25 -> 2020-09-17
A145: Order Placement Information: To place your order, fill in PO# and customer signatures,
A146: call or fax to the numbers listed below. Customer Purchase Order is required.
A147: If information is missing, orders will be entered and held until all information is received.
C148: Customer Number | E148: Cust Grp 3
C149: =Start_Here!$C$25 -> 0 | E149: =Start_Here!$C$29 -> 0
C150: =Start_Here!$B$18 -> Who Owns the Machine? (Sold-To Info) (Please Verify)
A151: Company | C151: =Start_Here!$C$19 -> Company Name
A152: Address | C152: =Start_Here!$C$20 -> Address
C153: =Start_Here!$C$21 -> City, State Zip
A154: Name | C154: =Start_Here!$C$22 -> Contact Name
A155: Phone | C155: =Start_Here!$C$23 -> Contact Phone
C156: =Start_Here!$B$11 -> Where is the Machine Being Shipped? (Ship-To Info) (Please Verify)
A157: Company | C157: =Start_Here!$C$12 -> Company Name
A158: Address | C158: =Start_Here!$C$13 -> Address
C159: =Start_Here!$C$14 -> City, State Zip
A160: Name | C160: =Start_Here!$C$15 -> Contact Name
A161: Phone | C161: =Start_Here!$C$16 -> Contact Phone
C162: =Start_Here!$B$31 -> Shipping / Carrier Instructions: | E162: Order Special Instructions:
C163: =Start_Here!$C$32 -> 0
C165: Customer Purchase Order No.
C166: (please attach copy)
C169: Tax Exempt | E169: Yes
E170: No
C171: If Yes, attach a copy of your exemption certificate.
C173: Requested Delivery Date
C174: =Start_Here!$C$28 -> 0
C176: =Start_Here!$C$26 -> 0 | E176: =Start_Here!$C$27 -> 0
B177: 0 | C177: Authorized Buyer (please print) | E177: Phone Number
B180: 0 | C180: Authorized Buyer Signature
C182: =Start_Here!$C$41 -> Rep Name
C183: Tennant Representative
A185: Specialized Maintenance Equipment
A186: =Start_Here!$C$48 -> TENNANT · 10400 Clean Street · Eden Prairie, MN 55344 ·
A187: =Start_Here!$C$49 -> PHONE:800-553-8033 · FAX:763-513-2116

Sheet T391_T291
A1: T391_T291 | C1: =Start_Here!$C19 -> Company Name
A2: =SUM(G137) -> 0 | C2: =Start_Here!$C20 -> Address
C3: =Start_Here!$C21 -> City, State Zip
C4: =Start_Here!$C22 -> Contact Name
C5: =Start_Here!$C$41 -> Rep Name
C6: =Start_Here!$C$37 -> Tennant Sales and Service Company
C7: =Start_Here!$C$38 -> 10400 Clean Street
C8: =Start_Here!$C$39 -> Eden Prairie, MN 55344
C9: =Start_Here!$C$43 -> 800-553-8033 | E9: Quote Date : | G9: =Letter!$A$25 -> 2020-09-17
C11: =Help!C2 -> US Date Rev - 5/6/2025
C13: TENNANT COMPANY WARRANTY
C14: 1 YEAR BATTERY CHARGER
C15: 1 YEAR BATTERY PRO-RATED
C16: 10 YEARS ON DURAMERTM ROTOMOLD TANKS ALL MACHINES
C17: 3 YEARS or 1500 HRS PARTS
C18: 2 YEARS - LABOR, 6 MONTHS TRAVEL
E19: Quote Request Information
G20: Fax (quote only)
G21: Mail (quote,lit, specs)
G22: Fax + Mail
E24: Primary Use
G25: Inside
G26: Outside
C27: Description | D27: Reference # | E27: US Price | F27: Qty. | G27: Extended Price
F28: =SUM(F30:F60) -> 0
C30: T391 - Walk Behind Scrubber 130AH Wet Batteries | D30: 9022790 | E30: 11516 | G30: =F30*E30 -> 0
C31: 28in (70cm) dual disk cleaning path, conventional, pad driver, red pads, Linatex squeegee blades. Includes onboard charger, 2-12V batteries | F31: =SUM(F30) -> 0
C33: T391 - Walk Behind Scrubber 140AH Sealed AGM Batteries | D33: 9022789 | E33: 12669 | G33: =F33*E33 -> 0
C34: 28in (70cm) dual disk cleaning path, conventional, pad driver, red pads, Linatex squeegee blades. Includes onboard charger, 2-12V batteries | F34: =SUM(F33) -> 0
C36: T391 - Walk Behind Scrubber 90 AH Li-Ion Battery | D36: 9300496 | E36: 13262 | G36: =F36*E36 -> 0
C37: 28in (70cm) dual disk cleaning path, conventional, pad driver, red pads, Linatex squeegee blades. Includes onboard charger, 1-24V battery | F37: =SUM(F36) -> 0
C39: T391 - Walk Behind Scrubber 130AH Wet Batteries w/ EcH2O nanoclean | D39: 9022792 | E39: 14556 | G39: =F39*E39 -> 0
C40: 28in (70cm) dual disk cleaning path, ecH2O nanoclean with severe environment, pad driver, red pads, Linatex squeegee blades. Includes onboard charger, 2-12V batteries | F40: =SUM(F39) -> 0
C42: T391 - Walk Behind Scrubber 140AH Sealed AGM Batteries w/ EcH2O nanoclean | D42: 9022791 | E42: 15709 | G42: =F42*E42 -> 0
C43: 28in (70cm) dual disk cleaning path, ecH2O nanoclean with severe environment, pad driver, red pads, Linatex squeegee blades. Includes onboard charger, 2-12V batteries | F43: =SUM(F42) -> 0
C45: T391 - Walk Behind Scrubber 90AH Li-Ion Battery w/ EcH2O nanoclean | D45: 9300497 | E45: 16103 | G45: =F45*E45 -> 0
C46: 28in (70cm) dual disk cleaning path, ecH2O nanoclean with severe environment, pad driver, red pads, Linatex squeegee blades. Includes onboard charger, 1-24V battery | F46: =SUM(F45) -> 0
C48: T391 - Walk Behind Scrubber 130AH Wet Batteries | D48: 9022794 | E48: 12404 | G48: =F48*E48 -> 0
C49: 32in (80cm) dual disk cleaning path, conventional, pad driver, red pads, Linatex squeegee blades. Includes onboard charger, 2-12V batteries | F49: =SUM(F48) -> 0
C51: T391 - Walk Behind Scrubber 140AH Sealed AGM Batteries | D51: 9022793 | E51: 13557 | G51: =F51*E51 -> 0
C52: 32in (80cm) dual disk cleaning path, conventional, pad driver, red pads, Linatex squeegee blades. Includes onboard charger, 2-12V batteries | F52: =SUM(F51) -> 0
C54: T391 - Walk Behind Scrubber 90AH Li-Ion Battery | D54: 9300498 | E54: 14092 | G54: =F54*E54 -> 0
C55: 32in (80cm) dual disk cleaning path, conventional, pad driver, red pads, Linatex squeegee blades. Includes onboard charger, 1-24V battery | F55: =SUM(F54) -> 0
C57: T391 - Walk Behind Scrubber 130AH Wet Batteries w/ EcH2O nanoclean | D57: 9022796 | E57: 15444 | G57: =F57*E57 -> 0
C58: 32in (80cm) dual disk cleaning path, ecH2O nanoclean with severe environment, pad driver, red pads, Linatex squeegee blades. Includes onboard charger, 2-12V batteries | F58: =SUM(F57) -> 0
C60: T391 - Walk Behind Scrubber 140AH Sealed AGM Batteries w/ EcH2O nanoclean | D60: 9022795 | E60: 16597 | G60: =F60*E60 -> 0
C61: 32in (80cm) dual disk cleaning path, ecH2O nanoclean with severe environment, pad driver, red pads, Linatex squeegee blades. Includes onboard charger, 2-12V batteries | F61: =SUM(F60) -> 0
C63: T391 - Walk Behind Scrubber 90AH Battery w/ EcH2O nanoclean | D63: 9300499 | E63: 16933 | G63: =F63*E63 -> 0
C64: 32in (80cm) dual disk cleaning path, ecH2O nanoclean with severe environment, pad driver, red pads, Linatex squeegee blades. Includes onboard charger, 1-24V battery | F64: =SUM(F63) -> 0
C66: T391 - Shipping Weight and Dimensions | F66: =SUM(F28) -> 0
C67: Weight (w/ heaviest batteries) | F67: =SUM(F29) -> 0
C68: Length | D68: 422.8 lbs | F68: =SUM(F30) -> 0
C69: Width | D69: 52.55 in / 134 cm | F69: =SUM(F31) -> 0
C70: Height | D70: 30.70 in / 78 cm | F70: =SUM(F32) -> 0
C74: T291 - Walk Behind Scrubber - Pad Assist - 130AH Wet Batteries | D74: 9300480 | E74: 6733 | G74: =F74*E74 -> 0
C75: 20in (50cm) single disk cleaning path, conventional cleaning, Linatex squeegee blades. Includes on-board charger, splash guard, 2-12V batteries, pad driver, and 1 red pad. | F75: =SUM(F74) -> 0
C77: T291 - Walk Behind Scrubber - Pad Assist - 140AH Sealed AGM Batteries | D77: 9300484 | E77: 7886 | G77: =F77*E77 -> 0
C79: T291 - Walk Behind Scrubber - Pad Assist - 90AH Li-Ion Battery | D79: 9300488 | E79: 8792 | G79: =F79*E79 -> 0
C81: T291 - Walk Behind Scrubber - Pad Assist - No Battery | D81: 9300492 | E81: 6251 | G81: =F81*E81 -> 0
C84: T291 - Walk Behind Scrubber - Self Propel - 130AH Wet Batteries | D84: 9300482 | E84: 8124 | G84: =F84*E84 -> 0
C85: 20in (50cm) single disk cleaning path, conventional cleaning, self-propel, Linatex squeegee blades. Includes on-board charger, splash guard, 2-12V batteries, pad driver, and 1 red pad. | F85: =SUM(F84) -> 0
C87: T291 - Walk Behind Scrubber - Self Propel - 140AH Sealed AGM Batteries | D87: 9300486 | E87: 9277 | G87: =F87*E87 -> 0
C89: T291 - Walk Behind Scrubber - Self Propel - 90AH Li-Ion Battery | D89: 9300490 | E89: 10092 | G89: =F89*E89 -> 0
C92: T291 - Walk Behind Scrubber - Self Propel - No Battery | D92: 9300494 | E92: 7642 | G92: =F92*E92 -> 0
C95: T291 - Walk Behind Scrubber - Pad Assist - ec-H20 NanoClean w/ severe environment - 130AH Wet Batteries | D95: 9300481 | E95: 8954 | G95: =F95*E95 -> 0
C96: 20in (50cm) single disk cleaning path, ec-H20 NanoClean w/ severe environment, pad-assist, Linatex squeegee blades. Includes on-board charger, splash guard, 2-12V batteries, pad driver, and 1 red pad. | F96: =SUM(F95) -> 0
C98: T291 - Walk Behind Scrubber - Pad Assist - ec-H20 NanoClean w/ severe environment - 140AH AGM Batteries | D98: 9300485 | E98: 10108 | G98: =F98*E98 -> 0
C100: T291 - Walk Behind Scrubber - Pad Assist - ec-H20 NanoClean w/ severe environment - 90AH Li-Ion Battery | D100: 9300489 | E100: 10868 | G100: =F100*E100 -> 0
C103: T291 - Walk Behind Scrubber - Pad Assist - ec-H20 NanoClean w/ severe environment - No Battery | D103: 9300493 | E103: 8473 | G103: =F103*E103 -> 0
C105: T291 - Walk Behind Scrubber - Self Propel - ec-H20 NanoClean w/ severe environment - 130AH Wet Batteries | D105: 9300483 | E105: 10345 | G105: =F105*E105 -> 0
C106: 20in (50cm) single disk cleaning path, ec-H20 NanoClean w/ severe environment, self-propel, Linatex squeegee blades. Includes on-board charger, splash guard, 2-12V batteries, pad driver, and 1 red pad. | F106: =SUM(F105) -> 0
C108: T291 - Walk Behind Scrubber - Self Propel - ec-H20 NanoClean w/ severe environment - 140AH AGM Batteries | D108: 9300487 | E108: 11499 | G108: =F108*E108 -> 0
C110: T291 - Walk Behind Scrubber - Self Propel - ec-H20 NanoClean w/ severe environment - 90AH Li-Ion Battery | D110: 9300491 | E110: 12168 | G110: =F110*E110 -> 0
F111: =SUM(F108) -> 0
C112: T291 - Walk Behind Scrubber - Self Propel - ec-H20 NanoClean w/ severe environment - No Battery | D112: 9300495 | E112: 9864 | G112: =F112*E112 -> 0
C115: T291 - Shipping Weight and Dimensions | F115: =SUM(F74:F112) -> 0
C116: Weight (w/ heaviest batteries) | D116: 390.22 lbs | F116: =SUM(F115) -> 0
C117: Length | D117: 53.74 in / 137 cm | F117: =SUM(F116) -> 0
C118: Width | D118: 27.36 in / 70 cm | F118: 0
C119: Height | D119: 45.11 in / 115 cm | F119: 0
F122: =SUM(#REF!) -> 
E123: =ROUND(SUM(G29:G122), 0) -> 0 | F123: =SUM(E124) -> 0
D124: Machine Subtotal | E124: =ROUND(SUM(G29:G122), 0) -> 0 | F124: =F123 -> 0
B125: Discounts | F125: =SUM(F126) -> 0
F126: =SUM(F127:F130) -> 0
D127: Discount % | F127: =IF(E127 <> "", 1, 0) -> 0 | G127: =IF(F127*(E127*0.01)*E123 < 0, F127*(E127*0.01)*E123, -(F127*(E127*0.01)*E123)) -> 0
D128: Discount $ | F128: =IF(E128 <> "", 1, 0) -> 0 | G128: =IF(F128*E128 < 0, F128*E128, -(F128*E128)) -> 0
D129: Discount $ | F129: =IF(E129 <> "", 1, 0) -> 0 | G129: =IF(F129*E129 < 0, F129*E129, -(F129*E129)) -> 0
D130: Discount $ | F130: =IF(E130 <> "", 1, 0) -> 0 | G130: =IF(F130*E130 < 0, F130*E130, -(F130*E130)) -> 0
D131: Discount Total | E131: =SUM(G127:G130) -> 0 | F131: =SUM(E131) -> 0
F132: =#REF! -> 
F133: =F132 -> 
C134: Prepaid and Add | D134: Freight | F134: =IF(E134 <> "", 1, 0) -> 0 | G134: =F134*E134 -> 0
C135: Subject to all applicable taxes | D135: Tax | F135: =IF(E135 <> "", 1, 0) -> 0 | G135: =F135*E135 -> 0
F136: =SUM(F137) -> 0
D137: MACHINE TOTAL* | F137: =SUM(G137) -> 0 | G137: =SUM(G29:G135) -> 0 | N137: This goes to "My Documents"
B138: Financing | G138: =G137 -> 0
C140: Is customer interested in financing? | D140: No
C142: If not, why?
C145: First Western Equipment Finance - Leasing Calculation Option: | D145: Option 1 | F145: Option 2 | J145: =Financing!A38 -> Rates 2025 - Rev. 5/6/2025
D146: Monthly Payment | E146: Cost Per Day | F146: Monthly Payment | G146: Cost Per Day | J146: =Financing!A39 -> “Blank Payment Amounts Indicate The Financing Option Or Purchase Options Selected Are Not
C147: Purchase Option: | D147: FWEF: $1 Buyout Lease | F147: FWEF: Municipal Lease | J147: =Financing!A40 -> Applicable Or The Machine Total Is Below The Minimum Amount For The Selected Vendor”
C148: 24 Months | D148: 0 | E148: 0 | F148: 0 | G148: 0 | J148: =Financing!A41 -> "Quoted monthly payments are estimates only and are based on a certain level of credit rating.
C149: 30 Months | D149: 0 | E149: 0 | F149: 0 | G149: 0 | J149: =Financing!A42 -> Actual monthly payments may be higher depending on your credit rating."
C150: 36 Months | D150: 0 | E150: 0 | F150: 0 | G150: 0 | J150: =Financing!A43 -> “Financing rates do not include Pre-Paid Service”
C151: 48 Months | D151: 0 | E151: 0 | F151: 0 | G151: 0 | I151: =Financing!A44 -> 0
D153: Benefits of Equipment Financing:
D154: • Spreads out investment over time. | F154: • Keep current with latest technology.
D155: • Preserve capital. | F155: • Service and parts bundling available.
D156: • Low monthly payment. | F156: • Pay for labor savings as you go.
C159: Bundled Offerings | D159: Flexclean – Fair Market Value | F159: Flexclean - $1 Buyout
C160: FlexClean: | D160: 36 Month Term | F160: 36 Month Term | I160: No | J160: AB Brushes
C161: Hours included per Month: | D161: Gold | E161: Silver | F161: Gold | G161: Silver | H161: Check
C162: < 30/mo. (Avg. 1hr./day) | I162: =FlexCleanCalc!$A21 -> “FlexClean monthly rates include payment for both machine and service.”
C163: < 60/mo. (Avg. 2hrs./day)
C164: < 90/mo. (Avg. 3hrs./day)
C165: *This value assumes one service contract regardless of the number of UNITS included in the quote
C168: Bundled Offerings | D168: Flexclean – Fair Market Value | F168: Flexclean - $1 Buyout
C169: FlexClean 2: | D169: 48 Month Term | F169: 48 Month Term
C170: Hours included per Month: | D170: Gold | E170: Silver | F170: Gold | G170: Silver
C171: < 30/mo. (Avg. 1hr./day)
C172: < 60/mo. (Avg. 2hrs./day)
C173: < 90/mo. (Avg. 3hrs./day)
C174: *This value assumes one service contract regardless of the number of UNITS included in the quote
C176: Bundled Offerings | D176: Flexclean – Fair Market Value | F176: Flexclean - $1 Buyout
C177: FlexClean 3: | D177: 60 Month Term | F177: 60 Month Term
C178: Hours included per Month: | D178: Gold | E178: Silver | F178: Gold | G178: Silver
C179: < 30/mo. (Avg. 1hr./day)
C180: < 60/mo. (Avg. 2hrs./day)
C181: < 90/mo. (Avg. 3hrs./day)
C182: *This value assumes one service contract regardless of the number of UNITS included in the quote
B184: TennantTrue
C186: Is customer interested in service program? | D186: Yes | E186: *State/County selection required for TennantTrue service options
C188: If not, why?
C190: Term: | D190: 36 | F190: AB Brushes | G190: No
C191: Monthly machine usage (hrs): | D191: < 30/mo. (Avg. 1hr./day)
C193: TennantTrue: | D193: Gold Contract | F193: Silver Contract
C194: Per Visit | F194: 425
C195: Monthly | D195: 129 | F195: 69
C196: Annually | F196: 816
C197: Pre-Pay Full Term | D197: 4444 | F197: 2397
C198: Hourly Labor Rate
C199: Site Visit
C201: * Verify customer current pricing prior to quote.
C202: **All rates and fees above reflect service for one (1) unit with the exception of Block of Time service.
C203: *Block of Time is available in 1 Year Term only and is priced as such no matter the term selection on this template.
B206: Servicing
C208: Is customer interested in a service plan? | D208: No
C210: If not, why?
B213: Quote Special Instructions:
C216: =Start_Here!E36 -> Terms and Conditions
C217: =Start_Here!E37 -> Ask your local sales rep for estimated lead times. Verify when placing order
C218: =Start_Here!E38 -> All orders subject to acceptance by Tennant Sales and Service Company, Minneapolis, Minnesota
C219: =Start_Here!E39 -> Prices subject to change without notice.
C220: =Start_Here!E40 -> Terms: Net 30 days. Subject to any applicable taxes.
C221: =Start_Here!E41 -> Freight: Machines and accessory orders delivered FOB shipping point Frt PPD & Add
C222: =Start_Here!E42 -> Parts, supplies, detergents and floor treating material orders delivered FOB
C223: =Start_Here!E43 -> shipping point Frt PPD
C224: =Start_Here!E44 -> All orders are subject to Tennant’s General Terms and Conditions available at http://www.tennantco.com/terms.
C225: =Start_Here!E45 -> Printed General Terms and Conditions are also available upon request.
C226: =Start_Here!E46 -> 0
E228: Quote Date : | G228: =Letter!$A$25 -> 2020-09-17
A229: Order Placement Information: To place your order, fill in PO# and customer signatures,
A230: call or fax to the numbers listed below. Customer Purchase Order is required.
A231: If information is missing, orders will be entered and held until all information is received.
C232: Customer Number | E232: Cust Grp 3
C233: =Start_Here!$C$25 -> 0 | E233: =Start_Here!$C$29 -> 0
C234: =Start_Here!$B$18 -> Who Owns the Machine? (Sold-To Info) (Please Verify)
A235: Company | C235: =Start_Here!$C$19 -> Company Name
A236: Address | C236: =Start_Here!$C$20 -> Address
C237: =Start_Here!$C$21 -> City, State Zip
A238: Name | C238: =Start_Here!$C$22 -> Contact Name
A239: Phone | C239: =Start_Here!$C$23 -> Contact Phone
C240: =Start_Here!$B$11 -> Where is the Machine Being Shipped? (Ship-To Info) (Please Verify)
A241: Company | C241: =Start_Here!$C$12 -> Company Name
A242: Address | C242: =Start_Here!$C$13 -> Address
C243: =Start_Here!$C$14 -> City, State Zip
A244: Name | C244: =Start_Here!$C$15 -> Contact Name
A245: Phone | C245: =Start_Here!$C$16 -> Contact Phone
C246: =Start_Here!$B$31 -> Shipping / Carrier Instructions: | E246: Order Special Instructions:
C247: =Start_Here!$C$32 -> 0
C249: Customer Purchase Order No.
C250: (please attach copy)
C253: Tax Exempt | E253: Yes
E254: No
C255: If Yes, attach a copy of your exemption certificate.
C257: Requested Delivery Date
C258: =Start_Here!$C$28 -> 0
C260: =Start_Here!$C$26 -> 0 | E260: =Start_Here!$C$27 -> 0
B261: 0 | C261: Authorized Buyer (please print) | E261: Phone Number
B264: 0 | C264: Authorized Buyer Signature
C266: =Start_Here!$C$41 -> Rep Name
C267: Tennant Representative
A269: Specialized Maintenance Equipment
A270: =Start_Here!$C$48 -> TENNANT · 10400 Clean Street · Eden Prairie, MN 55344 ·
A271: =Start_Here!$C$49 -> PHONE:800-553-8033 · FAX:763-513-2116

Sheet T581_T390_T290
A1: T581_T390_T290 | C1: =Start_Here!$C19 -> Company Name
A2: =SUM(G109) -> 0 | C2: =Start_Here!$C20 -> Address
C3: =Start_Here!$C21 -> City, State Zip
C4: =Start_Here!$C22 -> Contact Name
C5: =Start_Here!$C$41 -> Rep Name
C6: =Start_Here!$C$37 -> Tennant Sales and Service Company
C7: =Start_Here!$C$38 -> 10400 Clean Street
C8: =Start_Here!$C$39 -> Eden Prairie, MN 55344
C9: =Start_Here!$C$43 -> 800-553-8033 | E9: Quote Date : | G9: =Letter!$A$25 -> 2020-09-17
C11: =Help!C2 -> US Date Rev - 5/6/2025
C13: TENNANT COMPANY WARRANTY
C14: 3 YEARS OR 2000 HOURS - PARTS
C15: 2 YEARS - LABOR, 6 MONTHS TRAVEL
C16: 1 YEAR BATTERY CHARGER | E16: Quote Request Information
C17: 1 YEAR BATTERY PRO-RATED | G17: Fax (quote only)
C18: 10 YEARS ON DURAMERTM ROTOMOLD TANKS ALL MACHINES | G18: Mail (quote,lit, specs)
G19: Fax + Mail
E21: Primary Use
G22: Inside
G23: Outside
C24: Description | D24: Reference # | E24: US Price | F24: Qty. | G24: Extended Price
C26: T581 - Ride-On Micro-Scrubber - 150AH Wet Batteries | D26: 9022008 | E26: 13363 | G26: =F26*E26 -> 0 | P26: =VLOOKUP(D26,'MPF SAP Download PreConfigured'!C:E,3,FALSE) -> 12007
C27: 20in (50cm) single disk cleaning path, Linatex squeegee blades. Includes onboard charger, 2-12V batteries, pad driver, and 1 red pad. | F27: =SUM(F26) -> 0
F28: =SUM(F29) -> 0
C29: T581 - Ride-On Micro-Scrubber - 140AH Sealed AGM Batteries | D29: 9022009 | E29: 14564 | G29: =F29*E29 -> 0 | P29: =VLOOKUP(D29,'MPF SAP Download PreConfigured'!C:E,3,FALSE) -> 13087
C31: T581 - Ride-On Micro-Scrubber - 90AH Li-Ion Battery | D31: 9300510 | E31: 14988 | G31: =F31*E31 -> 0
C32: 20in (50cm) single disk cleaning path, Linatex squeegee blades. Includes onboard charger, 1-24V battery, pad driver, and 1 red pad. | F32: =SUM(F31) -> 0
C34: T581 - Ride-On Micro-Scrubber - 180AH Li-Ion Batteries | D34: 9300511 | E34: 17188 | G34: =F34*E34 -> 0
C35: 20in (50cm) single disk cleaning path, Linatex squeegee blades. Includes onboard charger, 2-24V batteries, pad driver, and 1 red pad. | F35: =SUM(F34) -> 0
F36: =SUM(F37) -> 0
C37: T581 - Ride-On Micro Scrubber - NO Batteries | D37: 1255470 | E37: 12066 | G37: =F37*E37 -> 0 | P37: =VLOOKUP(D37,'MPF SAP Download PreConfigured'!C:E,3,FALSE) -> 11601
F38: =SUM(F37) -> 0
C39: Shipped on skid.
C40: T581 - Self-Propel - Shipping Weight and Dimensions | D40: Skid w/Carton | F40: =SUM(F26:F37) -> 0
C41: Weight (w/ heaviest batteries) | D41: 520 lb / 236 kg | F41: =SUM(F40) -> 0
C42: Length | D42: 57 in / 145 cm | F42: =SUM(F41) -> 0
C43: Width | D43: 32 in / 82cm | F43: =SUM(F42) -> 0
C44: Height | D44: 45 in / 114.5 cm | F44: =SUM(F43) -> 0
C47: T390 - Walk Behind Scrubber -Self-Propel - 150AH Wet Batteries | D47: 9022006 | E47: 10806.6 | G47: =F47*E47 -> 0 | P47: =VLOOKUP(D47,'MPF SAP Download PreConfigured'!C:E,3,FALSE) -> 10292
C48: 28in (70cm), dual disk cleaning path, Linatex squeegee blades. Includes onboard charger, 2-12V batteries, pad driver, and 1 red pad. | F48: =SUM(F47) -> 0
F49: =SUM(F50) -> 0
C50: T390 - Walk Behind Scrubber -Self-Propel - 140AH Sealed AGM Batteries | D50: 9022007 | E50: 11938.5 | G50: =F50*E50 -> 0 | P50: =VLOOKUP(D50,'MPF SAP Download PreConfigured'!C:E,3,FALSE) -> 11370
F51: =SUM(F52) -> 0
C52: T390 - Walk Behind Scrubber - Self-Propel - NO Batteries | D52: 1255469 | E52: 10381.4 | G52: =F52*E52 -> 0 | P52: =VLOOKUP(D52,'MPF SAP Download PreConfigured'!C:E,3,FALSE) -> 9887
F53: =SUM(F50) -> 0
C54: Shipped on skid.
C55: T390 - Self-Propel - Shipping Weight and Dimensions | D55: Skid w/Carton | F55: =SUM(F47:F52) -> 0
C56: Weight (w/ heaviest batteries) | D56: 438 lb / 199 kg | F56: =SUM(F55) -> 0
C57: Length | D57: 50 in / 127 cm | F57: =SUM(F56) -> 0
C58: Width | D58: 33 in / 84cm | F58: =SUM(F57) -> 0
C59: Height | D59: 45 in / 114.5 cm | F59: =SUM(F58) -> 0
C62: T290 - Walk Behind Scrubber - Pad Assist - 130AH Wet Batteries | D62: 9022000 | E62: 6253 | G62: =F62*E62 -> 0 | P62: =VLOOKUP(D62,'MPF SAP Download PreConfigured'!C:E,3,FALSE) -> 6070
C63: 20in (50cm) single disk cleaning path, Linatex squeegee blades. Includes on-board charger, 2-12V batteries, pad driver, and 1 red pad. | F63: =SUM(F62) -> 0
F64: =SUM(F65) -> 0
C65: T290 - Walk Behind Scrubber - Pad Assist - 150AH Wet Batteries | D65: 9022001 | E65: 6385 | G65: =F65*E65 -> 0 | P65: =VLOOKUP(D65,'MPF SAP Download PreConfigured'!C:E,3,FALSE) -> 6199
F66: =SUM(F67) -> 0
C67: T290 - Walk Behind Scrubber -Pad Assist - 140AH Sealed AGM Batteries | D67: 9022002 | E67: 7497 | G67: =F67*E67 -> 0 | P67: =VLOOKUP(D67,'MPF SAP Download PreConfigured'!C:E,3,FALSE) -> 7278
F68: =SUM(F69) -> 0
C69: T290 - Walk Behind Scrubber - Pad Assist - NO Batteries | D69: 1255467 | E69: 5834 | G69: =F69*E69 -> 0 | P69: =VLOOKUP(D69,'MPF SAP Download PreConfigured'!C:E,3,FALSE) -> 5664
F71: =SUM(F72) -> 0
C72: T290 - Walk Behind Scrubber - Self-Propel - 130AH Wet Batteries | D72: 9022003 | E72: 7655 | G72: =F72*E72 -> 0 | P72: =VLOOKUP(D72,'MPF SAP Download PreConfigured'!C:E,3,FALSE) -> 7432
C73: 20in (50cm) single disk cleaning path, Linatex squeegee blades. Includes on-board charger, 2-12V batteries, pad driver, and 1 red pad. | F73: =SUM(F72) -> 0
F74: =SUM(F75) -> 0
C75: T290 - Walk Behind Scrubber - Self Propel - 150AH Wet Batteries | D75: 9022004 | E75: 7788 | G75: =F75*E75 -> 0 | P75: =VLOOKUP(D75,'MPF SAP Download PreConfigured'!C:E,3,FALSE) -> 7561
F76: =SUM(F77) -> 0
C77: T290 - Walk Behind Scrubber - Self Propel - 140AH Sealed AGM Batteries | D77: 9022005 | E77: 8900 | G77: =F77*E77 -> 0 | P77: =VLOOKUP(D77,'MPF SAP Download PreConfigured'!C:E,3,FALSE) -> 8640
F78: =SUM(F79) -> 0
C79: T290 - Walk Behind Scrubber - Self Propel - NO Batteries | D79: 1255468 | E79: 7237 | G79: =F79*E79 -> 0 | P79: =VLOOKUP(D79,'MPF SAP Download PreConfigured'!C:E,3,FALSE) -> 7026
C81: Shipped on skid. | F81: =SUM(F62:F69) -> 0 | G81: =IFERROR(IFERROR(VLOOKUP(#REF!,Surcharge!A:B,2,FALSE)*E81, VLOOKUP(#REF! & "",Surcharge!A:B,2,FALSE)*E81), "") ->  | L81: =SUM(E81) -> 0 | M81: Surcharge Qty
C82: T290 - Pad Assist - Shipping Weight and Dimensions | D82: Skid w/Carton | F82: =SUM(F81) -> 0
C83: Weight | D83: 390 lb / 177 kg | F83: =SUM(F82) -> 0
C84: Length | D84: 50 in / 127 cm | F84: =SUM(F83) -> 0
C85: Width | D85: 27 in / 69cm | F85: =SUM(F84) -> 0
C86: Height | D86: 45 in / 114.5 cm | F86: =SUM(F85) -> 0
C88: T290 - Self-Propel - Shipping Weight and Dimensions | F88: =SUM(F72:F79) -> 0
C89: Weight | D89: 401 lb / 182 kg | F89: =SUM(F88) -> 0
C90: Length | D90: 50 in / 127 cm | F90: =SUM(F89) -> 0
C91: Width | D91: 27 in / 69cm | F91: =SUM(F90) -> 0
C92: Height | D92: 45 in / 114.5 cm | F92: =SUM(F91) -> 0
F94: =SUM(#REF!) -> 
E95: =ROUND(SUM(G26:G94), 0) -> 0 | F95: =SUM(E96) -> 0
D96: Machine Subtotal | E96: =ROUND(SUM(G26:G94), 0) -> 0 | F96: =F95 -> 0
B97: Discounts | F97: =SUM(F98) -> 0
F98: =SUM(F99:F102) -> 0
D99: Discount % | F99: =IF(E99 <> "", 1, 0) -> 0 | G99: =IF(F99*(E99*0.01)*E95 < 0, F99*(E99*0.01)*E95, -(F99*(E99*0.01)*E95)) -> 0
D100: Discount $ | F100: =IF(E100 <> "", 1, 0) -> 0 | G100: =IF(F100*E100 < 0, F100*E100, -(F100*E100)) -> 0
D101: Discount $ | F101: =IF(E101 <> "", 1, 0) -> 0 | G101: =IF(F101*E101 < 0, F101*E101, -(F101*E101)) -> 0
D102: Discount $ | F102: =IF(E102 <> "", 1, 0) -> 0 | G102: =IF(F102*E102 < 0, F102*E102, -(F102*E102)) -> 0
D103: Discount Total | E103: =SUM(G99:G102) -> 0 | F103: =SUM(E103) -> 0
F104: =#REF! -> 
F105: =F104 -> 
C106: Prepaid and Add | D106: Freight | F106: =IF(E106 <> "", 1, 0) -> 0 | G106: =F106*E106 -> 0
C107: Subject to all applicable taxes | D107: Tax | F107: =IF(E107 <> "", 1, 0) -> 0 | G107: =F107*E107 -> 0
F108: =SUM(F109) -> 0
D109: MACHINE TOTAL* | F109: =SUM(G109) -> 0 | G109: =SUM(G26:G107) -> 0 | N109: This goes to "My Documents"
B110: Financing | G110: =G109 -> 0
C112: Is customer interested in financing? | D112: No
C114: If not, why?
C117: First Western Equipment Finance - Leasing Calculation Option: | D117: Option 1 | F117: Option 2 | J117: =Financing!A38 -> Rates 2025 - Rev. 5/6/2025
D118: Monthly Payment | E118: Cost Per Day | F118: Monthly Payment | G118: Cost Per Day | J118: =Financing!A39 -> “Blank Payment Amounts Indicate The Financing Option Or Purchase Options Selected Are Not
C119: Purchase Option: | D119: FWEF: $1 Buyout Lease | F119: FWEF: Municipal Lease | J119: =Financing!A40 -> Applicable Or The Machine Total Is Below The Minimum Amount For The Selected Vendor”
C120: 24 Months | D120: 0 | E120: 0 | F120: 0 | G120: 0 | J120: =Financing!A41 -> "Quoted monthly payments are estimates only and are based on a certain level of credit rating.
C121: 30 Months | D121: 0 | E121: 0 | F121: 0 | G121: 0 | J121: =Financing!A42 -> Actual monthly payments may be higher depending on your credit rating."
C122: 36 Months | D122: 0 | E122: 0 | F122: 0 | G122: 0 | J122: =Financing!A43 -> “Financing rates do not include Pre-Paid Service”
C123: 48 Months | D123: 0 | E123: 0 | F123: 0 | G123: 0 | I123: =Financing!A44 -> 0
D125: Benefits of Equipment Financing:
D126: • Spreads out investment over time. | F126: • Keep current with latest technology.
D127: • Preserve capital. | F127: • Service and parts bundling available.
D128: • Low monthly payment. | F128: • Pay for labor savings as you go.
C131: Bundled Offerings | D131: Flexclean – Fair Market Value | F131: Flexclean - $1 Buyout
C132: FlexClean: | D132: 36 Month Term | F132: 36 Month Term | I132: No | J132: AB Brushes
C133: Hours included per Month: | D133: Gold | E133: Silver | F133: Gold | G133: Silver | H133: Check
C134: < 30/mo. (Avg. 1hr./day) | I134: =FlexCleanCalc!$A21 -> “FlexClean monthly rates include payment for both machine and service.”
C135: < 60/mo. (Avg. 2hrs./day)
C136: < 90/mo. (Avg. 3hrs./day)
C137: *This value assumes one service contract regardless of the number of UNITS included in the quote
C140: Bundled Offerings | D140: Flexclean – Fair Market Value | F140: Flexclean - $1 Buyout
C141: FlexClean 2: | D141: 48 Month Term | F141: 48 Month Term
C142: Hours included per Month: | D142: Gold | E142: Silver | F142: Gold | G142: Silver
C143: < 30/mo. (Avg. 1hr./day)
C144: < 60/mo. (Avg. 2hrs./day)
C145: < 90/mo. (Avg. 3hrs./day)
C146: *This value assumes one service contract regardless of the number of UNITS included in the quote
C148: Bundled Offerings | D148: Flexclean – Fair Market Value | F148: Flexclean - $1 Buyout
C149: FlexClean 3: | D149: 60 Month Term | F149: 60 Month Term
C150: Hours included per Month: | D150: Gold | E150: Silver | F150: Gold | G150: Silver
C151: < 30/mo. (Avg. 1hr./day)
C152: < 60/mo. (Avg. 2hrs./day)
C153: < 90/mo. (Avg. 3hrs./day)
C154: *This value assumes one service contract regardless of the number of UNITS included in the quote
B156: TennantTrue
C158: Is customer interested in service program? | D158: Yes | E158: *State/County selection required for TennantTrue service options
C160: If not, why?
C162: Term: | D162: 36 | F162: AB Brushes | G162: No
C163: Monthly machine usage (hrs): | D163: < 30/mo. (Avg. 1hr./day)
C165: TennantTrue: | D165: Gold Contract | F165: Silver Contract
C166: Per Visit | F166: 425
C167: Monthly | D167: 129 | F167: 69
C168: Annually | F168: 816
C169: Pre-Pay Full Term | D169: 4444 | F169: 2397
C170: Hourly Labor Rate
C171: Site Visit
C173: * Verify customer current pricing prior to quote.
C174: **All rates and fees above reflect service for one (1) unit with the exception of Block of Time service.
C175: *Block of Time is available in 1 Year Term only and is priced as such no matter the term selection on this template.
B178: Servicing
C180: Is customer interested in a service plan? | D180: No
C182: If not, why?
B185: Quote Special Instructions:
C188: =Start_Here!E36 -> Terms and Conditions
C189: =Start_Here!E37 -> Ask your local sales rep for estimated lead times. Verify when placing order
C190: =Start_Here!E38 -> All orders subject to acceptance by Tennant Sales and Service Company, Minneapolis, Minnesota
C191: =Start_Here!E39 -> Prices subject to change without notice.
C192: =Start_Here!E40 -> Terms: Net 30 days. Subject to any applicable taxes.
C193: =Start_Here!E41 -> Freight: Machines and accessory orders delivered FOB shipping point Frt PPD & Add
C194: =Start_Here!E42 -> Parts, supplies, detergents and floor treating material orders delivered FOB
C195: =Start_Here!E43 -> shipping point Frt PPD
C196: =Start_Here!E44 -> All orders are subject to Tennant’s General Terms and Conditions available at http://www.tennantco.com/terms.
C197: =Start_Here!E45 -> Printed General Terms and Conditions are also available upon request.
C198: =Start_Here!E46 -> 0
E200: Quote Date : | G200: =Letter!$A$25 -> 2020-09-17
A201: Order Placement Information: To place your order, fill in PO# and customer signatures,
A202: call or fax to the numbers listed below. Customer Purchase Order is required.
A203: If information is missing, orders will be entered and held until all information is received.
C204: Customer Number | E204: Cust Grp 3
C205: =Start_Here!$C$25 -> 0 | E205: =Start_Here!$C$29 -> 0
C206: =Start_Here!$B$18 -> Who Owns the Machine? (Sold-To Info) (Please Verify)
A207: Company | C207: =Start_Here!$C$19 -> Company Name
A208: Address | C208: =Start_Here!$C$20 -> Address
C209: =Start_Here!$C$21 -> City, State Zip
A210: Name | C210: =Start_Here!$C$22 -> Contact Name
A211: Phone | C211: =Start_Here!$C$23 -> Contact Phone
C212: =Start_Here!$B$11 -> Where is the Machine Being Shipped? (Ship-To Info) (Please Verify)
A213: Company | C213: =Start_Here!$C$12 -> Company Name
A214: Address | C214: =Start_Here!$C$13 -> Address
C215: =Start_Here!$C$14 -> City, State Zip
A216: Name | C216: =Start_Here!$C$15 -> Contact Name
A217: Phone | C217: =Start_Here!$C$16 -> Contact Phone
C218: =Start_Here!$B$31 -> Shipping / Carrier Instructions: | E218: Order Special Instructions:
C219: =Start_Here!$C$32 -> 0
C221: Customer Purchase Order No.
C222: (please attach copy)
C225: Tax Exempt | E225: Yes
E226: No
C227: If Yes, attach a copy of your exemption certificate.
C229: Requested Delivery Date
C230: =Start_Here!$C$28 -> 0
C232: =Start_Here!$C$26 -> 0 | E232: =Start_Here!$C$27 -> 0
B233: 0 | C233: Authorized Buyer (please print) | E233: Phone Number
B236: 0 | C236: Authorized Buyer Signature
C238: =Start_Here!$C$41 -> Rep Name
C239: Tennant Representative
A241: Specialized Maintenance Equipment
A242: =Start_Here!$C$48 -> TENNANT · 10400 Clean Street · Eden Prairie, MN 55344 ·
A243: =Start_Here!$C$49 -> PHONE:800-553-8033 · FAX:763-513-2116

Sheet MPF SAP Download PreConfigured (hidden)
A1: Master Price File (MPF) - PreConfigured Machines
A3: Download Date: | C3: 2022-11-01
A4: Price Adj Effective Date: | C4: 2023-01-01
A5: Table name = | C5: MPF_Table_PreConfigured (Columns C, D & E)
A7: Product Hierarchy | B7: Description | C7: Material | D7: Material Description | E7: 2023 List
A8: 300501 | B8: 2180SR | C8: 9017914 | D8: SCRUBBER [2180SR 50CM 140AH AGM NA/CCA] | E8: 10788
A9: 301003 | B9: CS5 | C9: 1251580 | D9: SCRUBBER [CS5 BATTERY NAM] | E9: 3017
A10: 301004135 | B10: CS16 | C10: LPTB03328 | D10: SCRUBBER [CS16 BATTERY NA] | E10: 4246
A11: 301006 | B11: iMOP Lite | C11: 9022310 | D11: I-MOP LITE W/EXTRA BATTERY | E11: 5450
A12: 301006 | B12: iMOP Lite | C12: 1263271 | D12: SCRUBBER, [I-MOP LITE W/BATT & CHRGR] | E12: 4500
A13: 302404 | B13: S8 | C13: 9001401 | D13: SWEEPER, 28INCH, 12VDC, GEL, TJ | E13: 5052
A14: 302508 | B14: S6 | C14: 1251268 | D14: SWEEPER [S6 NA EX W/ BATT, CORD] | E14: 3291
A15: 302509 | B15: Scout 6 | C15: 1251270 | D15: SWEEPER [SCOUT 6 W/ BATT, CORD] | E15: 3291
A16: 302509 | B16: Scout 6 | C16: 1251271 | D16: SWEEPER [SCOUT 6 W /IRIS] | E16: 3291
A17: 302510 | B17: S7 | C17: 1251272 | D17: SWEEPER [S7 NA W/ BATT, CORD] | E17: 6578
A18: 302511 | B18: Scout 7 | C18: 1251274 | D18: SWEEPER [SCOUT 7 W BATT, CORD] | E18: 6578
A19: 302601 | B19: SS10 | C19: 9003573-G | D19: SWEEPER, NA [S10] | E19: 15948
A20: 302601 | B20: SS10 | C20: MMS10E-007700 | D20: MODEL MS10 SWEEPER, ELECTRIC | E20: 10312
A21: 302601 | B21: SS10 | C21: MMS10E-008697 | D21: SWEEPER, NA, FI [S10] | E21: 10514
A22: 302601 | B22: SS10 | C22: MMS10E-008752 | D22: SWEEPER, NA, FI [S10] | E22: 10514
A23: 303050 | B23: 6100 | C23: 9006755-G | D23: MODEL 6100 RIDER SWEEPER [FINAL ASSY] | E23: 17706
A24: 303050 | B24: 6100 | C24: MV-6100-0005 | D24: MODEL 6100 RIDER SWEEPER | E24: 19224
A25: 303050 | B25: 6100 | C25: MV-6100-0008 | D25: SWEEPER, 6100, 180AH, PW [ABM] | E25: 24725
A26: 304008 | B26: S16L - Low Dump | C26: MS16L-1009 | D26: MODEL S16 SWEEPER-LOW DUMP | E26: 32751
A27: 304008 | B27: S16L - Low Dump | C27: MS16L-1007 | D27: MODEL S16 SWEEPER-LOW DUMP | E27: 32751
A28: 304053 | B28: S20 | C28: MS20-1781 | D28: MODEL S20 SWEEPER | E28: 36101
A29: 304053 | B29: S20 | C29: MS20-6716 | D29: MODEL S20 SWEEPER | E29: 37962
A30: 304215 | B30: S30 | C30: MS30-1414 | D30: MODEL S30 RIDER SWEEPER | E30: 35465
A31: 304215 | B31: S30 | C31: MS30-1617 | D31: MODEL S30 RIDER SWEEPER | E31: 37268
A32: 304215 | B32: S30 | C32: MS30-3452 | D32: MODEL S30 RIDER SWEEPER | E32: 28852
A33: 304215 | B33: S30 | C33: MS30-5700 | D33: MODEL S30 RIDER SWEEPER | E33: 43958
A34: 304215 | B34: S30 | C34: MS30-1766 | D34: MODEL S30 RIDER SWEEPER | E34: 30897
A35: 306200 | B35: T1 | C35: 9004195 | D35: SCRUBBER, 38CM, 11L, 230VAC [T1] | E35: 4603
A36: 306200 | B36: T1 | C36: 9008225 | D36: SCRUBBER, 38CM, 11L, 120VAC [T1STLYSTMR] | E36: 4507
A37: 306200 | B37: T1 | C37: 9004191 | D37: SCRUBBER, 38CM, 11L, 120VAC [T1] | E37: 4760
A38: 306200 | B38: T1 | C38: 9004191-H | D38: SCRUBBER, 38CM, 11L, 120VAC [T1] | E38: 4760
A39: 306201 | B39: Speed Scrub 15" (3gal, Cord Elec Cyli | C39: 9004200 | D39: SCRUBBER, 38CM, 11L, 120VAC [SS-15] | E39: 4760
A40: 306201 | B40: Speed Scrub 15" (3gal, Cord Elec Cyli | C40: 9004200-H | D40: SCRUBBER, 38CM, 11L, 120VAC [SS-15"] | E40: 4760
A41: 306202 | B41: T1B | C41: 9015201 | D41: SCRUBBER, 38CM, 11L, 12VDC[T1B COST Li] | E41: 7896
A42: 306202 | B42: T1B | C42: 9008635 | D42: SCRUBBER, 38CM, 11L, 12VDC [T1B NA, AGM] | E42: 6150
A43: 306202 | B43: T1B | C43: 9016537 | D43: SCRUBBER, 38CM, 11L, 12VDC [T1B AGM IRIS | E43: 7269
A44: 306202 | B44: T1B | C44: 9016849 | D44: SCRUBBER, 38CM, 11L, 12VDC [T1B AGMCASEY | E44: 6287
A45: 306202 | B45: T1B | C45: 9008638 | D45: SCRUBBER, 38CM, 11L, 12VDC [T1B NA, Li] | E45: 7936
A46: 306202 | B46: T1B | C46: 9008636 | D46: SCRUBBER, 38CM, 11L, 12VDC [T1B EX, AGM] | E46: 6150
A47: 306203 | B47: SPEEDSCRUB BATT 15" | C47: 9008637 | D47: SCRUBBER, 38CM, 11L, 12VDC [SS-15", AGM] | E47: 6150
A48: 306203 | B48: SPEEDSCRUB BATT 15" | C48: 9008640 | D48: SCRUBBER, 2 GAL, Li BATT [NOB SS15] | E48: 7936
A49: 306300 | B49: T2 | C49: 9008727 | D49: SCRUBBER, 43CM, PUSH [T2, NA W/O CHRGR] | E49: 385
A50: 306300 | B50: T2 | C50: MV-T2-0008 | D50: SCRUBBER, 43CM, PUSH [T2, NA GEL W/BRSH] | E50: 7798
A51: 306300 | B51: T2 | C51: MV-T2-0001 | D51: SCRUBBER, 43CM, PUSH [T2, NA] | E51: 8300
A52: 306300 | B52: T2 | C52: MV-T2-0010 | D52: SCRUBBER, 430D, CNV, 105AH, OBC [US PW] | E52: 7991
A53: 306304 | B53: WB-20 20" Autoscrub | C53: 9002791 | D53: SCRUBBER, 20INCH, 24VDC[WB-20B CTX CMPT] | E53: 6939
A54: 306307 | B54: T300 | C54: MV-T300-0004 | D54: SCRUBBER, 500D, DR, MEM [T300D NA] | E54: 11158
A55: 306307 | B55: T300 | C55: MV-T300-0003 | D55: SCRUBBER, 500D, PUSH, MEM [T300D NA] | E55: 9532
A56: 306307 | B56: T300 | C56: MV-T300-0005 | D56: SCRUBBER, 500D, DR, MEM, ECNC [T300D NA] | E56: 13233
A57: 306307 | B57: T300 | C57: MV-T300-0001 | D57: SCRUBBER, 430D, PUSH, MEM [T300D NA] | E57: 8481
A58: 306307 | B58: T300 | C58: MV-T300-0006 | D58: SCRUBBER, 500D, DR, PRO [T300D NA] | E58: 11787
A59: 306307 | B59: T300 | C59: MV-T300-0008 | D59: SCRUBBER, 600D, DR, MEM [T300D NA] | E59: 12684
A60: 306307 | B60: T300 | C60: MV-T300-0007 | D60: SCRUBBER, 500D, DR, PRO, ECNC [T300D NA] | E60: 13862
A61: 306307 | B61: T300 | C61: MV-T300-0080 | D61: SCRUBBER, 500D, DR, MP, ECNC [US] | E61: 12958
A62: 306307 | B62: T300 | C62: MV-T300-0123 | D62: SCRUBBER, 500D, DR, ECNC [T300D,ARMK] PW | E62: 15557
A63: 306307 | B63: T300 | C63: MV-T300-0075 | D63: SCRUBBER, 500O, DR, MEM,ECNC,150A[US PW] | E63: 14296
A64: 306307 | B64: T300 | C64: MV-T300-0119 | D64: SCRUBBER,500O,DR,CNV,150AH,PW [T300 ABM] | E64: 11880
A65: 306307 | B65: T300 | C65: MV-T300-0074 | D65: SCRUBBER, 500O, DR, MEM,CNV,150AH[US PW] | E65: 11608
A66: 306307 | B66: T300 | C66: MV-T300-0118 | D66: SCRUBBER,500O,DR,ECNC,140AH,PW[T300 ABM] | E66: 14596
A67: 306307 | B67: T300 | C67: MV-T300-0046 | D67: SCRUBBER, 500D, DR, MEM, ECNC,AGM[T300D] | E67: 14316
A68: 306307 | B68: T300 | C68: MV-T300-0069 | D68: SCRUBBER, 500D, DR, MEM,ECNC,150A[US PW] | E68: 13517
A69: 306307 | B69: T300 | C69: MV-T300-0109 | D69: SCRUBBER,600D,DR,ECNC,150AH,PW[T300 ABM] | E69: 14908
A70: 306307 | B70: T300 | C70: MV-T300-0110 | D70: SCRUBBER,600D,DR,ECNC,140AH,PW[T300 ABM] | E70: 15389
A71: 306307 | B71: T300 | C71: MV-T300-0157 | D71: SCRUBBER, 430D, MEM, 130AH, OBC [US] | E71: 11710
A72: 306307 | B72: T300 | C72: MV-T300-0010 | D72: SCRUBBER, 500O, DR, MEM [T300 O NA] | E72: 11906
A73: 306307 | B73: T300 | C73: MV-T300-0077 | D73: SCRUBBER, 500D, P, MP, CNV,130AH[US PW] | E73: 8942
A74: 306307 | B74: T300 | C74: MV-T300-0120 | D74: SCRUBBER,500O,DR,CNV,140AH,PW [T300 ABM] | E74: 12440
A75: 306307 | B75: T300 | C75: MV-T300-0134 | D75: SCRUBBER,500D, DR, ECNC [T300D,ARMK]PW Y | E75: 15345
A76: 306307 | B76: T300 | C76: MV-T300-0011 | D76: SCRUBBER, 500O, DR, MEM, ECNC[T300 O NA] | E76: 13982
A77: 306307 | B77: T300 | C77: MV-T300-0068 | D77: SCRUBBER, 500D, DR, MEM,CNV,150AH[US PW] | E77: 10860
A78: 306307 | B78: T300 | C78: MV-T300-0091 | D78: SCRUBBER, 500D,DR, MEM, ECNC[T300D]US PW | E78: 13953
A79: 306307 | B79: T300 | C79: MV-T300-0114 | D79: SCRUBBER,500D,DR,ECNC,140AH,PW[T300 ABM] | E79: 13932
A80: 306307 | B80: T300 | C80: MV-T300-0115 | D80: SCRUBBER,500D,DR,CNV,150AH,PW [T300 ABM] | E80: 11215
A81: 306307 | B81: T300 | C81: MV-T300-0048 | D81: SCRUBBER, 500D, DR, ECNC[T300D, ARMKCB] | E81: 14586
A82: 306307 | B82: T300 | C82: MV-T300-0070 | D82: SCRUBBER, 500D, DR, PRO,CNV,150AH(US PW) | E82: 11488
A83: 306307 | B83: T300 | C83: MV-T300-0111 | D83: SCRUBBER,600D,DR,CNV,150AH,PW [T300 ABM] | E83: 12671
A84: 306307 | B84: T300 | C84: MV-T300-0067 | D84: SCRUBBER, 500D, P, MEM, CNV,130AH[US PW] | E84: 9234
A85: 306307 | B85: T300 | C85: MV-T300-0072 | D85: SCRUBBER, 600D, DR, MEM,CNV,150AH[US PW] | E85: 12385
A86: 306307 | B86: T300 | C86: MV-T300-0116 | D86: SCRUBBER,500D,DR,CNV,140AH,PW [T300 ABM] | E86: 11891
A87: 306307 | B87: T300 | C87: MV-T300-0066 | D87: SCRUBBER, 430D, P, MEM, CNV,130AH[US PW] | E87: 8184
A88: 306307 | B88: T300 | C88: MV-T300-0113 | D88: SCRUBBER,500D,DR,ECNC,150AH,PW[T300 ABM] | E88: 13371
A89: 306307 | B89: T300 | C89: MV-T300-0009 | D89: SCRUBBER, 600D, DR, PRO, ECNC [T300 NA] | E89: 15394
A90: 306307 | B90: T300 | C90: MV-T300-0079 | D90: SCRUBBER, 500D, P, MP, CNV, 130AH [US] | E90: 9241
A91: 306307 | B91: T300 | C91: MV-T300-0078 | D91: SCRUBBER, 500D, DR, MP,ECNC,150A[US PW] | E91: 12661
A92: 306307 | B92: T300 | C92: MV-T300-0135 | D92: SCRUBBER, 500D, DR, ECNC[T300D, ARMKCB]Y | E92: 15640
A93: 306307 | B93: T300 | C93: MV-T300-0073 | D93: SCRUBBER, 600D, DR, PRO,ECNC,150AH[USPW] | E93: 15677
A94: 306307 | B94: T300 | C94: MV-T300-0117 | D94: SCRUBBER,500O,DR,ECNC,150AH,PW[T300 ABM] | E94: 14035
A95: 306307 | B95: T300 | C95: MV-T300-0112 | D95: SCRUBBER,600D,DR,CNV,140AH,PW [T300 ABM] | E95: 13233
A96: 306308 | B96: T300e | C96: MV-T300E-0006 | D96: SCRUBBER, 500D, DR, IC, ECNC[T300e D NA] | E96: 12087
A97: 306308 | B97: T300e | C97: MV-T300E-0027 | D97: SCRUBBER, 500O, DR, ECNC [T300e O WM] | E97: 13719
A98: 306308 | B98: T300e | C98: MV-T300E-0010 | D98: SCRUBBER, 500O, DR, ECNC [T300e O NA] | E98: 12323
A99: 306308 | B99: T300e | C99: MV-T300E-0009 | D99: SCRUBBER, 500O, DR [T300e O NA] | E99: 10248
A100: 306308 | B100: T300e | C100: MV-T300E-0002 | D100: SCRUBBER, 430D, PUSH [T300e D ECNC NA] | E100: 8950
A101: 306308 | B101: T300e | C101: MV-T300E-0088 | D101: SCRUBBER,EX,500D,PUSH,CNV, AGM SKD [US] | E101: 9599
A102: 306308 | B102: T300e | C102: MV-T300E-0007 | D102: SCRUBBER, 600D, DR [T300e D NA] | E102: 9998
A103: 306308 | B103: T300e | C103: MV-T300E-0004 | D103: SCRUBBER, 500D, PUSH, IC,ECN[T300e D NA] | E103: 10250
A104: 306308 | B104: T300e | C104: MV-T300E-0064 | D104: SCRUBBER 500D, DR,150AH,ECNC,SUNBELT[PW] | E104: 11446
A105: 306308 | B105: T300e | C105: MV-T300E-0087 | D105: SCRUBBER,EX,500D,PUSH,CNV,130AH SKD [US] | E105: 8070
A106: 306308 | B106: T300e | C106: MV-T300E-0089 | D106: SCRUBBER,EX,500D,PUSH,CNV,130AH PAD [US] | E106: 7773
A107: 306308 | B107: T300e | C107: MV-T300E-0003 | D107: SCRUBBER, 500D, PUSH [T300e D NA] | E107: 7699
A108: 306308 | B108: T300e | C108: MV-T300E-0090 | D108: SCRUBBER, EX,500D,PUSH,CNV, AGM PAD [US] | E108: 9001
A109: 306308 | B109: T300e | C109: MV-T300E-0005 | D109: SCRUBBER, 500D,DR,IC,130AH [T300e D NA] | E109: 10011
A110: 306308 | B110: T300e | C110: MV-T300E-0008 | D110: SCRUBBER, 600D, DR, IC, ECNC[T300e D NA] | E110: 12816
A111: 306308 | B111: T300e | C111: MV-T300E-0065 | D111: SCRUBBER 500O, DR,150AH ECNC,SUNBELT[PW] | E111: 12014
A112: 306308 | B112: T300e | C112: MV-T300E-0046 | D112: SCRUBBER, 500D, DR, IC,ECNC,130AH[US PW] | E112: 11793
A113: 306308 | B113: T300e | C113: MV-T300E-0047 | D113: SCRUBBER, 600D, DR, CNV, 150AH [US PW] | E113: 9700
A114: 306308 | B114: T300e | C114: MV-T300E-0043 | D114: SCRUBBER, 430D, PUSH, CNV, 130AH [US PW] | E114: 6577
A115: 306308 | B115: T300e | C115: MV-T300E-0066 | D115: SCRUBBER,500D,PUSH,IC,150AH, ECNC, [PW] | E115: 10002
A116: 306308 | B116: T300e | C116: MV-T300E-0070 | D116: SCRUBBER 500O, DR,150AH,CNV,SUNBELT | E116: 10435
A117: 306308 | B117: T300e | C117: MV-T300E-0045 | D117: SCRUBBER, 500D, DR, IC, CNV,130AH[US PW] | E117: 9714
A118: 306308 | B118: T300e | C118: MV-T300E-0048 | D118: SCRUBBER, 500O, DR, ECNC, 150AH [US PW] | E118: 12026
A119: 306308 | B119: T300e | C119: MV-T300E-0083 | D119: SCRUBBER 500D, DR, 150AH, CNV, IRIS, SB | E119: 11192
A120: 306308 | B120: T300e | C120: MV-T300E-0044 | D120: SCRUBBER, 500D, PUSH, CNV, 130AH [US PW] | E120: 7401
A121: 306309 | B121: SS300 | C121: MV-SS300-0003 | D121: SCRUBBER, 500D, PUSH, 130AH [SS300D] | E121: 7699
A122: 306309 | B122: SS300 | C122: MV-SS300-0006 | D122: SCRUBBER, 500D, DR, IC,ECN,130AH[SS300D] | E122: 12081
A123: 306309 | B123: SS300 | C123: MV-SS300-0005 | D123: SCRUBBER, 500D, DR, IC, 130AH [SS300D] | E123: 10005
A124: 306309 | B124: SS300 | C124: MV-SS300-0010 | D124: SCRUBBER, 500O, DR, ECNC, 150AH[SS300 O] | E124: 12316
A125: 306309 | B125: SS300 | C125: MV-SS300-0008 | D125: SCRUBBER, 600D, DR, IC,ECNC,150A[SS300D] | E125: 12816
A126: 306309 | B126: SS300 | C126: MV-SS300-0012 | D126: SCRUBBER, 430D, P, IC,ECNC,130AH[SS300D] | E126: 9284
A127: 306309 | B127: SS300 | C127: MV-SS300-0007 | D127: SCRUBBER, 600D, DR, 150AH [SS300D] | E127: 9998
A128: 306309 | B128: SS300 | C128: MV-SS300-0001 | D128: SCRUBBER, 430D, PUSH, 130AH [SS300D] | E128: 6876
A129: 306309 | B129: SS300 | C129: MV-SS300-0009 | D129: SCRUBBER, 500O, DR, 150AH [SS300 O] | E129: 10248
A130: 306309 | B130: SS300 | C130: MV-SS300-0002 | D130: SCRUBBER, 430D, PUSH, ECNC,130AH[SS300D] | E130: 8954
A131: 306309 | B131: SS300 | C131: MV-SS300-0020 | D131: SCRUBBER, 600D, DR, IC,ECNC,150AH[US PW] | E131: 12521
A132: 306309 | B132: SS300 | C132: MV-SS300-0015 | D132: SCRUBBER, 430D, PUSH, CNV, 130AH [US PW] | E132: 6579
A133: 306309 | B133: SS300 | C133: MV-SS300-0021 | D133: SCRUBBER, 500O, DR, ECNC, 150AH [US PW] | E133: 12026
A134: 306309 | B134: SS300 | C134: MV-SS300-0004 | D134: SCRUBBER, 500D, P, IC,ECNC,130AH[SS300D] | E134: 10215
A135: 306309 | B135: SS300 | C135: MV-SS300-0016 | D135: SCRUBBER, 500D, PUSH, CNV, 130AH [US PW] | E135: 7398
A136: 306309 | B136: SS300 | C136: MV-SS300-0024 | D136: SCRUBBER, 500D, PUSH, 130AH [SS300D] | E136: 7695
A137: 306309 | B137: SS300 | C137: MV-SS300-0018 | D137: SCRUBBER, 500D, DR, IC,ECNC,130AH[US PW] | E137: 11785
A138: 306309 | B138: SS300 | C138: MV-SS300-0025 | D138: SCRUBBER, 500D, DR, IC, 130AH [SS300D] | E138: 8094
A139: 306309 | B139: SS300 | C139: MV-SS300-0017 | D139: SCRUBBER, 500D, DR, IC, CNV,130AH[US PW] | E139: 9700
A140: 306312 | B140: A250 alfa | C140: 9018402 | D140: SCRUBBER [A250 50CM PAD AST SA W/CHRGR] | E140: 6481
A141: 306327 | B141: T290 | C141: 1255468 | D141: SCRUBBER [T290 50CM, W/O BATT, NA] | E141: 7026
A142: 306327 | B142: T290 | C142: 9022005 | D142: SCRUBBER [T290 50CM, 140AH AGM, NA] | E142: 8640
A143: 306327 | B143: T290 | C143: 9022002 | D143: SCRUBBER [T290 50CM, PA, 140AH AGM, NA] | E143: 7278
A144: 306327 | B144: T290 | C144: 9022004 | D144: SCRUBBER [T290 50CM, 150AH WET, NA] | E144: 7561
A145: 306327 | B145: T290 | C145: 9022000 | D145: SCRUBBER [T290 50CM, PA, 130AH WET, NA] | E145: 6070
A146: 306327 | B146: T290 | C146: 1255467 | D146: SCRUBBER [T290 50CM, PA, W/O BATT, NA] | E146: 5664
A147: 306327 | B147: T290 | C147: 9022001 | D147: SCRUBBER [T290 50CM, PA, 150AH WET, NA] | E147: 6199
A148: 306327 | B148: T290 | C148: 9022003 | D148: SCRUBBER [T290 50CM, 130AH WET, NA] | E148: 7432
A149: 306401 | B149: SS5 | C149: 9002587-G | D149: SCRUBBER, 600MM, DISK, CHRGR [SS] | E149: 10926
A150: 306407 | B150: T500 | C150: MV-T500-0048 | D150: SCRUBBER,T500,700O,EC,260AH,SF,PW [ABM] | E150: 22329
A151: 306407 | B151: T500 | C151: MV-T500-0004 | D151: SCRUBBER,T500, 700O, MEM, 225AH, OBC, PW | E151: 18599
A152: 306407 | B152: T500 | C152: MV-T500-0009 | D152: SCRUBBER,T500,700O,MEM,ECNC,225AH,OBC,PW | E152: 21440
A153: 306407 | B153: T500 | C153: MV-T500-0049 | D153: SCRUBBER,T500,700O,EC,220AH,OBC,PW [ABM] | E153: 22531
A154: 306407 | B154: T500 | C154: MV-T500-0050 | D154: SCRUBBER,T500,700O,CNV,260AH,SF,PW [ABM] | E154: 19405
A155: 306407 | B155: T500 | C155: MV-T500-0045 | D155: SCRUBBER,T500,700D,EC,220AH,OBC,PW [ABM] | E155: 21724
A156: 306407 | B156: T500 | C156: MV-T500-0044 | D156: SCRUBBER,T500, 700D,EC,260AH,SF,PW [ABM] | E156: 21519
A157: 306407 | B157: T500 | C157: MV-T500-0005 | D157: SCRUBBER,T500, 700C, MEM, 225AH, OBC, PW | E157: 19070
A158: 306407 | B158: T500 | C158: MV-T500-0010 | D158: SCRUBBER,T500,700C,MEM,ECNC,225AH,OBC,PW | E158: 21911
A159: 306407 | B159: T500 | C159: MV-T500-0051 | D159: SCRUBBER,T500,700O,CNV,220AH,OBC,PW [ABM | E159: 19608
A160: 306407 | B160: T500 | C160: MV-T500-0060 | D160: SCRUBBER,T500,700D, MEM, CNV,220AH [SBT] | E160: 18910
A161: 306407 | B161: T500 | C161: MV-T500-0046 | D161: SCRUBBER,T500,700D,CNV,260AH,SF,PW [ABM] | E161: 18567
A162: 306407 | B162: T500 | C162: MV-T500-0001 | D162: SCRUBBER,T500, 650D, MEM, 225AH, OBC, PW | E162: 16562
A163: 306407 | B163: T500 | C163: MV-T500-0002 | D163: SCRUBBER,T500, 700D, MEM, 225AH, OBC, PW | E163: 17941
A164: 306407 | B164: T500 | C164: MV-T500-0006 | D164: SCRUBBER,T500,650D,MEM,ECNC,225AH,OBC,PW | E164: 19403
A165: 306407 | B165: T500 | C165: MV-T500-0011 | D165: SCRUBBER,T500, 700D, PPAN, 225AH, OBC,PW | E165: 21776
A166: 306407 | B166: T500 | C166: MV-T500-0061 | D166: SCRUBBER,T500,700O, MEM, CNV,220AH [SBT] | E166: 19775
A167: 306407 | B167: T500 | C167: MV-T500-0003 | D167: SCRUBBER,T500, 800D, MEM, 225AH, OBC, PW | E167: 18865
A168: 306407 | B168: T500 | C168: MV-T500-0008 | D168: SCRUBBER,T500,800D,MEM,ECNC,225AH,OBC,PW | E168: 21705
A169: 306407 | B169: T500 | C169: MV-T500-0012 | D169: SCRUBBER,T500, 800D, PPAN, 225AH, OBC,PW | E169: 22699
A170: 306407 | B170: T500 | C170: MV-T500-0007 | D170: SCRUBBER,T500,700D,MEM,ECNC,225AH,OBC,PW | E170: 20782
A171: 306407 | B171: T500 | C171: MV-T500-0047 | D171: SCRUBBER,T500,700D,CNV,220AH,OBC,PW [ABM | E171: 18774
A172: 306407 | B172: T500 | C172: MV-T500-0013 | D172: SCRUBBER,T500, 700O, PPAN, 225AH, OBC,PW | E172: 22301
A173: 306407 | B173: T500 | C173: MV-T500-0074 | D173: SCRUBBER,T500,700D,MEM,CNV,220AH,IRIS-SB | E173: 19056
A174: 306408 | B174: T500e | C174: MV-T500E-0049 | D174: SCRUBBER, T500E 800D, CNV, 225AH,OBC,WM | E174: 18820
A175: 306408 | B175: T500e | C175: MV-T500E-0051 | D175: SCRUBBER,T500E, 700D,CNV,225AH,OBC,PW,WM | E175: 17681
A176: 306408 | B176: T500e | C176: MV-T500E-0050 | D176: SCRUBBER, T500E,800D,CNV,225AH,OBC,PW,WM | E176: 18515
A177: 306408 | B177: T500e | C177: MV-T500E-0011 | D177: SCRUBBER,T500E,650D,ECNC,225AH,OBC,SF,PW | E177: 18266
A178: 306408 | B178: T500e | C178: MV-T500E-0061 | D178: SCRUBBER, T500E, 800D, CNV, 225AH,OBC,SC | E178: 18151
A179: 306408 | B179: T500e | C179: MV-T500E-0012 | D179: SCRUBBER,T500E,700D,ECNC,225AH,OBC,SF,PW | E179: 19023
A180: 306408 | B180: T500e | C180: MV-T500E-0013 | D180: SCRUBBER,T500E,800D,ECNC,225AH,OBC,SF,PW | E180: 19853
A181: 306408 | B181: T500e | C181: MV-T500E-0044 | D181: SCRUBBER,T500E,700D,EC,220AH,OBC,PW [ABM | E181: 19795
A182: 306408 | B182: T500e | C182: MV-T500E-0008 | D182: SCRUBBER, T500E, 700D, 225AH, OBC, SF,PW | E182: 16183
A183: 306408 | B183: T500e | C183: MV-T500E-0063 | D183: SCRUBBER, T500E, 800D, CNV, TPPL, PW, WM | E183: 19927
A184: 306408 | B184: T500e | C184: MV-T500E-0007 | D184: SCRUBBER, T500E, 650D, 225AH, OBC, SF,PW | E184: 15426
A185: 306408 | B185: T500e | C185: MV-T500E-0014 | D185: SCRUBBER,T500E,700O,ECNC,225AH,OBC,SF,PW | E185: 19716
A186: 306408 | B186: T500e | C186: MV-T500E-0045 | D186: SCRUBBER,T500E,700D,CNV,260AH,SF,PW [ABM | E186: 16637
A187: 306408 | B187: T500e | C187: MV-T500E-0009 | D187: SCRUBBER, T500E, 800D, 225AH, OBC, SF,PW | E187: 17012
A188: 306408 | B188: T500e | C188: MV-T500E-0064 | D188: SCRUBBER, T500E, 800D, CNV, TPPL, WM | E188: 20362
A189: 306408 | B189: T500e | C189: MV-T500E-0029 | D189: SCRUBBER,T500E,800D,CNV,225AH,OBC,PW,WLM | E189: 17203
A190: 306408 | B190: T500e | C190: MV-T500E-0004 | D190: SCRUBBER, T500E, 700D, 225AH, OBC, PW | E190: 15267
A191: 306408 | B191: T500e | C191: MV-T500E-0030 | D191: SCRUBBER,T500E,700D,CNV,225AH,OBC,PW,WLM | E191: 16404
A192: 306408 | B192: T500e | C192: MV-T500E-0046 | D192: SCRUBBER,T500E, 700D, CNV,220AH,PW [ABM] | E192: 16843
A193: 306408 | B193: T500e | C193: MV-T500E-0006 | D193: SCRUBBER, T500E, 700O, 225AH, OBC, PW | E193: 15960
A194: 306408 | B194: T500e | C194: MV-T500E-0043 | D194: SCRUBBER,T500E,700D,EC,260AH,SF,PW [ABM] | E194: 19591
A195: 306408 | B195: T500e | C195: MV-T500E-0003 | D195: SCRUBBER, T500E, 650D, 225AH, OBC, PW | E195: 14510
A196: 306408 | B196: T500e | C196: MV-T500E-0010 | D196: SCRUBBER, T500E, 700O, 225AH, OBC, SF,PW | E196: 16875
A197: 306408 | B197: T500e | C197: MV-T500E-0005 | D197: SCRUBBER, T500E, 800D, 225AH, OBC, PW | E197: 16097
A198: 306408 | B198: T500e | C198: MV-T500E-0028 | D198: SCRUBBER, T500E, 700D,CNV,225AH,OBC,WLMT | E198: 16710
A199: 306409 | B199: SS500 | C199: MV-SS500-0010 | D199: SCRUBBER,SS500,700D,ECNC,225AH,OBC,SF,PW | E199: 19024
A200: 306409 | B200: SS500 | C200: MV-SS500-0012 | D200: SCRUBBER,SS500,700O,ECNC,225AH,OBC,SF,PW | E200: 19716
A201: 306409 | B201: SS500 | C201: MV-SS500-0011 | D201: SCRUBBER,SS500,800D,ECNC,225AH,OBC,SF,PW | E201: 19853
A202: 306409 | B202: SS500 | C202: MV-SS500-0001 | D202: SCRUBBER, SS500, 650D, 225AH, OBC, PW | E202: 14510
... 228 more rows

Sheet T681
A1: T681 | C1: =Start_Here!$C19 -> Company Name
A2: =SUM(G80) -> 0 | C2: =Start_Here!$C20 -> Address
C3: =Start_Here!$C21 -> City, State Zip
C4: =Start_Here!$C22 -> Contact Name
C5: =Start_Here!$C$41 -> Rep Name
C6: =Start_Here!$C$37 -> Tennant Sales and Service Company
C7: =Start_Here!$C$38 -> 10400 Clean Street
C8: =Start_Here!$C$39 -> Eden Prairie, MN 55344
C9: =Start_Here!$C$43 -> 800-553-8033 | E9: Quote Date : | G9: =Letter!$A$25 -> 2020-09-17
C11: =Help!C2 -> US Date Rev - 5/6/2025
C13: TENNANT COMPANY WARRANTY
C14: 3 YEARS OR 2000 HOURS - PARTS
C15: 1 YEAR - BATTERY CHARGERS
C16: 2 YEARS - LABOR
C17: 6 MONTHS - TRAVEL
C18: 10 YEARS ON DURAMERTM ROTOMOLD TANKS | G18: Fax (quote only)
G19: Mail (quote,lit, specs)
G20: Fax + Mail
E22: Primary Use
G23: Inside
G24: Outside
C25: Description | D25: Reference # | E25: US Price | F25: Qty. | G25: Extended Price
C28: T681 - Small Ride-On Scrubber - 240AH Wet Batteries | D28: 9052040 | E28: 25052 | G28: =F28*E28 -> 0 | P28: =VLOOKUP(D28,'MPF SAP Download PreConfigured'!C:E,3,FALSE) -> 
C29: 32in (80cm) dual disk cleaning path, pad driver, Linatex squeegee blades. Includes onboard charger, 4-6V batteries | F29: =SUM(F28) -> 0
F30: =SUM(F31) -> 0
C31: T681 - Small Ride-On Scrubber - 240AH Wet Batteries | D31: 9052043 | E31: 25052 | G31: =F31*E31 -> 0 | P31: =VLOOKUP(D31,'MPF SAP Download PreConfigured'!C:E,3,FALSE) -> 
C32: 32in (80cm) dual disk cleaning path, brush driver, Linatex squeegee blades. Includes onboard charger, 4-6V batteries | F32: =SUM(F31) -> 0
C34: T681 - Small Ride-On Scrubber - 210AH Sealed AGM Batteries | D34: 9052041 | E34: 26621 | G34: =F34*E34 -> 0 | P34: =VLOOKUP(D34,'MPF SAP Download PreConfigured'!C:E,3,FALSE) -> 
C35: 32in (80cm) dual disk cleaning path, pad driver, Linatex squeegee blades. Includes onboard charger, 4-6V batteries | F35: =SUM(F34) -> 0
C37: T681 - Small Ride-On Scrubber - 210AH Sealed AGM Batteries | D37: 9052044 | E37: 26621 | G37: =F37*E37 -> 0
C38: 32in (80cm) dual disk cleaning path, brush driver, Linatex squeegee blades. Includes onboard charger, 4-6V batteries | F38: =SUM(F37) -> 0
C40: T681 - Small Ride-On Scrubber - 90AH Li-Ion Battery | D40: 9023481 | E40: 25913 | G40: =F40*E40 -> 0
C41: 32in (80cm) dual disk cleaning path, pad driver, Linatex squeegee blades. Includes onboard charger, 1-24V battery | F41: =SUM(F40) -> 0
C43: T681 - Small Ride-On Scrubber - 90AH Li-Ion Battery | D43: 9023483 | E43: 25913 | G43: =F43*E43 -> 0
C44: 32in (80cm) dual disk cleaning path, brush driver, Linatex squeegee blades. Includes onboard charger, 1-24V battery | F44: =SUM(F43) -> 0
C46: T681 - Small Ride-On Scrubber - 180 AH Li-Ion Batteries | D46: 9023482 | E46: 28113 | G46: =F46*E46 -> 0
C47: 32in (80cm) dual disk cleaning path, pad driver, Linatex squeegee blades. Includes onboard charger, 2-24V batteries | F47: =SUM(F46) -> 0
C49: T681 - Small Ride-On Scrubber - 180 AH Li-Ion Batteries | D49: 9023484 | E49: 28113 | G49: =F49*E49 -> 0
C50: 32in (80cm) dual disk cleaning path, brush driver, Linatex squeegee blades. Includes onboard charger, 2-24V batteries | F50: =SUM(F49) -> 0
C52: T681 - Small Ride-On Scrubber - NO Batteries | D52: 9052042 | E52: 22640 | G52: =F52*E52 -> 0
C53: 32in (80cm) dual disk cleaning path, pad driver, Linatex squeegee blades. Includes onboard charger | F53: =SUM(F52) -> 0
C55: T681 - Small Ride-On Scrubber - NO Batteries | D55: 9052045 | E55: 22640 | G55: =F55*E55 -> 0
C56: 32in (80cm) dual disk cleaning path, brush driver, Linatex squeegee blades. Includes onboard charger | F56: =SUM(F55) -> 0
P57: =VLOOKUP(D57,'MPF SAP Download PreConfigured'!C:E,3,FALSE) -> 
C58: Shipping Weight and Dimensions | D58: Pallet w/ ramp | F58: =SUM(F28:F55) -> 0
C59: Weight (w/ heaviest batteries) | D59: 950 lb / 431 kg | F59: =SUM(F29:F56) -> 0 | P59: =VLOOKUP(D59,'MPF SAP Download PreConfigured'!C:E,3,FALSE) -> 
C60: Length | D60: 59.6 in / 151.5 cm | F60: =SUM(F30:F57) -> 0
C61: Width | D61: 48.8 in / 124 cm | F61: =SUM(F31:F58) -> 0 | P61: =VLOOKUP(D61,'MPF SAP Download PreConfigured'!C:E,3,FALSE) -> 
C62: Height | D62: 42.9 in / 109 cm | F62: =SUM(F32:F59) -> 0
F65: =SUM(#REF!) -> 
E66: =ROUND(SUM(G28:G65), 0) -> 0 | F66: =SUM(E67) -> 0
D67: Machine Subtotal | E67: =ROUND(SUM(G28:G65), 0) -> 0 | F67: =F66 -> 0
B68: Discounts | F68: =SUM(F69) -> 0
F69: =SUM(F70:F73) -> 0
D70: Discount % | F70: =IF(E70 <> "", 1, 0) -> 0 | G70: =IF(F70*(E70*0.01)*E66 < 0, F70*(E70*0.01)*E66, -(F70*(E70*0.01)*E66)) -> 0
D71: Discount $ | F71: =IF(E71 <> "", 1, 0) -> 0 | G71: =IF(F71*E71 < 0, F71*E71, -(F71*E71)) -> 0
D72: Discount $ | F72: =IF(E72 <> "", 1, 0) -> 0 | G72: =IF(F72*E72 < 0, F72*E72, -(F72*E72)) -> 0
D73: Discount $ | F73: =IF(E73 <> "", 1, 0) -> 0 | G73: =IF(F73*E73 < 0, F73*E73, -(F73*E73)) -> 0
D74: Discount Total | E74: =SUM(G70:G73) -> 0 | F74: =SUM(E74) -> 0
F75: =#REF! -> 
F76: =F75 -> 
C77: Prepaid and Add | D77: Freight | F77: =IF(E77 <> "", 1, 0) -> 0 | G77: =F77*E77 -> 0
C78: Subject to all applicable taxes | D78: Tax | F78: =IF(E78 <> "", 1, 0) -> 0 | G78: =F78*E78 -> 0
F79: =SUM(F80) -> 0
D80: MACHINE TOTAL* | F80: =SUM(G80) -> 0 | G80: =SUM(G28:G78) -> 0 | N80: This goes to "My Documents"
B81: Financing | G81: =G80 -> 0
C83: Is customer interested in financing? | D83: No
C85: If not, why?
C88: First Western Equipment Finance - Leasing Calculation Option: | D88: Option 1 | F88: Option 2 | J88: =Financing!A38 -> Rates 2025 - Rev. 5/6/2025
D89: Monthly Payment | E89: Cost Per Day | F89: Monthly Payment | G89: Cost Per Day | J89: =Financing!A39 -> “Blank Payment Amounts Indicate The Financing Option Or Purchase Options Selected Are Not
C90: Purchase Option: | D90: FWEF: $1 Buyout Lease | F90: FWEF: Municipal Lease | J90: =Financing!A40 -> Applicable Or The Machine Total Is Below The Minimum Amount For The Selected Vendor”
C91: 24 Months | D91: 0 | E91: 0 | F91: 0 | G91: 0 | J91: =Financing!A41 -> "Quoted monthly payments are estimates only and are based on a certain level of credit rating.
C92: 30 Months | D92: 0 | E92: 0 | F92: 0 | G92: 0 | J92: =Financing!A42 -> Actual monthly payments may be higher depending on your credit rating."
C93: 36 Months | D93: 0 | E93: 0 | F93: 0 | G93: 0 | J93: =Financing!A43 -> “Financing rates do not include Pre-Paid Service”
C94: 48 Months | D94: 0 | E94: 0 | F94: 0 | G94: 0 | I94: =Financing!A44 -> 0
D96: Benefits of Equipment Financing:
D97: • Spreads out investment over time. | F97: • Keep current with latest technology.
D98: • Preserve capital. | F98: • Service and parts bundling available.
D99: • Low monthly payment. | F99: • Pay for labor savings as you go.
C102: Bundled Offerings | D102: Flexclean – Fair Market Value | F102: Flexclean - $1 Buyout
C103: FlexClean: | D103: 36 Month Term | F103: 36 Month Term | I103: No | J103: AB Brushes
C104: Hours included per Month: | D104: Gold | E104: Silver | F104: Gold | G104: Silver | H104: Check
C105: < 30/mo. (Avg. 1hr./day) | I105: =FlexCleanCalc!$A21 -> “FlexClean monthly rates include payment for both machine and service.”
C106: < 60/mo. (Avg. 2hrs./day)
C107: < 90/mo. (Avg. 3hrs./day)
C108: *This value assumes one service contract regardless of the number of UNITS included in the quote
C111: Bundled Offerings | D111: Flexclean – Fair Market Value | F111: Flexclean - $1 Buyout
C112: FlexClean 2: | D112: 48 Month Term | F112: 48 Month Term
C113: Hours included per Month: | D113: Gold | E113: Silver | F113: Gold | G113: Silver
C114: < 30/mo. (Avg. 1hr./day)
C115: < 60/mo. (Avg. 2hrs./day)
C116: < 90/mo. (Avg. 3hrs./day)
C117: *This value assumes one service contract regardless of the number of UNITS included in the quote
C119: Bundled Offerings | D119: Flexclean – Fair Market Value | F119: Flexclean - $1 Buyout
C120: FlexClean 3: | D120: 60 Month Term | F120: 60 Month Term
C121: Hours included per Month: | D121: Gold | E121: Silver | F121: Gold | G121: Silver
C122: < 30/mo. (Avg. 1hr./day)
C123: < 60/mo. (Avg. 2hrs./day)
C124: < 90/mo. (Avg. 3hrs./day)
C125: *This value assumes one service contract regardless of the number of UNITS included in the quote
B127: TennantTrue
C129: Is customer interested in service program? | D129: Yes | E129: *State/County selection required for TennantTrue service options
C131: If not, why?
C133: Term: | D133: 36 | F133: AB Brushes | G133: No
C134: Monthly machine usage (hrs): | D134: < 30/mo. (Avg. 1hr./day)
C136: TennantTrue: | D136: Gold Contract | F136: Silver Contract
C137: Per Visit | F137: 501
C138: Monthly | D138: 173 | F138: 88
C139: Annually | F139: 1035
C140: Pre-Pay Full Term | D140: 5964 | F140: 3042
C141: Hourly Labor Rate
C142: Site Visit
C144: * Verify customer current pricing prior to quote.
C145: **All rates and fees above reflect service for one (1) unit with the exception of Block of Time service.
C146: *Block of Time is available in 1 Year Term only and is priced as such no matter the term selection on this template.
B149: Servicing
C151: Is customer interested in a service plan? | D151: No
C153: If not, why?
B156: Quote Special Instructions:
C159: =Start_Here!E36 -> Terms and Conditions
C160: =Start_Here!E37 -> Ask your local sales rep for estimated lead times. Verify when placing order
C161: =Start_Here!E38 -> All orders subject to acceptance by Tennant Sales and Service Company, Minneapolis, Minnesota
C162: =Start_Here!E39 -> Prices subject to change without notice.
C163: =Start_Here!E40 -> Terms: Net 30 days. Subject to any applicable taxes.
C164: =Start_Here!E41 -> Freight: Machines and accessory orders delivered FOB shipping point Frt PPD & Add
C165: =Start_Here!E42 -> Parts, supplies, detergents and floor treating material orders delivered FOB
C166: =Start_Here!E43 -> shipping point Frt PPD
C167: =Start_Here!E44 -> All orders are subject to Tennant’s General Terms and Conditions available at http://www.tennantco.com/terms.
C168: =Start_Here!E45 -> Printed General Terms and Conditions are also available upon request.
C169: =Start_Here!E46 -> 0
E171: Quote Date : | G171: =Letter!$A$25 -> 2020-09-17
A172: Order Placement Information: To place your order, fill in PO# and customer signatures,
A173: call or fax to the numbers listed below. Customer Purchase Order is required.
A174: If information is missing, orders will be entered and held until all information is received.
C175: Customer Number | E175: Cust Grp 3
C176: =Start_Here!$C$25 -> 0 | E176: =Start_Here!$C$29 -> 0
C177: =Start_Here!$B$18 -> Who Owns the Machine? (Sold-To Info) (Please Verify)
A178: Company | C178: =Start_Here!$C$19 -> Company Name
A179: Address | C179: =Start_Here!$C$20 -> Address
C180: =Start_Here!$C$21 -> City, State Zip
A181: Name | C181: =Start_Here!$C$22 -> Contact Name
A182: Phone | C182: =Start_Here!$C$23 -> Contact Phone
C183: =Start_Here!$B$11 -> Where is the Machine Being Shipped? (Ship-To Info) (Please Verify)
A184: Company | C184: =Start_Here!$C$12 -> Company Name
A185: Address | C185: =Start_Here!$C$13 -> Address
C186: =Start_Here!$C$14 -> City, State Zip
A187: Name | C187: =Start_Here!$C$15 -> Contact Name
A188: Phone | C188: =Start_Here!$C$16 -> Contact Phone
C189: =Start_Here!$B$31 -> Shipping / Carrier Instructions: | E189: Order Special Instructions:
C190: =Start_Here!$C$32 -> 0
C192: Customer Purchase Order No.
C193: (please attach copy)
C196: Tax Exempt | E196: Yes
E197: No
C198: If Yes, attach a copy of your exemption certificate.
C200: Requested Delivery Date
C201: =Start_Here!$C$28 -> 0
C203: =Start_Here!$C$26 -> 0 | E203: =Start_Here!$C$27 -> 0
B204: 0 | C204: Authorized Buyer (please print) | E204: Phone Number
B207: 0 | C207: Authorized Buyer Signature
C209: =Start_Here!$C$41 -> Rep Name
C210: Tennant Representative
A212: Specialized Maintenance Equipment
A213: =Start_Here!$C$48 -> TENNANT · 10400 Clean Street · Eden Prairie, MN 55344 ·
A214: =Start_Here!$C$49 -> PHONE:800-553-8033 · FAX:763-513-2116

Sheet T981
A1: T981 | C1: =Start_Here!$C19 -> Company Name
A2: =SUM(G89) -> 0 | C2: =Start_Here!$C20 -> Address
C3: =Start_Here!$C21 -> City, State Zip
C4: =Start_Here!$C22 -> Contact Name
C5: =Start_Here!$C$41 -> Rep Name
C6: =Start_Here!$C$37 -> Tennant Sales and Service Company
C7: =Start_Here!$C$38 -> 10400 Clean Street
C8: =Start_Here!$C$39 -> Eden Prairie, MN 55344
C9: =Start_Here!$C$43 -> 800-553-8033 | E9: Quote Date : | G9: =Letter!$A$25 -> 2020-09-17
C11: =Help!C2 -> US Date Rev - 5/6/2025
C12: BUILT-IN “TENNANT VALUE” INCLUDES:
B14: Wet, 360 AH C/20 Battery Pack | D14: No Tool Squeegee and Brush Change
B15: 36VDC, 21A 85-265 VAC 45/65 Hz Charger | D15: In-Line Vacuum Fan Air Filter
B16: DC Propel Motor | D16: High Visibility Maintenance Touch Points
B17: Disk Scrubbing - 36 in (900 mm) path | D17: Cup Holder
B18: Cylindrical Scrubbing - 30 in (750 mm) path | D18: Multi-Language Operator Manual and Video
B19: Standard Sweeping Side Brushes (Cylindrical model only)
B20: Standard Cylindrical or Disk Scrubbing Brushes (Select One) | D20: T981 Controls:
B21: Non-Corrosive Solution and Recovery Tanks | D21: 3 Preset Scrub Operation Programs
B22: 33 gal (125 L) Solution Tank | D22: On Board Diagnostics
B23: 35.6 gal (135 L) Recovery Tank | D23: Spin on/spin off brush attachment (Disk model only)
B24: Parabolic Rear Squeegee Breakaway System
B25: Automatic Functions:
B26: Parking Brake
B27: Squeegee Lift
B31: TENNANT COMPANY WARRANTY
B32: 3 YEARS OR 2000 HOURS ON PARTS, 2 YEARS LABOR
B33: 90 DAYS TRAVEL, 10 YEARS ON DURAMERTM TANKS
E37: Quote Request Information
G38: Fax (quote only)
G39: Mail (quote,lit, specs)
G40: Fax + Mail
E42: Primary Use
G43: Inside
G44: Outside
C45: Description | D45: Reference # | E45: US List Price | F45: Qty. | G45: Extended Price
B46: Base Configuration | D46: Reference Number | E46: Price | F46: =SUM(F47,F51,F56) -> 0 | H46: =IFERROR(IFERROR(VLOOKUP(D46,Surcharge!A:B,2,FALSE)*F46, VLOOKUP(D46 & "",Surcharge!A:B,2,FALSE)*F46), "") -> 
C47: Cleaning Type | F47: =SUM(F48:F49) -> 0 | H47: =IFERROR(IFERROR(VLOOKUP(D47,Surcharge!A:B,2,FALSE)*F47, VLOOKUP(D47 & "",Surcharge!A:B,2,FALSE)*F47), "") -> 
C48: T981 Ride-On Scrubber 750 mm/30" - Cylindrical | D48: T981-750-C | E48: 27486 | G48: =F48*E48 -> 0 | H48: =IFERROR(IFERROR(VLOOKUP(D48,Surcharge!A:B,2,FALSE)*F48, VLOOKUP(D48 & "",Surcharge!A:B,2,FALSE)*F48), "") ->  | O48: =VLOOKUP(P48,'MPF SAP Download'!A:E,5,FALSE) -> 14118 | P48: M-T350VK_BASE_T350-500-D | R48: M-T350VK_BASE_T350-500-D
C49: T981 Ride-On Scrubber 900 mm/36" - Disk | D49: T981-900-D | E49: 27430 | G49: =F49*E49 -> 0 | H49: =IFERROR(IFERROR(VLOOKUP(D49,Surcharge!A:B,2,FALSE)*F49, VLOOKUP(D49 & "",Surcharge!A:B,2,FALSE)*F49), "") ->  | O49: =VLOOKUP(P49,'MPF SAP Download'!A:E,5,FALSE) -> 15627 | P49: M-T350VK_BASE_T350-600-D | R49: M-T350VK_BASE_T350-600-D
H50: =IFERROR(IFERROR(VLOOKUP(D50,Surcharge!A:B,2,FALSE)*F50, VLOOKUP(D50 & "",Surcharge!A:B,2,FALSE)*F50), "") -> 
C51: Battery Type (Note 1) | F51: =SUM(F52:F54) -> 0 | H51: =IFERROR(IFERROR(VLOOKUP(D51,Surcharge!A:B,2,FALSE)*F51, VLOOKUP(D51 & "",Surcharge!A:B,2,FALSE)*F51), "") -> 
C52: Wet 360AH C/20 (Kit of 6 batteries) | D52: 9022562 | E52: N/C | G52: =IF(F52=0," ","N/C") ->  | H52: =IFERROR(IFERROR(VLOOKUP(D52,Surcharge!A:B,2,FALSE)*F52, VLOOKUP(D52 & "",Surcharge!A:B,2,FALSE)*F52), "") ->  | O52: =VLOOKUP(P52,'MPF SAP Download'!A:E,5,FALSE) ->  | P52: M-T350 | R52: M-T350VK_TRMLVL_PMEM
C53: Sealed/MF AGM 350AH C/20 (Kit of 6 batteries) | D53: 9022563 | E53: 1141 | G53: =F53*E53 -> 0 | H53: =IFERROR(IFERROR(VLOOKUP(D53,Surcharge!A:B,2,FALSE)*F53, VLOOKUP(D53 & "",Surcharge!A:B,2,FALSE)*F53), "") ->  | O53: =VLOOKUP(P53,'MPF SAP Download'!A:E,5,FALSE) -> 967 | P53: M-T350VK_TRMLVL_PPAN | R53: M-T350VK_TRMLVL_PPAN
C54: Less Battery, DEDUCT (Note 1) | E54: -701 | G54: =F54*E54 -> 0 | H54: =IFERROR(IFERROR(VLOOKUP(D54,Surcharge!A:B,2,FALSE)*F54, VLOOKUP(D54 & "",Surcharge!A:B,2,FALSE)*F54), "") -> 
F55: =SUM(F56:F59) -> 0 | H55: =IFERROR(IFERROR(VLOOKUP(D55,Surcharge!A:B,2,FALSE)*F55, VLOOKUP(D55 & "",Surcharge!A:B,2,FALSE)*F55), "") -> 
C56: Charger | F56: =SUM(F57:F59) -> 0 | H56: =IFERROR(IFERROR(VLOOKUP(D56,Surcharge!A:B,2,FALSE)*F56, VLOOKUP(D56 & "",Surcharge!A:B,2,FALSE)*F56), "") ->  | O56: =VLOOKUP(P56,'MPF SAP Download'!A:E,5,FALSE) -> 2218 | P56: M-T350VK_CLNTCH_ECH2ON | R56: M-T350VK_CLNTCH_ECH2ON
C57: 21A 85-265V AC 50/60Hz 1Ph - Off-Board | D57: 9022564 | E57: N/C | G57: =IF(F57=0," ","N/C") ->  | H57: =IFERROR(IFERROR(VLOOKUP(D57,Surcharge!A:B,2,FALSE)*F57, VLOOKUP(D57 & "",Surcharge!A:B,2,FALSE)*F57), "") -> 
C58: Without Charger (Note 1) | E58: -299 | G58: =F58*E58 -> 0 | H58: =IFERROR(IFERROR(VLOOKUP(D58,Surcharge!A:B,2,FALSE)*F58, VLOOKUP(D58 & "",Surcharge!A:B,2,FALSE)*F58), "") ->  | O58: =VLOOKUP(P58,'MPF SAP Download'!A:E,5,FALSE) -> 622 | P58: M-T350VK_SVEEVMSWH | R58: M-T350VK_SVEEVMSWH
C59: Charger Power Cord | D59: 1017079 | E59: N/C | G59: =IF(F59=0," ","N/C") ->  | O59: =VLOOKUP(P59,'MPF SAP Download'!A:E,5,FALSE) -> 65 | P59: M-T350VK_SVEEVMSWHLKT | R59: M-T350VK_SVEEVMSWHLKT
H60: =IFERROR(IFERROR(VLOOKUP(D60,Surcharge!A:B,2,FALSE)*F60, VLOOKUP(D60 & "",Surcharge!A:B,2,FALSE)*F60), "") -> 
B61: Brushes and Pads (Note 2) | F61: =SUM(F62,F65) -> 0 | H61: =IFERROR(IFERROR(VLOOKUP(D61,Surcharge!A:B,2,FALSE)*F61, VLOOKUP(D61 & "",Surcharge!A:B,2,FALSE)*F61), "") -> 
C62: 750mm/30" Cylindrical Scrubbing Brush | F62: =SUM(F63) -> 0 | H62: =IFERROR(IFERROR(VLOOKUP(D62,Surcharge!A:B,2,FALSE)*F62, VLOOKUP(D62 & "",Surcharge!A:B,2,FALSE)*F62), "") ->  | P62: M-T350 | R62: M-T350VK_BTY_W210C20
C63: Polypropylene | E63: N/C | G63: =IF(F63=0," ","N/C") ->  | H63: =IFERROR(IFERROR(VLOOKUP(D63,Surcharge!A:B,2,FALSE)*F63, VLOOKUP(D63 & "",Surcharge!A:B,2,FALSE)*F63), "") ->  | O63: =VLOOKUP(P63,'MPF SAP Download'!A:E,5,FALSE) -> 191 | P63: M-T350VK_BTY_W240C20 | R63: M-T350VK_BTY_W240C20
H64: =IFERROR(IFERROR(VLOOKUP(D64,Surcharge!A:B,2,FALSE)*F64, VLOOKUP(D64 & "",Surcharge!A:B,2,FALSE)*F64), "") ->  | O64: =VLOOKUP(P64,'MPF SAP Download'!A:E,5,FALSE) -> 1443 | P64: M-T350VK_BTY_A220C20 | R64: M-T350VK_BTY_A220C20
C65: 900mm/36" Disk Scrubbing Brush/Pads (2 Required) | F65: =SUM(F66) -> 0 | H65: =IFERROR(IFERROR(VLOOKUP(D65,Surcharge!A:B,2,FALSE)*F65, VLOOKUP(D65 & "",Surcharge!A:B,2,FALSE)*F65), "") ->  | O65: =VLOOKUP(P65,'MPF SAP Download'!A:E,5,FALSE) -> -450 | P65: M-T350VK_BTY_WO | R65: M-T350VK_BTY_WO
C66: Polypropylene | E66: N/C | G66: =IF(F66=0," ","N/C") ->  | H66: =IFERROR(IFERROR(VLOOKUP(D66,Surcharge!A:B,2,FALSE)*F66, VLOOKUP(D66 & "",Surcharge!A:B,2,FALSE)*F66), "") -> 
H67: =IFERROR(IFERROR(VLOOKUP(D67,Surcharge!A:B,2,FALSE)*F67, VLOOKUP(D67 & "",Surcharge!A:B,2,FALSE)*F67), "") ->  | O67: =VLOOKUP(P67,'MPF SAP Download'!A:E,5,FALSE) -> 1029 | P67: M-T350VK_BTYWTRSYS_SF | R67: M-T350VK_BTYWTRSYS_SF
B68: Support | C68: Packaging (Note 3) | F68: =SUM(F69:F70) -> 0 | H68: =IFERROR(IFERROR(VLOOKUP(D68,Surcharge!A:B,2,FALSE)*F68, VLOOKUP(D68 & "",Surcharge!A:B,2,FALSE)*F68), "") ->  | O68: =VLOOKUP(P68,'MPF SAP Download'!A:E,5,FALSE) -> 600 | P68: M-T350VK_BTYWTRSYS_ML | R68: M-T350VK_BTYWTRSYS_ML
C69: Pad Wrap | E69: N/C | G69: =IF(F69=0," ","N/C") ->  | H69: =IFERROR(IFERROR(VLOOKUP(D69,Surcharge!A:B,2,FALSE)*F69, VLOOKUP(D69 & "",Surcharge!A:B,2,FALSE)*F69), "") -> 
C70: Skid w/Carton, Non-Stackable | D70: T981-SKD | E70: 521 | G70: =F70*E70 -> 0 | H70: =IFERROR(IFERROR(VLOOKUP(D70,Surcharge!A:B,2,FALSE)*F70, VLOOKUP(D70 & "",Surcharge!A:B,2,FALSE)*F70), "") ->  | P70: M-T350 | R70: M-T350VK_CHG_25A100V5060H1
H71: =IFERROR(IFERROR(VLOOKUP(D71,Surcharge!A:B,2,FALSE)*F71, VLOOKUP(D71 & "",Surcharge!A:B,2,FALSE)*F71), "") -> 
F73: =SUM(#REF!) -> 
E76: =ROUND(SUM(G46:G75), 0) -> 0 | F76: =SUM(E77) -> 0
D77: Machine Subtotal | E77: =ROUND(SUM(G46:G75), 0) -> 0 | F77: =F76 -> 0
B78: Discounts | F78: =SUM(F79) -> 0
F79: =SUM(F80:F83) -> 0
D80: Discount % | F80: =IF(E80 <> "", 1, 0) -> 0 | G80: =IF(F80*(E80*0.01)*E76 < 0, F80*(E80*0.01)*E76, -(F80*(E80*0.01)*E76)) -> 0
D81: Discount $ | F81: =IF(E81 <> "", 1, 0) -> 0 | G81: =IF(F81*E81 < 0, F81*E81, -(F81*E81)) -> 0
D82: Discount $ | F82: =IF(E82 <> "", 1, 0) -> 0 | G82: =IF(F82*E82 < 0, F82*E82, -(F82*E82)) -> 0
D83: Discount $ | F83: =IF(E83 <> "", 1, 0) -> 0 | G83: =IF(F83*E83 < 0, F83*E83, -(F83*E83)) -> 0
D84: Discount Total | E84: =SUM(G80:G83) -> 0 | F84: =SUM(E84) -> 0
F85: =#REF! -> 
C86: Prepaid and Add | D86: Freight | F86: =IF(E86 <> "", 1, 0) -> 0 | G86: =F86*E86 -> 0
C87: Subject to all applicable taxes | D87: Tax | F87: =IF(E87 <> "", 1, 0) -> 0 | G87: =F87*E87 -> 0
F88: =SUM(F89) -> 0
D89: MACHINE TOTAL* | F89: =SUM(G89) -> 0 | G89: =SUM(G46:G87) -> 0 | N89: This goes to "My Documents"
B90: Financing | G90: =G89 -> 0
C92: Is customer interested in financing? | D92: No
C94: If not, why?
C97: First Western Equipment Finance - Leasing Calculation Option: | D97: Option 1 | F97: Option 2 | J97: =Financing!A38 -> Rates 2025 - Rev. 5/6/2025
D98: Monthly Payment | E98: Cost Per Day | F98: Monthly Payment | G98: Cost Per Day | J98: =Financing!A39 -> “Blank Payment Amounts Indicate The Financing Option Or Purchase Options Selected Are Not
C99: Purchase Option: | D99: FWEF: $1 Buyout Lease | F99: FWEF: Municipal Lease | J99: =Financing!A40 -> Applicable Or The Machine Total Is Below The Minimum Amount For The Selected Vendor”
C100: 24 Months | D100: 0 | E100: 0 | F100: 0 | G100: 0 | J100: =Financing!A41 -> "Quoted monthly payments are estimates only and are based on a certain level of credit rating.
C101: 30 Months | D101: 0 | E101: 0 | F101: 0 | G101: 0 | J101: =Financing!A42 -> Actual monthly payments may be higher depending on your credit rating."
C102: 36 Months | D102: 0 | E102: 0 | F102: 0 | G102: 0 | J102: =Financing!A43 -> “Financing rates do not include Pre-Paid Service”
C103: 48 Months | D103: 0 | E103: 0 | F103: 0 | G103: 0
D105: Benefits of Equipment Financing:
D106: • Spreads out investment over time. | F106: • Keep current with latest technology.
D107: • Preserve capital. | F107: • Service and parts bundling available.
D108: • Low monthly payment. | F108: • Pay for labor savings as you go.
C111: Bundled Offerings | D111: Flexclean – Fair Market Value | F111: Flexclean - $1 Buyout
C112: FlexClean: | D112: 36 Month Term | F112: 36 Month Term | I112: No | J112: AB Brushes
C113: Hours included per Month: | D113: Gold | E113: Silver | F113: Gold | G113: Silver | H113: Check
C114: < 30/mo. (Avg. 1hr./day) | I114: =FlexCleanCalc!$A21 -> “FlexClean monthly rates include payment for both machine and service.”
C115: < 60/mo. (Avg. 2hrs./day)
C116: < 90/mo. (Avg. 3hrs./day)
C117: *This value assumes one service contract regardless of the number of UNITS included in the quote
C120: Bundled Offerings | D120: Flexclean – Fair Market Value | F120: Flexclean - $1 Buyout
C121: FlexClean 2: | D121: 48 Month Term | F121: 48 Month Term
C122: Hours included per Month: | D122: Gold | E122: Silver | F122: Gold | G122: Silver
C123: < 30/mo. (Avg. 1hr./day)
C124: < 60/mo. (Avg. 2hrs./day)
C125: < 90/mo. (Avg. 3hrs./day)
C126: *This value assumes one service contract regardless of the number of UNITS included in the quote
C128: Bundled Offerings | D128: Flexclean – Fair Market Value | F128: Flexclean - $1 Buyout
C129: FlexClean 3: | D129: 60 Month Term | F129: 60 Month Term
C130: Hours included per Month: | D130: Gold | E130: Silver | F130: Gold | G130: Silver
C131: < 30/mo. (Avg. 1hr./day)
C132: < 60/mo. (Avg. 2hrs./day)
C133: < 90/mo. (Avg. 3hrs./day)
C134: *This value assumes one service contract regardless of the number of UNITS included in the quote
B136: TennantTrue
C138: Is customer interested in service program? | D138: Yes | E138: *State/County selection required for TennantTrue service options
C140: If not, why?
C142: Term: | D142: 36 | F142: AB Brushes | G142: No
C143: Monthly machine usage (hrs): | D143: < 30/mo. (Avg. 1hr./day)
C145: TennantTrue: | D145: Gold Contract | F145: Silver Contract
C146: Per Visit | F146: 501
C147: Monthly | D147: 189 | F147: 88
C148: Annually | F148: 1035
C149: Pre-Pay Full Term | D149: 6526 | F149: 3042
C150: Hourly Labor Rate
C151: Site Visit
C153: * Verify customer current pricing prior to quote.
C154: **All rates and fees above reflect service for one (1) unit with the exception of Block of Time service.
C155: *Block of Time is available in 1 Year Term only and is priced as such no matter the term selection on this template.
B158: Servicing
C160: Is customer interested in a service plan? | D160: No
C162: If not, why?
B165: Quote Special Instructions:
C168: =Start_Here!E36 -> Terms and Conditions
C169: =Start_Here!E37 -> Ask your local sales rep for estimated lead times. Verify when placing order
C170: =Start_Here!E38 -> All orders subject to acceptance by Tennant Sales and Service Company, Minneapolis, Minnesota
C171: =Start_Here!E39 -> Prices subject to change without notice.
C172: =Start_Here!E40 -> Terms: Net 30 days. Subject to any applicable taxes.
C173: =Start_Here!E41 -> Freight: Machines and accessory orders delivered FOB shipping point Frt PPD & Add
C174: =Start_Here!E42 -> Parts, supplies, detergents and floor treating material orders delivered FOB
C175: =Start_Here!E43 -> shipping point Frt PPD
C176: =Start_Here!E44 -> All orders are subject to Tennant’s General Terms and Conditions available at http://www.tennantco.com/terms.
C177: =Start_Here!E45 -> Printed General Terms and Conditions are also available upon request.
C178: =Start_Here!E46 -> 0
E180: Quote Date : | G180: =Letter!$A$25 -> 2020-09-17
A181: Order Placement Information: To place your order, fill in PO# and customer signatures,
A182: call or fax to the numbers listed below. Customer Purchase Order is required.
A183: If information is missing, orders will be entered and held until all information is received.
C184: Customer Number | E184: Cust Grp 3
C185: =Start_Here!$C$25 -> 0 | E185: =Start_Here!$C$29 -> 0
C186: =Start_Here!$B$18 -> Who Owns the Machine? (Sold-To Info) (Please Verify)
A187: Company | C187: =Start_Here!$C$19 -> Company Name
A188: Address | C188: =Start_Here!$C$20 -> Address
C189: =Start_Here!$C$21 -> City, State Zip
A190: Name | C190: =Start_Here!$C$22 -> Contact Name
A191: Phone | C191: =Start_Here!$C$23 -> Contact Phone
C192: =Start_Here!$B$11 -> Where is the Machine Being Shipped? (Ship-To Info) (Please Verify)
A193: Company | C193: =Start_Here!$C$12 -> Company Name
A194: Address | C194: =Start_Here!$C$13 -> Address
C195: =Start_Here!$C$14 -> City, State Zip
A196: Name | C196: =Start_Here!$C$15 -> Contact Name
A197: Phone | C197: =Start_Here!$C$16 -> Contact Phone
C198: =Start_Here!$B$31 -> Shipping / Carrier Instructions: | E198: Order Special Instructions:
C199: =Start_Here!$C$32 -> 0
C201: Customer Purchase Order No.
C202: (please attach copy)
C205: Tax Exempt | E205: Yes
E206: No
C207: If Yes, attach a copy of your exemption certificate.
C209: Requested Delivery Date
C210: =Start_Here!$C$28 -> 0
C212: =Start_Here!$C$26 -> 0 | E212: =Start_Here!$C$27 -> 0
B213: 0 | C213: Authorized Buyer (please print) | E213: Phone Number
B216: 0 | C216: Authorized Buyer Signature
C218: =Start_Here!$C$41 -> Rep Name
C219: Tennant Representative
A221: Specialized Maintenance Equipment
A222: =Start_Here!$C$48 -> TENNANT · 10400 Clean Street · Eden Prairie, MN 55344 ·
A223: =Start_Here!$C$49 -> PHONE:800-553-8033 · FAX:763-513-2116
B226: Notes
B227: 1 | C227: Customer MUST order Skid w/Carton, Non-Stackable if WITHOUT BATTERY is selected.
C228: Continental USA orders ONLY.
B230: 2 | C230: A Polypropylene Brush comes standard with a T981.
B232: 3 | C232: Pad wrap available only in the Continental US and is the default packaging method.
C233: Customer MUST order Skid w/Carton, Non-Stackable if WITHOUT BATTERY is selected.
C234: Skid w/Carton, Non-Stackable is mandatory when shipping to AK and HI.
B236: 4 | C236: Shipping Weights and Dimensions | D236: Pad Wrap | E236: Skid w/Carton
C238: Weight - 750 mm / 30" Cylindrical | E238: 836 lbs / 379 Kg
C239: Weight - 900 mm / 36" Disk | E239: 748 lbs / 339 Kg
C240: Length | E240: 79 in / 2,000 mm
C241: Width | E241: 51 in / 1,280 mm
C242: Height | E242: 66 in / 1,670 mm

Sheet T2_Std_Config
A1: T2_Std_Config | C1: =Start_Here!$C19 -> Company Name
A2: =SUM(G85) -> 0 | C2: =Start_Here!$C20 -> Address
C3: =Start_Here!$C21 -> City, State Zip
C4: =Start_Here!$C22 -> Contact Name
C5: =Start_Here!$C$41 -> Rep Name
C6: =Start_Here!$C$37 -> Tennant Sales and Service Company
C7: =Start_Here!$C$38 -> 10400 Clean Street
C8: =Start_Here!$C$39 -> Eden Prairie, MN 55344
C9: =Start_Here!$C$43 -> 800-553-8033 | E9: Quote Date : | G9: =Letter!$A$25 -> 2020-09-17
C11: =Help!C2 -> US Date Rev - 5/6/2025
C12: BUILT-IN “TENNANT VALUE” INCLUDES:
C14: 26 l/6.9 gal Solution Tank & 36 l/9.5 gal Recovery Tank | E14: Standard (2) 12V 105 AH Batteries
C15: Rugged DuramerTM Tank Construction | E15: Battery Tray
C16: Hygienic Recovery Tank | E16: On-board Charger
C17: 10 l/2.6 gal Demisting Chamber to Protect Vac Fan | E17: Recovery Tank Debris Tray
C18: Adjustable Solution Flow | E18: Unsurpassed Ergonomic Design
C19: Extremely Low Noise Level (≤68 dBa) | E19: Adjustable Console Height
C20: Pad Assist - less than 2 kg/4.5 lbs of push force requried | E20: Trigger Design
C21: .75 kW/1 HP brush motor, 230 RPM | E21: Front Bucket Fill Port
C22: Cast Aluminum Scrub Deck | E22: On-board Pad Driver Hanger
C23: Cast Aluminum Squeegee Frame | E23: Gray Solid Urethane Tires
C24: Breakaway Squeegee Design | E24: Automotive Triple-Sealed Electrical Connectors
C25: Factory Set Squeegee Assembly for Maximium Recovery | E25: 10cm /4" Edge & Reach Under Cleaning
C26: 100% Recovery in 180º Point Turns | E26: Key Switch for Safety
C27: Urethane Squeegee Blades | E27: No Tool Brush / Squegee Change
C28: Squegee Hanger | E28: Includes Pad Driver
C30: TENNANT COMPANY WARRANTY
C31: 3 YEARS OR 2500 HOURS ON ALL COMPONENTS, 3 YEARS LABOR
C32: 90 DAYS TRAVEL, 10 YEARS ON DURAMERTM TANKS
E35: Quote Request Information
G36: Fax (quote only)
G37: Mail (quote,lit, specs)
G38: Fax + Mail
E40: Primary Use
G41: Inside
G42: Outside
C43: Description | D43: Reference # | E43: US Price | F43: Qty. | G43: Extended Price
B44: Standard Configuration Machines | F44: =SUM(F45,F46) -> 0
C45: T2 Walk-Behind - Disk Scrubber, 430mm / 17", 105AH C/20 Battery, Conventional Cleaning, 9A 100-240V AC 50/60Hz 1Ph On-Board Charger, Pad Assist Drive Type (Pad Driver and Pad Wrap Packaging will default unless otherwise specified) | D45: T2-1001D | E45: 8551 | G45: =F45*E45 -> 0 | H45: =IFERROR(IFERROR(VLOOKUP(D45,Surcharge!A:B,2,FALSE)*F45, VLOOKUP(D45 & "",Surcharge!A:B,2,FALSE)*F45), "") -> 
C46: T2 Walk-Behind - Disk Scrubber, 430mm / 17", 102AH C/20 Gel Battery, Conventional Cleaning, 9A 100-240V AC 50/60Hz 1Ph On-Board Charger, Pad Assist Drive Type (Pad Driver and Pad Wrap Packaging will default unless otherwise specified) | D46: T2-1002D | E46: 8925 | G46: =F46*E46 -> 0 | H46: =IFERROR(IFERROR(VLOOKUP(D46,Surcharge!A:B,2,FALSE)*F46, VLOOKUP(D46 & "",Surcharge!A:B,2,FALSE)*F46), "") -> 
H47: =IFERROR(IFERROR(VLOOKUP(D47,Surcharge!A:B,2,FALSE)*F47, VLOOKUP(D47 & "",Surcharge!A:B,2,FALSE)*F47), "") -> 
B48: OPTIONAL | C48: Brushes - in place of Pad Driver (Note 1) | F48: =SUM(F49,F50) -> 0
C49: 430mm/17" Polypropylene Brush | D49: 1016765 | E49: 249 | G49: =F49*E49 -> 0 | H49: =IFERROR(IFERROR(VLOOKUP(D49,Surcharge!A:B,2,FALSE)*F49, VLOOKUP(D49 & "",Surcharge!A:B,2,FALSE)*F49), "") -> 
C50: 430mm/17" Nylon Brush | D50: 1016764 | E50: 305 | G50: =F50*E50 -> 0 | H50: =IFERROR(IFERROR(VLOOKUP(D50,Surcharge!A:B,2,FALSE)*F50, VLOOKUP(D50 & "",Surcharge!A:B,2,FALSE)*F50), "") -> 
B52: OPTIONAL | C52: Manuals | D52: Reference Number | F52: =SUM(F53) -> 0
C53: Parts Manual | D53: 9008845 | E53: 59 | G53: =F53*E53 -> 0 | H53: =IFERROR(IFERROR(VLOOKUP(D53,Surcharge!A:B,2,FALSE)*F53, VLOOKUP(D53 & "",Surcharge!A:B,2,FALSE)*F53), "") -> 
B55: OPTIONAL | C55: Packaging (Note 2) | F55: =SUM(F56) -> 0
C56: Skid w/Carton, Stackable | D56: 9011134 | E56: 332 | G56: =F56*E56 -> 0 | H56: =IFERROR(IFERROR(VLOOKUP(D56,Surcharge!A:B,2,FALSE)*F56, VLOOKUP(D56 & "",Surcharge!A:B,2,FALSE)*F56), "") -> 
B58: Notes | H58: =IFERROR(IFERROR(VLOOKUP(D58,Surcharge!A:B,2,FALSE)*F58, VLOOKUP(D58 & "",Surcharge!A:B,2,FALSE)*F58), "") -> 
B59: 1 | C59: One set of pad drivers come standard. A different brush may be chosen as an option | H59: =IFERROR(IFERROR(VLOOKUP(D59,Surcharge!A:B,2,FALSE)*F59, VLOOKUP(D59 & "",Surcharge!A:B,2,FALSE)*F59), "") -> 
B60: 2 | C60: All machines come standard with Pad Wrap packaging. Skid with carton packaging may be chosen as an option | H60: =IFERROR(IFERROR(VLOOKUP(D60,Surcharge!A:B,2,FALSE)*F60, VLOOKUP(D60 & "",Surcharge!A:B,2,FALSE)*F60), "") ->  | L60: =SUM(F60) -> 0 | M60: Surcharge Qty
C61: Pad wrap packaging is only available in the continental US. For shipments outside of the continental US, please select skid with carton packaging
F63: =SUM(#REF!) -> 
B65: Custom Solution--write in description, qty, price, and PN if applicable | F65: =SUM(F66) -> 0
E66: Insert Prices Here | F66: =SUM(F67:F70) -> 0
D67: Custom | F67: =IF(E67 <> "", 1, 0) -> 0 | G67: =F67*E67 -> 0
D68: Custom | F68: =IF(E68 <> "", 1, 0) -> 0 | G68: =F68*E68 -> 0
D69: Custom | F69: =IF(E69 <> "", 1, 0) -> 0 | G69: =F69*E69 -> 0
D70: Custom | F70: =IF(E70 <> "", 1, 0) -> 0 | G70: =F70*E70 -> 0
E71: =ROUND(SUM(G45:G70), 0) -> 0 | F71: =SUM(E72) -> 0
D72: Machine Subtotal | E72: =ROUND(SUM(G45:G70), 0) -> 0 | F72: =F71 -> 0
B73: Discounts | F73: =SUM(F74) -> 0
F74: =SUM(F75:F78) -> 0
D75: Discount % | F75: =IF(E75 <> "", 1, 0) -> 0 | G75: =IF(F75*(E75*0.01)*E71 < 0, F75*(E75*0.01)*E71, -(F75*(E75*0.01)*E71)) -> 0
D76: Discount $ | F76: =IF(E76 <> "", 1, 0) -> 0 | G76: =IF(F76*E76 < 0, F76*E76, -(F76*E76)) -> 0
D77: Discount $ | F77: =IF(E77 <> "", 1, 0) -> 0 | G77: =IF(F77*E77 < 0, F77*E77, -(F77*E77)) -> 0
D78: Discount $ | F78: =IF(E78 <> "", 1, 0) -> 0 | G78: =IF(F78*E78 < 0, F78*E78, -(F78*E78)) -> 0
D79: Discount Total | E79: =SUM(G75:G78) -> 0 | F79: =SUM(E79) -> 0
F80: =#REF! -> 
F81: =F80 -> 
C82: Prepaid and Add | D82: Freight | F82: =IF(E82 <> "", 1, 0) -> 0 | G82: =F82*E82 -> 0
C83: Subject to all applicable taxes | D83: Tax | F83: =IF(E83 <> "", 1, 0) -> 0 | G83: =F83*E83 -> 0
F84: =SUM(F85) -> 0
D85: MACHINE TOTAL* | F85: =SUM(G85) -> 0 | G85: =SUM(G45:G83) -> 0 | N85: This goes to "My Documents"
B86: Financing | G86: =G85 -> 0
C88: Is customer interested in financing? | D88: No
C90: If not, why?
C93: First Western Equipment Finance - Leasing Calculation Option: | D93: Option 1 | F93: Option 2 | J93: =Financing!A38 -> Rates 2025 - Rev. 5/6/2025
D94: Monthly Payment | E94: Cost Per Day | F94: Monthly Payment | G94: Cost Per Day | J94: =Financing!A39 -> “Blank Payment Amounts Indicate The Financing Option Or Purchase Options Selected Are Not
C95: Purchase Option: | D95: FWEF: $1 Buyout Lease | F95: FWEF: Municipal Lease | J95: =Financing!A40 -> Applicable Or The Machine Total Is Below The Minimum Amount For The Selected Vendor”
C96: 24 Months | D96: 0 | E96: 0 | F96: 0 | G96: 0 | J96: =Financing!A41 -> "Quoted monthly payments are estimates only and are based on a certain level of credit rating.
C97: 30 Months | D97: 0 | E97: 0 | F97: 0 | G97: 0 | J97: =Financing!A42 -> Actual monthly payments may be higher depending on your credit rating."
C98: 36 Months | D98: 0 | E98: 0 | F98: 0 | G98: 0 | J98: =Financing!A43 -> “Financing rates do not include Pre-Paid Service”
C99: 48 Months | D99: 0 | E99: 0 | F99: 0 | G99: 0 | I99: =Financing!A44 -> 0
D101: Benefits of Equipment Financing:
D102: • Spreads out investment over time. | F102: • Keep current with latest technology.
D103: • Preserve capital. | F103: • Service and parts bundling available.
D104: • Low monthly payment. | F104: • Pay for labor savings as you go.
C107: Bundled Offerings | D107: Flexclean – Fair Market Value | F107: Flexclean - $1 Buyout
C108: FlexClean: | D108: 36 Month Term | F108: 36 Month Term | I108: No | J108: AB Brushes
C109: Hours included per Month: | D109: Gold | E109: Silver | F109: Gold | G109: Silver | H109: Check
C110: < 30/mo. (Avg. 1hr./day) | I110: =FlexCleanCalc!$A21 -> “FlexClean monthly rates include payment for both machine and service.”
C111: < 60/mo. (Avg. 2hrs./day)
C112: < 90/mo. (Avg. 3hrs./day)
C113: *This value assumes one service contract regardless of the number of UNITS included in the quote
C116: Bundled Offerings | D116: Flexclean – Fair Market Value | F116: Flexclean - $1 Buyout
C117: FlexClean 2: | D117: 48 Month Term | F117: 48 Month Term
C118: Hours included per Month: | D118: Gold | E118: Silver | F118: Gold | G118: Silver
C119: < 30/mo. (Avg. 1hr./day)
C120: < 60/mo. (Avg. 2hrs./day)
C121: < 90/mo. (Avg. 3hrs./day)
C122: *This value assumes one service contract regardless of the number of UNITS included in the quote
C124: Bundled Offerings | D124: Flexclean – Fair Market Value | F124: Flexclean - $1 Buyout
C125: FlexClean 3: | D125: 60 Month Term | F125: 60 Month Term
C126: Hours included per Month: | D126: Gold | E126: Silver | F126: Gold | G126: Silver
C127: < 30/mo. (Avg. 1hr./day)
C128: < 60/mo. (Avg. 2hrs./day)
C129: < 90/mo. (Avg. 3hrs./day)
C130: *This value assumes one service contract regardless of the number of UNITS included in the quote
B132: TennantTrue
C134: Is customer interested in service program? | D134: Yes | E134: *State/County selection required for TennantTrue service options
C136: If not, why?
C138: Term: | D138: 36 | F138: AB Brushes | G138: No
C139: Monthly machine usage (hrs): | D139: < 30/mo. (Avg. 1hr./day)
C141: TennantTrue: | D141: Gold Contract | F141: Silver Contract
C142: Per Visit | F142: 425
C143: Monthly | D143: 120 | F143: 69
C144: Annually | F144: 816
C145: Pre-Pay Full Term | D145: 4162 | F145: 2397
C146: Hourly Labor Rate
C147: Site Visit
C149: * Verify customer current pricing prior to quote.
C150: **All rates and fees above reflect service for one (1) unit with the exception of Block of Time service.
C151: *Block of Time is available in 1 Year Term only and is priced as such no matter the term selection on this template.
B154: Servicing
C156: Is customer interested in a service plan? | D156: No
C158: If not, why?
B161: Quote Special Instructions:
C164: =Start_Here!E36 -> Terms and Conditions
C165: =Start_Here!E37 -> Ask your local sales rep for estimated lead times. Verify when placing order
C166: =Start_Here!E38 -> All orders subject to acceptance by Tennant Sales and Service Company, Minneapolis, Minnesota
C167: =Start_Here!E39 -> Prices subject to change without notice.
C168: =Start_Here!E40 -> Terms: Net 30 days. Subject to any applicable taxes.
C169: =Start_Here!E41 -> Freight: Machines and accessory orders delivered FOB shipping point Frt PPD & Add
C170: =Start_Here!E42 -> Parts, supplies, detergents and floor treating material orders delivered FOB
C171: =Start_Here!E43 -> shipping point Frt PPD
C172: =Start_Here!E44 -> All orders are subject to Tennant’s General Terms and Conditions available at http://www.tennantco.com/terms.
C173: =Start_Here!E45 -> Printed General Terms and Conditions are also available upon request.
C174: =Start_Here!E46 -> 0
E176: Quote Date : | G176: =Letter!$A$25 -> 2020-09-17
A177: Order Placement Information: To place your order, fill in PO# and customer signatures,
A178: call or fax to the numbers listed below. Customer Purchase Order is required.
A179: If information is missing, orders will be entered and held until all information is received.
C180: Customer Number | E180: Cust Grp 3
C181: =Start_Here!$C$25 -> 0 | E181: =Start_Here!$C$29 -> 0
C182: =Start_Here!$B$18 -> Who Owns the Machine? (Sold-To Info) (Please Verify)
A183: Company | C183: =Start_Here!$C$19 -> Company Name
A184: Address | C184: =Start_Here!$C$20 -> Address
C185: =Start_Here!$C$21 -> City, State Zip
A186: Name | C186: =Start_Here!$C$22 -> Contact Name
A187: Phone | C187: =Start_Here!$C$23 -> Contact Phone
C188: =Start_Here!$B$11 -> Where is the Machine Being Shipped? (Ship-To Info) (Please Verify)
A189: Company | C189: =Start_Here!$C$12 -> Company Name
A190: Address | C190: =Start_Here!$C$13 -> Address
C191: =Start_Here!$C$14 -> City, State Zip
A192: Name | C192: =Start_Here!$C$15 -> Contact Name
A193: Phone | C193: =Start_Here!$C$16 -> Contact Phone
C194: =Start_Here!$B$31 -> Shipping / Carrier Instructions: | E194: Order Special Instructions:
C195: =Start_Here!$C$32 -> 0
C197: Customer Purchase Order No.
C198: (please attach copy)
C201: Tax Exempt | E201: Yes
E202: No
C203: If Yes, attach a copy of your exemption certificate.
C205: Requested Delivery Date
C206: =Start_Here!$C$28 -> 0
C208: =Start_Here!$C$26 -> 0 | E208: =Start_Here!$C$27 -> 0
B209: 0 | C209: Authorized Buyer (please print) | E209: Phone Number
B212: 0 | C212: Authorized Buyer Signature
C214: =Start_Here!$C$41 -> Rep Name
C215: Tennant Representative
A217: Specialized Maintenance Equipment
A218: =Start_Here!$C$48 -> TENNANT · 10400 Clean Street · Eden Prairie, MN 55344 ·
A219: =Start_Here!$C$49 -> PHONE:800-553-8033 · FAX:763-513-2116
C222: Special Information
B223: Notes
B225: 1 | C225: Pre-Configured Machines cannot add or change options. All units will be packaged and shipped as stated above.
C226: When ordering, provide the reference number listed above. Price does not include freight or tax. Availability of units
C227: and lead time may vary.
B229: 2 | C229: Customer MUST order Skid w/Carton, Stackable if WITHOUT BATTERY is selected. Continental USA orders ONLY.
B231: 3 | C231: One pad driver comes standard with a T2.
B233: 4 | C233: Pad wrap available only in the Continental US and is the default packaging method.
C234: Customer MUST order Skid w/Carton, Stackable if WITHOUT BATTERY is selected.
C235: Skid w/Carton, Stackable is mandatory when shipping to AK and HI. Packaging is added at No Charge when shipping
C236: to these locations.
B238: 5 | C238: Machine Weights and dimensions | D238: Pad Wrap | E238: Skid w/Carton
C240: Weight (w/105AH battery) | D240: 300 lbs / 136 Kg | E240: 331 lbs / 150 Kg
C241: Length | D241: 44" / 1120mm | E241: 47" / 1200mm
C242: Width | D242: 19" / 478mm | E242: 30" / 750mm
C243: Height | D243: 37" / 930mm | E243: 45" / 1150mm

Sheet T300_Series_Std_Config
A1: T300_Series_Std_Config | C1: =Start_Here!$C19 -> Company Name
A2: =SUM(G101) -> 0 | C2: =Start_Here!$C20 -> Address
C3: =Start_Here!$C21 -> City, State Zip
C4: =Start_Here!$C22 -> Contact Name
C5: =Start_Here!$C$41 -> Rep Name
C6: =Start_Here!$C$37 -> Tennant Sales and Service Company
C7: =Start_Here!$C$38 -> 10400 Clean Street
C8: =Start_Here!$C$39 -> Eden Prairie, MN 55344
C9: =Start_Here!$C$43 -> 800-553-8033 | E9: Quote Date : | G9: =Letter!$A$25 -> 2020-09-17
C11: =Help!C2 -> US Date Rev - 5/6/2025
C12: BUILT-IN “TENNANT VALUE” INCLUDES:
B14: 42L/11 gal Solution Tank & 53 L/14 gal Recovery Tank | D14: Emergency Stop (standard on all drive units)
B15: Rugged DuramerTM Rotomold Tank Construction | D15: Free Floating Head Skirt (disk machines)
B16: Insta-ClickTM Pad Driver and Brush Attachment (Disk machines)
B17: HygienicTM Recovery Tank | D17: Front Water Fill Port w/ Hose Hook
B18: Multiple Setting Down Pressure | D18: Integrated Heat Sync for Electronics Protection
B19: Adjustable Solution Flow | D19: Sealed Electrical Connectors
B20: Variable Speed Control Bail | D20: Anti-Static Straps
B21: MembraneTM Control Panel | D21: 0.75 kW/1 HP brush motor, 230 RPM (disk)
B22: Pro-MembraneTM Control Panel with Multiple Zone Settings™ Capability
B23: Pro-PanelTM Controls with Full Color LCD Touch Screen (Option) | D23: 0.45 kW/0.6 HP brush motor, 2200 RPM (orbital)
B24: Supervisor QA ControlsTM settings (Lock Out Features) | D24: Recovery Tank Debris Tray with Deflector
B25: On Board Diagnostics | D25: Unsurpassed Ergonomic Design
B26: Extremely Low Noise Level (≤65 dBa) | D26: Gray Non-Marking Tires
B27: Quiet-Mode™ Standard | D27: 10cm /4" Edge & Reach Under Cleaning
B28: Wet 130AH and Wet 150AH Battery options available. | D28: Key Switch for Safety
B29: Quick Release Battery Harness | D29: Hour Meter
B30: Drain hose with pinch-cuff to control water flow | D30: Operators manual
B31: On-board Charger with 3m/15 ft power cord | D31: Jacking Points/Shipping Tie Downs
B32: Closed Machine Venting for Battery Charging | D32: Yellow Maintenance Touch Points | E32: Battery Tray
B33: Cast Aluminum Squeegee Frame | D33: Integrated Accessory Rails w/Squeegee & Bag Hang
B34: Breakaway Squeegee Design w/ Integrated P-Trap | D34: Composite Scrub Deck (Single Disk)
B35: Factory Set Squeegee Assembly for Maximum Recovery | D35: Cast Aluminum Scrub Deck (Dual Disk)
B36: Linatex Squeegee Blades with Tool-less Replacement | D36: 11 Gauge Steel Scrub Deck (Orbital Only)
C38: TENNANT COMPANY WARRANTY
C39: 3 YEARS OR 2000 HOURS - PARTS
C40: 1 YEAR - BATTERY CHARGERS
C41: 2 YEARS - LABOR
C42: 6 MONTHS - TRAVEL
C43: 10 YEARS ON DURAMERTM ROTOMOLD TANKS
E45: Quote Request Information
G46: Fax (quote only)
G47: Mail (quote,lit, specs)
G48: Fax + Mail
E50: Primary Use
G51: Inside
G52: Outside
C53: Description | D53: Reference # | E53: US List Price | F53: Qty. | G53: Extended Price
B54: Standard Configuration Machines | F54: =SUM(F55,F68,F74,F83) -> 0
F55: =SUM(F56:F66) -> 0
C56: T300e Walk-Behind - Disk Scrubber, 500mm / 20", Conventional 3-Lug Cleaning Tool Attachment, 130AH C/20 Battery, Conventional Cleaning, 13A 85-265V AC 50/60Hz 1Ph On-Board Charger, Pad Assist Drive Type, Single Down Pressure (Pad Driver and Pad Wrap Packaging will default unless otherwise specified) | D56: T300E-1001D | E56: 7924 | G56: =F56*E56 -> 0 | H56: =IFERROR(IFERROR(VLOOKUP(D56,Surcharge!A:B,2,FALSE)*F56, VLOOKUP(D56 & "",Surcharge!A:B,2,FALSE)*F56), "") ->  | L56: =SUM(F56) -> 0 | M56: Surcharge Qty
C58: T300e Walk-Behind - Disk Scrubber, 500mm / 20", Insta-Click Cleaning Tool Attachment, 130AH C/20 Battery, Conventional Cleaning, 13A 85-265V AC 50/60Hz 1Ph On-Board Charger, Self-Propel Drive Type, Multiple Down Pressure (Pad Driver and Pad Wrap Packaging will default unless otherwise specified) | D58: T300E-2001D | E58: 10404 | G58: 0 | H58: =IFERROR(IFERROR(VLOOKUP(D58,Surcharge!A:B,2,FALSE)*F58, VLOOKUP(D58 & "",Surcharge!A:B,2,FALSE)*F58), "") ->  | L58: =SUM(F58) -> 0 | M58: Surcharge Qty
C60: T300e Walk-Behind - Disk Scrubber, 500mm / 20", Insta-Click Cleaning Tool Attachment, 130AH C/20 Battery, ec-H20 NanoClean, 13A 85-265V AC 50/60Hz 1Ph On-Board Charger, Self-Propel Drive Type, Multiple Down Pressure (Pad Driver and Pad Wrap Packaging will default unless otherwise specified) | D60: T300E-2002D | E60: 12626 | G60: 0 | H60: =IFERROR(IFERROR(VLOOKUP(D60,Surcharge!A:B,2,FALSE)*F60, VLOOKUP(D60 & "",Surcharge!A:B,2,FALSE)*F60), "") ->  | L60: =SUM(F60) -> 0 | M60: Surcharge Qty
C62: T300 Walk-Behind - Disk Scrubber, 500mm / 20", Membrane Control Panel, Insta-Click Cleaning Tool Attachment, 150AH C/20 Battery, Conventional Cleaning, 13A 85-265V AC 50/60Hz 1Ph On-Board Charger, Self-Propel Drive Type, Mechanical Down Pressure, Quiet Mode (Pad Driver and Pad Wrap Packaging will default unless otherwise specified) | D62: T300-3001D | E62: 11330 | G62: 0 | H62: =IFERROR(IFERROR(VLOOKUP(D62,Surcharge!A:B,2,FALSE)*F62, VLOOKUP(D62 & "",Surcharge!A:B,2,FALSE)*F62), "") ->  | L62: =SUM(F62) -> 0 | M62: Surcharge Qty
C64: T300 Walk-Behind - Disk Scrubber, 500mm / 20", Pro Membrane Control Panel, Insta-Click Cleaning Tool Attachment, 150AH C/20 Battery, Conventional Cleaning, 13A 85-265V AC 50/60Hz 1Ph On-Board Charger, Self-Propel Drive Type, Automated Down Pressure, Quiet Mode (Pad Driver and Pad Wrap Packaging will default unless otherwise specified) | D64: T300-3002D | E64: 11625 | G64: 0 | H64: =IFERROR(IFERROR(VLOOKUP(D64,Surcharge!A:B,2,FALSE)*F64, VLOOKUP(D64 & "",Surcharge!A:B,2,FALSE)*F64), "") ->  | L64: =SUM(F64) -> 0 | M64: Surcharge Qty
C66: T300 Walk-Behind - Disk Scrubber, 500mm / 20", Pro Membrane Control Panel, Insta-Click Cleaning Tool Attachment, 150AH C/20 Battery, Manual Battery Watering System, ec-H20 NanoClean, 13A 85-265V AC 50/60Hz 1Ph On-Board Charger, Self-Propel Drive Type, Automated Down Pressure, Quiet Mode (Pad Driver and Pad Wrap Packaging will default unless otherwise specified) | D66: T300-3003D | E66: 14427 | G66: 0 | H66: =IFERROR(IFERROR(VLOOKUP(D66,Surcharge!A:B,2,FALSE)*F66, VLOOKUP(D66 & "",Surcharge!A:B,2,FALSE)*F66), "") -> 
F67: =SUM(F68:F85) -> 0 | H67: =IFERROR(IFERROR(VLOOKUP(D67,Surcharge!A:B,2,FALSE)*F67, VLOOKUP(D67 & "",Surcharge!A:B,2,FALSE)*F67), "") -> 
B68: OPTIONAL | C68: Brushes - in place of Pad Driver (Note 1) | F68: =SUM(F69:F72) -> 0 | H68: =IFERROR(IFERROR(VLOOKUP(D68,Surcharge!A:B,2,FALSE)*F68, VLOOKUP(D68 & "",Surcharge!A:B,2,FALSE)*F68), "") -> 
C69: 3-lug head, 500mm/20" Polypropylene Brush | D69: 1016811 | E69: N/C | G69: =IF(F69=0," ","N/C") ->  | H69: =IFERROR(IFERROR(VLOOKUP(D69,Surcharge!A:B,2,FALSE)*F69, VLOOKUP(D69 & "",Surcharge!A:B,2,FALSE)*F69), "") -> 
C70: 3-lug head, 500mm/20" Nylon Brush | D70: 1016810 | E70: N/C | G70: =IF(F70=0," ","N/C") ->  | H70: =IFERROR(IFERROR(VLOOKUP(D70,Surcharge!A:B,2,FALSE)*F70, VLOOKUP(D70 & "",Surcharge!A:B,2,FALSE)*F70), "") -> 
C71: Instaclick head, 500mm/20" Polypropylene Brush | D71: 1213032 | E71: N/C | G71: =IF(F71=0," ","N/C") ->  | H71: =IFERROR(IFERROR(VLOOKUP(D71,Surcharge!A:B,2,FALSE)*F71, VLOOKUP(D71 & "",Surcharge!A:B,2,FALSE)*F71), "") -> 
C72: Instaclick head, 500mm/20" Nylon Brush | D72: 1210386 | E72: N/C | G72: =IF(F72=0," ","N/C") ->  | H72: =IFERROR(IFERROR(VLOOKUP(D72,Surcharge!A:B,2,FALSE)*F72, VLOOKUP(D72 & "",Surcharge!A:B,2,FALSE)*F72), "") -> 
B74: OPTIONAL | C74: Manuals (Note 2) | D74: Reference Number | F74: =SUM(F77:F81) -> 0
C75: T300e Operator Manual (Spanish) - in place of English manual | D75: 9014507 | E75: N/C | G75: =IF(F75=0," ","N/C") ->  | H75: =IFERROR(IFERROR(VLOOKUP(D75,Surcharge!A:B,2,FALSE)*F75, VLOOKUP(D75 & "",Surcharge!A:B,2,FALSE)*F75), "") -> 
C76: T300e Operator Manual (French) - in place of English manual | D76: 9014508 | E76: N/C | G76: =IF(F76=0," ","N/C") ->  | H76: =IFERROR(IFERROR(VLOOKUP(D76,Surcharge!A:B,2,FALSE)*F76, VLOOKUP(D76 & "",Surcharge!A:B,2,FALSE)*F76), "") -> 
C77: T300 Operator Manual (Spanish) - in place of English manual | D77: 9014502 | E77: N/C | G77: =IF(F77=0," ","N/C") ->  | H77: =IFERROR(IFERROR(VLOOKUP(D77,Surcharge!A:B,2,FALSE)*F77, VLOOKUP(D77 & "",Surcharge!A:B,2,FALSE)*F77), "") -> 
C78: T300 Operator Manual (French) - in place of English manual | D78: 9014503 | E78: N/C | G78: =IF(F78=0," ","N/C") ->  | H78: =IFERROR(IFERROR(VLOOKUP(D78,Surcharge!A:B,2,FALSE)*F78, VLOOKUP(D78 & "",Surcharge!A:B,2,FALSE)*F78), "") -> 
C79: Additional Operator Manual | D79: SEE ABOVE | E79: 137 | G79: =F79*E79 -> 0
C80: T300e/T300 Parts Manual | D80: 9014500 | E80: 56 | G80: =F80*E80 -> 0 | H80: =IFERROR(IFERROR(VLOOKUP(D80,Surcharge!A:B,2,FALSE)*F80, VLOOKUP(D80 & "",Surcharge!A:B,2,FALSE)*F80), "") -> 
C81: T300e/T300 Service Manual | D81: 9014510 | E81: 137 | G81: =F81*E81 -> 0 | H81: =IFERROR(IFERROR(VLOOKUP(D81,Surcharge!A:B,2,FALSE)*F81, VLOOKUP(D81 & "",Surcharge!A:B,2,FALSE)*F81), "") -> 
B83: OPTIONAL | C83: Packaging (Note 3) | F83: =SUM(F84) -> 0
C84: Skid w/Carton, Stackable | D84: 9013859 | E84: 320 | G84: =F84*E84 -> 0 | H84: =IFERROR(IFERROR(VLOOKUP(D84,Surcharge!A:B,2,FALSE)*F84, VLOOKUP(D84 & "",Surcharge!A:B,2,FALSE)*F84), "") -> 
F86: =SUM(#REF!) -> 
E88: =ROUND(SUM(G56:G87), 0) -> 0 | F88: =SUM(E89) -> 0
D89: Machine Subtotal | E89: =ROUND(SUM(G56:G87), 0) -> 0 | F89: =F88 -> 0
B90: Discounts | F90: =SUM(F91) -> 0
F91: =SUM(F92:F95) -> 0
D92: Discount % | F92: =IF(E92 <> "", 1, 0) -> 0 | G92: =IF(F92*(E92*0.01)*E88 < 0, F92*(E92*0.01)*E88, -(F92*(E92*0.01)*E88)) -> 0
D93: Discount $ | F93: =IF(E93 <> "", 1, 0) -> 0 | G93: =IF(F93*E93 < 0, F93*E93, -(F93*E93)) -> 0
D94: Discount $ | F94: =IF(E94 <> "", 1, 0) -> 0 | G94: =IF(F94*E94 < 0, F94*E94, -(F94*E94)) -> 0
D95: Discount $ | F95: =IF(E95 <> "", 1, 0) -> 0 | G95: =IF(F95*E95 < 0, F95*E95, -(F95*E95)) -> 0
D96: Discount Total | E96: =SUM(G92:G95) -> 0 | F96: =SUM(E96) -> 0
F97: =#REF! -> 
C98: Prepaid and Add | D98: Freight | F98: =IF(E98 <> "", 1, 0) -> 0 | G98: =F98*E98 -> 0
C99: Subject to all applicable taxes | D99: Tax | F99: =IF(E99 <> "", 1, 0) -> 0 | G99: =F99*E99 -> 0
F100: =SUM(F101) -> 0
D101: MACHINE TOTAL* | F101: =SUM(G101) -> 0 | G101: =SUM(G56:G99) -> 0 | N101: This goes to "My Documents"
B102: Financing | G102: =G101 -> 0
C104: Is customer interested in financing? | D104: No
C106: If not, why?
C109: First Western Equipment Finance - Leasing Calculation Option: | D109: Option 1 | F109: Option 2 | J109: =Financing!A38 -> Rates 2025 - Rev. 5/6/2025
D110: Monthly Payment | E110: Cost Per Day | F110: Monthly Payment | G110: Cost Per Day | J110: =Financing!A39 -> “Blank Payment Amounts Indicate The Financing Option Or Purchase Options Selected Are Not
C111: Purchase Option: | D111: FWEF: $1 Buyout Lease | F111: FWEF: Municipal Lease | J111: =Financing!A40 -> Applicable Or The Machine Total Is Below The Minimum Amount For The Selected Vendor”
C112: 24 Months | D112: 0 | E112: 0 | F112: 0 | G112: 0 | J112: =Financing!A41 -> "Quoted monthly payments are estimates only and are based on a certain level of credit rating.
C113: 30 Months | D113: 0 | E113: 0 | F113: 0 | G113: 0 | J113: =Financing!A42 -> Actual monthly payments may be higher depending on your credit rating."
C114: 36 Months | D114: 0 | E114: 0 | F114: 0 | G114: 0 | J114: =Financing!A43 -> “Financing rates do not include Pre-Paid Service”
C115: 48 Months | D115: 0 | E115: 0 | F115: 0 | G115: 0
D117: Benefits of Equipment Financing:
D118: • Spreads out investment over time. | F118: • Keep current with latest technology.
D119: • Preserve capital. | F119: • Service and parts bundling available.
D120: • Low monthly payment. | F120: • Pay for labor savings as you go.
C123: Bundled Offerings | D123: Flexclean – Fair Market Value | F123: Flexclean - $1 Buyout
C124: FlexClean: | D124: 36 Month Term | F124: 36 Month Term | I124: No | J124: AB Brushes
C125: Hours included per Month: | D125: Gold | E125: Silver | F125: Gold | G125: Silver | H125: Check
C126: < 30/mo. (Avg. 1hr./day) | I126: =FlexCleanCalc!$A21 -> “FlexClean monthly rates include payment for both machine and service.”
C127: < 60/mo. (Avg. 2hrs./day)
C128: < 90/mo. (Avg. 3hrs./day)
C129: *This value assumes one service contract regardless of the number of UNITS included in the quote
C132: Bundled Offerings | D132: Flexclean – Fair Market Value | F132: Flexclean - $1 Buyout
C133: FlexClean 2: | D133: 48 Month Term | F133: 48 Month Term
C134: Hours included per Month: | D134: Gold | E134: Silver | F134: Gold | G134: Silver
C135: < 30/mo. (Avg. 1hr./day)
C136: < 60/mo. (Avg. 2hrs./day)
C137: < 90/mo. (Avg. 3hrs./day)
C138: *This value assumes one service contract regardless of the number of UNITS included in the quote
C140: Bundled Offerings | D140: Flexclean – Fair Market Value | F140: Flexclean - $1 Buyout
C141: FlexClean 3: | D141: 60 Month Term | F141: 60 Month Term
C142: Hours included per Month: | D142: Gold | E142: Silver | F142: Gold | G142: Silver
C143: < 30/mo. (Avg. 1hr./day)
C144: < 60/mo. (Avg. 2hrs./day)
C145: < 90/mo. (Avg. 3hrs./day)
C146: *This value assumes one service contract regardless of the number of UNITS included in the quote
B148: TennantTrue
C150: Is customer interested in service program? | D150: Yes | E150: *State/County selection required for TennantTrue service options
C152: If not, why?
C154: Term: | D154: 36 | F154: AB Brushes | G154: No
C155: Monthly machine usage (hrs): | D155: < 30/mo. (Avg. 1hr./day)
C157: TennantTrue: | D157: Gold Contract | F157: Silver Contract
C158: Per Visit | F158: 425
C159: Monthly | D159: 120 | F159: 69
C160: Annually | F160: 816
C161: Pre-Pay Full Term | D161: 4162 | F161: 2397
C162: Hourly Labor Rate
C163: Site Visit
C165: * Verify customer current pricing prior to quote.
C166: **All rates and fees above reflect service for one (1) unit with the exception of Block of Time service.
C167: *Block of Time is available in 1 Year Term only and is priced as such no matter the term selection on this template.
B170: Servicing
C172: Is customer interested in a service plan? | D172: No
C174: If not, why?
B177: Quote Special Instructions:
C180: =Start_Here!E36 -> Terms and Conditions
C181: =Start_Here!E37 -> Ask your local sales rep for estimated lead times. Verify when placing order
C182: =Start_Here!E38 -> All orders subject to acceptance by Tennant Sales and Service Company, Minneapolis, Minnesota
C183: =Start_Here!E39 -> Prices subject to change without notice.
C184: =Start_Here!E40 -> Terms: Net 30 days. Subject to any applicable taxes.
C185: =Start_Here!E41 -> Freight: Machines and accessory orders delivered FOB shipping point Frt PPD & Add
C186: =Start_Here!E42 -> Parts, supplies, detergents and floor treating material orders delivered FOB
C187: =Start_Here!E43 -> shipping point Frt PPD
C188: =Start_Here!E44 -> All orders are subject to Tennant’s General Terms and Conditions available at http://www.tennantco.com/terms.
C189: =Start_Here!E45 -> Printed General Terms and Conditions are also available upon request.
C190: =Start_Here!E46 -> 0
E192: Quote Date : | G192: =Letter!$A$25 -> 2020-09-17
A193: Order Placement Information: To place your order, fill in PO# and customer signatures,
A194: call or fax to the numbers listed below. Customer Purchase Order is required.
A195: If information is missing, orders will be entered and held until all information is received.
C196: Customer Number | E196: Cust Grp 3
C197: =Start_Here!$C$25 -> 0 | E197: =Start_Here!$C$29 -> 0
C198: =Start_Here!$B$18 -> Who Owns the Machine? (Sold-To Info) (Please Verify)
A199: Company | C199: =Start_Here!$C$19 -> Company Name
A200: Address | C200: =Start_Here!$C$20 -> Address
C201: =Start_Here!$C$21 -> City, State Zip
A202: Name | C202: =Start_Here!$C$22 -> Contact Name
A203: Phone | C203: =Start_Here!$C$23 -> Contact Phone
C204: =Start_Here!$B$11 -> Where is the Machine Being Shipped? (Ship-To Info) (Please Verify)
A205: Company | C205: =Start_Here!$C$12 -> Company Name
A206: Address | C206: =Start_Here!$C$13 -> Address
C207: =Start_Here!$C$14 -> City, State Zip
A208: Name | C208: =Start_Here!$C$15 -> Contact Name
A209: Phone | C209: =Start_Here!$C$16 -> Contact Phone
C210: =Start_Here!$B$31 -> Shipping / Carrier Instructions: | E210: Order Special Instructions:
C211: =Start_Here!$C$32 -> 0
C213: Customer Purchase Order No.
C214: (please attach copy)
C217: Tax Exempt | E217: Yes
E218: No
C219: If Yes, attach a copy of your exemption certificate.
C221: Requested Delivery Date
C222: =Start_Here!$C$28 -> 0
C224: =Start_Here!$C$26 -> 0 | E224: =Start_Here!$C$27 -> 0
B225: 0 | C225: Authorized Buyer (please print) | E225: Phone Number
B228: 0 | C228: Authorized Buyer Signature
C230: =Start_Here!$C$41 -> Rep Name
C231: Tennant Representative
A233: Specialized Maintenance Equipment
A234: =Start_Here!$C$48 -> TENNANT · 10400 Clean Street · Eden Prairie, MN 55344 ·
A235: =Start_Here!$C$49 -> PHONE:800-553-8033 · FAX:763-513-2116
C238: Special Information
B239: Notes
B240: 1 | C240: One set of pad drivers come standard. A different brush may be chosen as an option at no additional charge.
B241: 2 | C241: One English manual comes standard. A manual in a different language may be chosen as an option.
B242: 3 | C242: All machines come standard with Pad Wrap packaging. Skid with carton packaging may be chosen as an option
C243: Pad wrap packaging is only available in the continental US. For shipments outside of the continental US, please select skid with carton packaging

Sheet T350_Std_Config
A1: T350_Std_Config | C1: =Start_Here!$C19 -> Company Name
A2: =SUM(G96) -> 0 | C2: =Start_Here!$C20 -> Address
C3: =Start_Here!$C21 -> City, State Zip
C4: =Start_Here!$C22 -> Contact Name
C5: =Start_Here!$C$41 -> Rep Name
C6: =Start_Here!$C$37 -> Tennant Sales and Service Company
C7: =Start_Here!$C$38 -> 10400 Clean Street
C8: =Start_Here!$C$39 -> Eden Prairie, MN 55344
C9: =Start_Here!$C$43 -> 800-553-8033 | E9: Quote Date : | G9: =Letter!$A$25 -> 2020-09-17
C11: =Help!C2 -> US Date Rev - 5/6/2025
C12: BUILT-IN “TENNANT VALUE” INCLUDES:
B14: 53L/14.1 gal Solution Tank & 70 L/18.4 gal Recovery Tank | D14: Quick Release Squeegee Attachment/Removal
B15: Rugged Duramer™ Rotomold Tank Construction | D15: Linatex Squeegee Blades With Tool-less Replacement
B16: Insta-Click™ | D16: Emergency Stop
B17: Hygienic™ Recovery Tank | D17: Free Floating Head Skirt
B18: Multiple Setting Down Pressure | D18: Fill Port w/ Hose Hook
B19: Adjustable Solution Flow | D19: Integrated Heat Sync For Electronics Protection
B20: Variable Speed Control Knob | D20: Sealed Electrical Connectors
B21: Pro-Membrane™ Control Panel With Multiple Zone Settings™ | D21: Anti-Static Straps
B22: LCD Pro-Panel™ Full Color Touch Screen (Option) | D22: 24 VDC, 0.87 HP / 0.65 kW brush motor
B23: Supervisor QA Controls™ Settings (Lock Out Features) | D23: 215 RPM (500 mm/20") and 275 RPM (600 mm/24")
B24: On Board Diagnostics | D24: Recovery Tank Debris Tray
B25: Extremely Low Noise Level (as low as 63.7 dBa) | D25: Unsurpassed Ergonomic Design
B26: Quiet-Mode™ Sound Reduction (Optional) ( as low as 59.7 dBa) | D26: Non-Marking Wheels
B27: Wet 210AH, Wet 240AH, and Sealed 220AH AGM Available. | D27: 2.5 cm /1" Edge & Reach Under Cleaning
B28: Quick Release Battery Harness | D28: Key Switch for Safety
B29: Drain hose with pinch cuff to control water flow | D29: Hour Meter
B30: On-board Charger With 3m/15 ft Power Cord | D30: Operators manual
B31: Closed Machine Venting For Battery Charging | D31: Jacking Points/Shipping Tie Downs
B32: Breakaway Squeegee Design | D32: Yellow Maintenance Touch Points
B33: Factory Set Squeegee Assembly For Maximum Recovery | D33: Integrated Accessory Rail
B34: Cast Aluminum Squeegee Frame | D34: Composite Scrub Deck (Single Disk)
D35: Cast Aluminum Scrub Deck (Dual Disk)
B38: TENNANT COMPANY WARRANTY
B39: 3 YEARS OR 2500 HOURS ON ALL COMPONENTS, 3 YEARS LABOR
B40: 90 DAYS TRAVEL, 10 YEARS ON DURAMERTM TANKS
E44: Quote Request Information
G45: Fax (quote only)
G46: Mail (quote,lit, specs)
G47: Fax + Mail
E49: Primary Use
G50: Inside
G51: Outside
C52: Description | D52: Reference # | E52: US List Price | F52: Qty. | G52: Extended Price
B53: Standard Configuration Machines | F53: =SUM(F54,F63,F70,F77) -> 0
F54: =SUM(F55:F61) -> 0
C55: T350 Rider - Disk Scrubber, 500mm / 20", 210AH C/20 Battery, Conventional Cleaning, 25A 100-240V AC 50/60Hz 1Ph On-Board Charger (Pad Driver and Pad Wrap Packaging will default unless otherwise specified) | D55: T350-1001D | E55: 15509 | G55: =F55*E55 -> 0 | H55: =IFERROR(IFERROR(VLOOKUP(D55,Surcharge!A:B,2,FALSE)*F55, VLOOKUP(D55 & "",Surcharge!A:B,2,FALSE)*F55), "") -> 
C57: T350 Rider - Disk Scrubber, 600mm / 24", 210AH C/20 Battery, Conventional Cleaning, 25A 100-240V AC 50/60Hz 1Ph On-Board Charger (Pad Driver and Pad Wrap Packaging will default unless otherwise specified) | D57: T350-1002D | E57: 17237 | G57: =F57*E57 -> 0 | H57: =IFERROR(IFERROR(VLOOKUP(D57,Surcharge!A:B,2,FALSE)*F57, VLOOKUP(D57 & "",Surcharge!A:B,2,FALSE)*F57), "") -> 
C59: T350 Rider - Disk Scrubber, 500mm / 20", 240AH C/20 Battery, Smart-Fill Battery Watering, ec-H20 NanoClean, 25A 100-240V AC 50/60Hz 1Ph On-Board Charger, Quiet Mode (Pad Driver and Pad Wrap Packaging will default unless otherwise specified) | D59: T350-2001D | E59: 19390 | G59: =F59*E59 -> 0 | H59: =IFERROR(IFERROR(VLOOKUP(D59,Surcharge!A:B,2,FALSE)*F59, VLOOKUP(D59 & "",Surcharge!A:B,2,FALSE)*F59), "") -> 
H60: =IFERROR(IFERROR(VLOOKUP(D60,Surcharge!A:B,2,FALSE)*F60, VLOOKUP(D60 & "",Surcharge!A:B,2,FALSE)*F60), "") -> 
C61: T350 Rider - Disk Scrubber, 600mm / 24", 240AH C/20 Battery, Smart-Fill Battery Watering, ec-H20 NanoClean, 25A 100-240V AC 50/60Hz 1Ph On-Board Charger, Quiet Mode (Pad Driver and Pad Wrap Packaging will default unless otherwise specified) | D61: T350-2002D | E61: 21118 | G61: =F61*E61 -> 0
B63: OPTIONAL | C63: Brushes - in place of Pad Driver (Note 1) | F63: =SUM(F64:F67) -> 0 | H63: =IFERROR(IFERROR(VLOOKUP(D63,Surcharge!A:B,2,FALSE)*F63, VLOOKUP(D63 & "",Surcharge!A:B,2,FALSE)*F63), "") -> 
C64: 500mm/20" Polypropylene Brush | D64: 1213032 | E64: N/C | G64: =IF(F64=0," ","N/C") ->  | H64: =IFERROR(IFERROR(VLOOKUP(D64,Surcharge!A:B,2,FALSE)*F64, VLOOKUP(D64 & "",Surcharge!A:B,2,FALSE)*F64), "") -> 
C65: 500mm/20" Nylon Brush | D65: 1210386 | E65: N/C | G65: =IF(F65=0," ","N/C") ->  | H65: =IFERROR(IFERROR(VLOOKUP(D65,Surcharge!A:B,2,FALSE)*F65, VLOOKUP(D65 & "",Surcharge!A:B,2,FALSE)*F65), "") -> 
C66: 600mm/24" Polypropylene Brush (2 Required) | D66: 1213040 | E66: N/C | G66: =IF(F66=0," ","N/C") ->  | H66: =IFERROR(IFERROR(VLOOKUP(D66,Surcharge!A:B,2,FALSE)*F66, VLOOKUP(D66 & "",Surcharge!A:B,2,FALSE)*F66), "") -> 
C67: 600mm/24" Nylon Brush (2 Required) | D67: 1210136 | E67: N/C | G67: =IF(F67=0," ","N/C") ->  | H67: =IFERROR(IFERROR(VLOOKUP(D67,Surcharge!A:B,2,FALSE)*F67, VLOOKUP(D67 & "",Surcharge!A:B,2,FALSE)*F67), "") -> 
B70: OPTIONAL | C70: Manuals (Note 2) | D70: Reference Number | F70: =SUM(F71:F75) -> 0
C71: Operator Manual (Spanish) - in place of English manual | D71: 9016418 | E71: N/C | G71: =IF(F71=0," ","N/C") ->  | H71: =IFERROR(IFERROR(VLOOKUP(D71,Surcharge!A:B,2,FALSE)*F71, VLOOKUP(D71 & "",Surcharge!A:B,2,FALSE)*F71), "") -> 
C72: Operator Manual (French) - in place of English manual | D72: 9016419 | E72: N/C | G72: =IF(F72=0," ","N/C") ->  | H72: =IFERROR(IFERROR(VLOOKUP(D72,Surcharge!A:B,2,FALSE)*F72, VLOOKUP(D72 & "",Surcharge!A:B,2,FALSE)*F72), "") -> 
C73: Additional Operator Manual | D73: SEE ABOVE | E73: 146 | G73: =F73*E73 -> 0
C74: Parts Manual | D74: 9016416 | E74: 59 | G74: =F74*E74 -> 0 | H74: =IFERROR(IFERROR(VLOOKUP(D74,Surcharge!A:B,2,FALSE)*F74, VLOOKUP(D74 & "",Surcharge!A:B,2,FALSE)*F74), "") -> 
C75: Service Manual | D75: 9016422 | E75: 146 | G75: =F75*E75 -> 0 | H75: =IFERROR(IFERROR(VLOOKUP(D75,Surcharge!A:B,2,FALSE)*F75, VLOOKUP(D75 & "",Surcharge!A:B,2,FALSE)*F75), "") -> 
B77: OPTIONAL | C77: Packaging (Note 3) | F77: =SUM(F78) -> 0
C78: Skid w/Carton, Stackable | D78: 9040253 | E78: 515 | G78: =F78*E78 -> 0 | H78: =IFERROR(IFERROR(VLOOKUP(D78,Surcharge!A:B,2,FALSE)*F78, VLOOKUP(D78 & "",Surcharge!A:B,2,FALSE)*F78), "") -> 
F80: =SUM(#REF!) -> 
E83: =ROUND(SUM(G55:G82), 0) -> 0 | F83: =SUM(E84) -> 0
D84: Machine Subtotal | E84: =ROUND(SUM(G55:G82), 0) -> 0 | F84: =F83 -> 0
B85: Discounts | F85: =SUM(F86) -> 0
F86: =SUM(F87:F90) -> 0
D87: Discount % | F87: =IF(E87 <> "", 1, 0) -> 0 | G87: =IF(F87*(E87*0.01)*E83 < 0, F87*(E87*0.01)*E83, -(F87*(E87*0.01)*E83)) -> 0
D88: Discount $ | F88: =IF(E88 <> "", 1, 0) -> 0 | G88: =IF(F88*E88 < 0, F88*E88, -(F88*E88)) -> 0
D89: Discount $ | F89: =IF(E89 <> "", 1, 0) -> 0 | G89: =IF(F89*E89 < 0, F89*E89, -(F89*E89)) -> 0
D90: Discount $ | F90: =IF(E90 <> "", 1, 0) -> 0 | G90: =IF(F90*E90 < 0, F90*E90, -(F90*E90)) -> 0
D91: Discount Total | E91: =SUM(G87:G90) -> 0 | F91: =SUM(E91) -> 0
F92: =#REF! -> 
C93: Prepaid and Add | D93: Freight | F93: =IF(E93 <> "", 1, 0) -> 0 | G93: =F93*E93 -> 0
C94: Subject to all applicable taxes | D94: Tax | F94: =IF(E94 <> "", 1, 0) -> 0 | G94: =F94*E94 -> 0
F95: =SUM(F96) -> 0
D96: MACHINE TOTAL* | F96: =SUM(G96) -> 0 | G96: =SUM(G55:G94) -> 0 | N96: This goes to "My Documents"
B97: Financing | G97: =G96 -> 0
C99: Is customer interested in financing? | D99: No
C101: If not, why?
C104: First Western Equipment Finance - Leasing Calculation Option: | D104: Option 1 | F104: Option 2 | J104: =Financing!A38 -> Rates 2025 - Rev. 5/6/2025
D105: Monthly Payment | E105: Cost Per Day | F105: Monthly Payment | G105: Cost Per Day | J105: =Financing!A39 -> “Blank Payment Amounts Indicate The Financing Option Or Purchase Options Selected Are Not
C106: Purchase Option: | D106: FWEF: $1 Buyout Lease | F106: FWEF: Municipal Lease | J106: =Financing!A40 -> Applicable Or The Machine Total Is Below The Minimum Amount For The Selected Vendor”
C107: 24 Months | D107: 0 | E107: 0 | F107: 0 | G107: 0 | J107: =Financing!A41 -> "Quoted monthly payments are estimates only and are based on a certain level of credit rating.
C108: 30 Months | D108: 0 | E108: 0 | F108: 0 | G108: 0 | J108: =Financing!A42 -> Actual monthly payments may be higher depending on your credit rating."
C109: 36 Months | D109: 0 | E109: 0 | F109: 0 | G109: 0 | J109: =Financing!A43 -> “Financing rates do not include Pre-Paid Service”
C110: 48 Months | D110: 0 | E110: 0 | F110: 0 | G110: 0
D112: Benefits of Equipment Financing:
D113: • Spreads out investment over time. | F113: • Keep current with latest technology.
D114: • Preserve capital. | F114: • Service and parts bundling available.
D115: • Low monthly payment. | F115: • Pay for labor savings as you go.
C118: Bundled Offerings | D118: Flexclean – Fair Market Value | F118: Flexclean - $1 Buyout
C119: FlexClean: | D119: 36 Month Term | F119: 36 Month Term | I119: No | J119: AB Brushes
C120: Hours included per Month: | D120: Gold | E120: Silver | F120: Gold | G120: Silver | H120: Check
C121: < 30/mo. (Avg. 1hr./day) | I121: =FlexCleanCalc!$A21 -> “FlexClean monthly rates include payment for both machine and service.”
C122: < 60/mo. (Avg. 2hrs./day)
C123: < 90/mo. (Avg. 3hrs./day)
C124: *This value assumes one service contract regardless of the number of UNITS included in the quote
C127: Bundled Offerings | D127: Flexclean – Fair Market Value | F127: Flexclean - $1 Buyout
C128: FlexClean 2: | D128: 48 Month Term | F128: 48 Month Term
C129: Hours included per Month: | D129: Gold | E129: Silver | F129: Gold | G129: Silver
C130: < 30/mo. (Avg. 1hr./day)
C131: < 60/mo. (Avg. 2hrs./day)
C132: < 90/mo. (Avg. 3hrs./day)
C133: *This value assumes one service contract regardless of the number of UNITS included in the quote
C135: Bundled Offerings | D135: Flexclean – Fair Market Value | F135: Flexclean - $1 Buyout
C136: FlexClean 3: | D136: 60 Month Term | F136: 60 Month Term
C137: Hours included per Month: | D137: Gold | E137: Silver | F137: Gold | G137: Silver
C138: < 30/mo. (Avg. 1hr./day)
C139: < 60/mo. (Avg. 2hrs./day)
C140: < 90/mo. (Avg. 3hrs./day)
C141: *This value assumes one service contract regardless of the number of UNITS included in the quote
B143: TennantTrue
C145: Is customer interested in service program? | D145: Yes | E145: *State/County selection required for TennantTrue service options
C147: If not, why?
C149: Term: | D149: 36 | F149: AB Brushes | G149: No
C150: Monthly machine usage (hrs): | D150: < 30/mo. (Avg. 1hr./day)
C152: TennantTrue: | D152: Gold Contract | F152: Silver Contract
C153: Per Visit | F153: 425
C154: Monthly | D154: 129 | F154: 69
C155: Annually | F155: 816
C156: Pre-Pay Full Term | D156: 4444 | F156: 2397
C157: Hourly Labor Rate
C158: Site Visit
C160: * Verify customer current pricing prior to quote.
C161: **All rates and fees above reflect service for one (1) unit with the exception of Block of Time service.
C162: *Block of Time is available in 1 Year Term only and is priced as such no matter the term selection on this template.
B165: Servicing
C167: Is customer interested in a service plan? | D167: No
C169: If not, why?
B172: Quote Special Instructions:
C175: =Start_Here!E36 -> Terms and Conditions
C176: =Start_Here!E37 -> Ask your local sales rep for estimated lead times. Verify when placing order
C177: =Start_Here!E38 -> All orders subject to acceptance by Tennant Sales and Service Company, Minneapolis, Minnesota
C178: =Start_Here!E39 -> Prices subject to change without notice.
C179: =Start_Here!E40 -> Terms: Net 30 days. Subject to any applicable taxes.
C180: =Start_Here!E41 -> Freight: Machines and accessory orders delivered FOB shipping point Frt PPD & Add
C181: =Start_Here!E42 -> Parts, supplies, detergents and floor treating material orders delivered FOB
C182: =Start_Here!E43 -> shipping point Frt PPD
C183: =Start_Here!E44 -> All orders are subject to Tennant’s General Terms and Conditions available at http://www.tennantco.com/terms.
C184: =Start_Here!E45 -> Printed General Terms and Conditions are also available upon request.
C185: =Start_Here!E46 -> 0
E187: Quote Date : | G187: =Letter!$A$25 -> 2020-09-17
A188: Order Placement Information: To place your order, fill in PO# and customer signatures,
A189: call or fax to the numbers listed below. Customer Purchase Order is required.
A190: If information is missing, orders will be entered and held until all information is received.
C191: Customer Number | E191: Cust Grp 3
C192: =Start_Here!$C$25 -> 0 | E192: =Start_Here!$C$29 -> 0
C193: =Start_Here!$B$18 -> Who Owns the Machine? (Sold-To Info) (Please Verify)
A194: Company | C194: =Start_Here!$C$19 -> Company Name
A195: Address | C195: =Start_Here!$C$20 -> Address
C196: =Start_Here!$C$21 -> City, State Zip
A197: Name | C197: =Start_Here!$C$22 -> Contact Name
A198: Phone | C198: =Start_Here!$C$23 -> Contact Phone
C199: =Start_Here!$B$11 -> Where is the Machine Being Shipped? (Ship-To Info) (Please Verify)
A200: Company | C200: =Start_Here!$C$12 -> Company Name
A201: Address | C201: =Start_Here!$C$13 -> Address
C202: =Start_Here!$C$14 -> City, State Zip
A203: Name | C203: =Start_Here!$C$15 -> Contact Name
A204: Phone | C204: =Start_Here!$C$16 -> Contact Phone
C205: =Start_Here!$B$31 -> Shipping / Carrier Instructions: | E205: Order Special Instructions:
C206: =Start_Here!$C$32 -> 0
C208: Customer Purchase Order No.
C209: (please attach copy)
C212: Tax Exempt | E212: Yes
E213: No
C214: If Yes, attach a copy of your exemption certificate.
C216: Requested Delivery Date
C217: =Start_Here!$C$28 -> 0
C219: =Start_Here!$C$26 -> 0 | E219: =Start_Here!$C$27 -> 0
B220: 0 | C220: Authorized Buyer (please print) | E220: Phone Number
B223: 0 | C223: Authorized Buyer Signature
C225: =Start_Here!$C$41 -> Rep Name
C226: Tennant Representative
A228: Specialized Maintenance Equipment
A229: =Start_Here!$C$48 -> TENNANT · 10400 Clean Street · Eden Prairie, MN 55344 ·
A230: =Start_Here!$C$49 -> PHONE:800-553-8033 · FAX:763-513-2116
B233: Notes
B234: 1 | C234: One set of pad drivers come standard. A different brush may be chosen as an option
B235: 2 | C235: One English manual comes standard. A manual in a different language may be chosen as an option.
B236: 3 | C236: All machines come standard with Pad Wrap packaging. Skid with carton packaging may be chosen as an option
C237: Pad wrap packaging is only available in the continental US. For shipments outside of the continental US, please select skid with carton packaging
B239: 4 | C239: Shipping Weights and Dimensions | D239: Pad Wrap
C241: Weight: 500mm / 20" | D241: 725 lbs / 329 Kg
C242: Weight: 600mm / 24" | D242: 730 lbs / 331 Kg
C243: Length | D243: 55" / 1397 mm
C244: Width | D244: 26.5" / 673 mm
C245: Height | D245: 49" / 1245 mm

Sheet T500_Series_Std_Config
A1: T500_Series_Std_Config | C1: =Start_Here!$C19 -> Company Name
A2: =SUM(G111) -> 0 | C2: =Start_Here!$C20 -> Address
C3: =Start_Here!$C21 -> City, State Zip
C4: =Start_Here!$C22 -> Contact Name
C5: =Start_Here!$C$41 -> Rep Name
C6: =Start_Here!$C$37 -> Tennant Sales and Service Company
C7: =Start_Here!$C$38 -> 10400 Clean Street
C8: =Start_Here!$C$39 -> Eden Prairie, MN 55344
C9: =Start_Here!$C$43 -> 800-553-8033 | E9: Quote Date : | G9: =Letter!$A$25 -> 2020-09-17
C11: =Help!C2 -> US Date Rev - 5/6/2025
C12: BUILT-IN “TENNANT VALUE” INCLUDES:
C14: Fully Sprayable Hygenic® Recovery Tank | E14: Yellow Maintenance Touch Points
C15: Tanks: 85 L/22.5 gal Solution & 100 L/26.5 gal Recovery | E15: Emergency Stop Kit
C16: 1-STEP™ Button Memory Controls | E16: Key Switch for Safety
C17: Supervisor QA Controls™ settings (Lock Out Features) | E17: Rugged Duramer™ Tank Construction
C18: Extremely Low Noise Levels Standard (≤67 dBA) | E18: Gray Non-Marking Tires
C19: Quiet-Mode™ (Lowers to 62 dBA and extends run-time) | E19: Standard (4) 6 V 225AH Battery Pack (Optional AGM Batteries)
C20: On Board Diagnostics | E20: Battery Tray
C21: Recovery Tank Debris Tray | E21: On-Board Charger with Power Cord
C22: Cast Aluminum Squeegee Frame & Scrub Decks (D/C) | E22: Closed Machine Venting for Battery Charging
C23: 11 Gauge Steel Scrub Deck (Orbital Only) | E23: 100% Water Recovery in 180º Turns w/ Standard Squeegee
C24: Three Selectable Down Pressures & Solution Flows | E24: Insta-Fit™ No-Tool Pad Driver and Brush Attachment (Disk machines)
C25: Front Water Fill Port | E25: No-Tool Squeegee Change
C26: Automatic: Water On / Off | E26: Breakaway Squeegee Design w/ Integrated P-Trap
C27: Brush On / Off | E27: Factory Set Squeegee Assembly for Maximum Recovery
C28: Brush Shutoff at 80% Discharge | E28: Linard Front/Linatex Rear Squeegee Blades with Tool-less Replacement
C29: Integrated Accessory Rails with Bag Hang hooks | E29: Includes Standard Pad Drivers or Scrubbing Brushes (Select One)
C30: Excellent Ergonomic Controls Design | E30: Free Floating Head Skirt (disk machines)
C31: Pro-Membrane™ Control Panel w/ 3 Zone Settings™ (Standard) | E31: Hour Meter
C32: Pro-Panel™ LCD Touch Screen Control Panel (Option) | E32: Operators manual
C33: On-Demand Tutorial Videos & 4 Customizable Zone Settings | E33: Jacking Points/Shipping Tie Downs
C34: Integrated Heat Sync for Electronics Protection | E34: Sealed Electrical Connectors in key areas
C35: Optional ec-H2O NanoClean™ Equipped Models Include: | E35: Drain hose with pinch cuff to control water flow
C36: Electrically Converted Water Technology System
C37: Two Scrubbing Modes: ec-H2O NanoCleanTM & Conventional Scrub
G38: Same
C39: TENNANT COMPANY WARRANTY
C40: 3 YEARS OR 2000 HOURS - PARTS
C41: 1 YEAR - BATTERY CHARGERS
C42: 3 YEARS OR 2000 HOURS ORBITAL SCRUB HEAD ISOLATORS
C43: 2 YEARS - LABOR, 6 MONTHS - TRAVEL
C44: 10 YEARS ON DURAMERTM ROTOMOLD TANKS
E46: Quote Request Information
G47: Fax (quote only)
G48: Mail (quote,lit, specs)
G49: Fax + Mail
E51: Primary Use
G52: Inside
G53: Outside
C55: Description | D55: Reference # | E55: Price Each | F55: Qty | G55: Extended Price
B56: Standard Configuration Machines: | F56: =SUM(F57:F73) -> 0
C57: T500e Walk-Behind - Disk Scrubber, 650mm / 26", 225AH C/20 Battery, Conventional Cleaning, 25A 100-240V AC 50/60Hz 1Ph On-Board Charger (Pad Driver and Pad Wrap Packaging will default unless otherwise specified) | D57: T500E-1001D | E57: 15526 | G57: =F57*E57 -> 0 | H57: =IFERROR(IFERROR(VLOOKUP(D57,Surcharge!A:B,2,FALSE)*F57, VLOOKUP(D57 & "",Surcharge!A:B,2,FALSE)*F57), "") -> 
C59: T500e Walk-Behind - Disk Scrubber, 700mm / 28", 225AH C/20 Battery, Conventional Cleaning, 25A 100-240V AC 50/60Hz 1Ph On-Board Charger (Pad Driver and Pad Wrap Packaging will default unless otherwise specified) | D59: T500E-1002D | E59: 16336 | G59: =F59*E59 -> 0 | H59: =IFERROR(IFERROR(VLOOKUP(D59,Surcharge!A:B,2,FALSE)*F59, VLOOKUP(D59 & "",Surcharge!A:B,2,FALSE)*F59), "") -> 
C61: T500e Walk-Behind - Disk Scrubber, 800mm / 32", 225AH C/20 Battery, Conventional Cleaning, 25A 100-240V AC 50/60Hz 1Ph On-Board Charger (Pad Driver and Pad Wrap Packaging will default unless otherwise specified) | D61: T500E-1003D | E61: 17224 | G61: =F61*E61 -> 0 | H61: =IFERROR(IFERROR(VLOOKUP(D61,Surcharge!A:B,2,FALSE)*F61, VLOOKUP(D61 & "",Surcharge!A:B,2,FALSE)*F61), "") -> 
C63: T500 Walk-Behind - Disk Scrubber, 650mm / 26", Pro Membrane Control Panel, 225AH C/20 Battery, Smart-Fill Battery Watering System, Conventional Cleaning, 25A 100-240V AC 50/60Hz 1Ph On-Board Charger (Pad Driver and Pad Wrap Packaging will default unless otherwise specified) | D63: T500-2001D | E63: 17723 | G63: =F63*E63 -> 0 | H63: =IFERROR(IFERROR(VLOOKUP(D63,Surcharge!A:B,2,FALSE)*F63, VLOOKUP(D63 & "",Surcharge!A:B,2,FALSE)*F63), "") -> 
C65: T500 Walk-Behind - Disk Scrubber, 700mm / 28", Pro Membrane Control Panel, 225AH C/20 Battery, Smart-Fill Battery Watering System, Conventional Cleaning, 25A 100-240V AC 50/60Hz 1Ph On-Board Charger (Pad Driver and Pad Wrap Packaging will default unless otherwise specified) | D65: T500-2002D | E65: 19198 | G65: 0 | H65: =IFERROR(IFERROR(VLOOKUP(D65,Surcharge!A:B,2,FALSE)*F65, VLOOKUP(D65 & "",Surcharge!A:B,2,FALSE)*F65), "") -> 
C67: T500 Walk-Behind - Disk Scrubber, 800mm / 32", Pro Membrane Control Panel, 225AH C/20 Battery, Smart-Fill Battery Watering System, Conventional Cleaning, 25A 100-240V AC 50/60Hz 1Ph On-Board Charger (Pad Driver and Pad Wrap Packaging will default unless otherwise specified) | D67: T500-2003D | E67: 20187 | G67: 0 | H67: =IFERROR(IFERROR(VLOOKUP(D67,Surcharge!A:B,2,FALSE)*F67, VLOOKUP(D67 & "",Surcharge!A:B,2,FALSE)*F67), "") -> 
C69: T500 Walk-Behind - Disk Scrubber, 650mm / 26", Pro Membrane Control Panel, 225AH C/20 Battery, Smart-Fill Battery Watering System, ec-H20 cleaning, 25A 100-240V AC 50/60Hz 1Ph On-Board Charger (Pad Driver and Pad Wrap Packaging will default unless otherwise specified) | D69: T500-3001D | E69: 20763 | G69: 0 | H69: =IFERROR(IFERROR(VLOOKUP(D69,Surcharge!A:B,2,FALSE)*F69, VLOOKUP(D69 & "",Surcharge!A:B,2,FALSE)*F69), "") -> 
C71: T500 Walk-Behind - Disk Scrubber, 700mm / 28", Pro Membrane Control Panel, 225AH C/20 Battery, Smart-Fill Battery Watering System, ec-H20 cleaning, 25A 100-240V AC 50/60Hz 1Ph On-Board Charger (Pad Driver and Pad Wrap Packaging will default unless otherwise specified) | D71: T500-3002D | E71: 22238 | G71: 0 | H71: =IFERROR(IFERROR(VLOOKUP(D71,Surcharge!A:B,2,FALSE)*F71, VLOOKUP(D71 & "",Surcharge!A:B,2,FALSE)*F71), "") -> 
C73: T500 Walk-Behind - Disk Scrubber, 800mm / 32", Pro Membrane Control Panel, 225AH C/20 Battery, Smart-Fill Battery Watering System, ec-H20 cleaning, 25A 100-240V AC 50/60Hz 1Ph On-Board Charger (Pad Driver and Pad Wrap Packaging will default unless otherwise specified) | D73: T500-3003D | E73: 22238 | G73: 0 | H73: =IFERROR(IFERROR(VLOOKUP(D73,Surcharge!A:B,2,FALSE)*F73, VLOOKUP(D73 & "",Surcharge!A:B,2,FALSE)*F73), "") -> 
B75: OPTIONAL | C75: Brushes - in place of Pad Driver (2 Required) (Note 1) | F75: =SUM(F76:F81) -> 0
C76: 650mm / 26" Disk Polypropylene Brush | D76: 1223989 | E76: N/C | G76: =IF(F76=0," ","N/C") ->  | H76: =IFERROR(IFERROR(VLOOKUP(D76,Surcharge!A:B,2,FALSE)*F76, VLOOKUP(D76 & "",Surcharge!A:B,2,FALSE)*F76), "") -> 
C77: 650mm / 26" Disk Nylon Brush | D77: 1223991 | E77: N/C | H77: =IFERROR(IFERROR(VLOOKUP(D77,Surcharge!A:B,2,FALSE)*F77, VLOOKUP(D77 & "",Surcharge!A:B,2,FALSE)*F77), "") -> 
C78: 700mm / 28" Disk Polypropylene Brush | D78: 1220218 | E78: N/C | H78: =IFERROR(IFERROR(VLOOKUP(D78,Surcharge!A:B,2,FALSE)*F78, VLOOKUP(D78 & "",Surcharge!A:B,2,FALSE)*F78), "") -> 
C79: 700mm / 28" Disk Nylon Brush | D79: 1221541 | E79: N/C | H79: =IFERROR(IFERROR(VLOOKUP(D79,Surcharge!A:B,2,FALSE)*F79, VLOOKUP(D79 & "",Surcharge!A:B,2,FALSE)*F79), "") -> 
C80: 800mm / 32" Disk Polypropylene Brush | D80: 1220216 | E80: N/C | H80: =IFERROR(IFERROR(VLOOKUP(D80,Surcharge!A:B,2,FALSE)*F80, VLOOKUP(D80 & "",Surcharge!A:B,2,FALSE)*F80), "") -> 
C81: 800mm / 32" Disk Nylon Brush | D81: 1220215 | E81: N/C | H81: =IFERROR(IFERROR(VLOOKUP(D81,Surcharge!A:B,2,FALSE)*F81, VLOOKUP(D81 & "",Surcharge!A:B,2,FALSE)*F81), "") -> 
B82: OPTIONAL | C82: Manuals (Note 2) | F82: =SUM(F83:F91) -> 0
C83: T500e Operator Manual (Spanish) - in place of English manual | D83: 9015507 | E83: N/C
C84: T500e Operator Manual (French) - in place of English manual | D84: 9015508 | E84: N/C
C85: Additional Operator Manual | D85: SEE ABOVE | E85: 135 | G85: =F85*E85 -> 0
C86: T500e Parts Manual | D86: 9015505 | E86: 55 | G86: =F86*E86 -> 0
C87: T500e Service Manual | D87: 9015511 | E87: 135 | G87: =F87*E87 -> 0
C88: T500 Operator Manual (Spanish) - in place of English manual | D88: 9015500 | E88: N/C | G88: =IF(F88=0," ","N/C") ->  | H88: =IFERROR(IFERROR(VLOOKUP(D88,Surcharge!A:B,2,FALSE)*F88, VLOOKUP(D88 & "",Surcharge!A:B,2,FALSE)*F88), "") -> 
C89: T500 Operator Manual (French) - in place of English manual | D89: 9015501 | E89: N/C | G89: =IF(F89=0," ","N/C") ->  | H89: =IFERROR(IFERROR(VLOOKUP(D89,Surcharge!A:B,2,FALSE)*F89, VLOOKUP(D89 & "",Surcharge!A:B,2,FALSE)*F89), "") -> 
C90: T500 Parts Manual | D90: 9015222 | E90: 55 | G90: =F90*E90 -> 0 | H90: =IFERROR(IFERROR(VLOOKUP(D90,Surcharge!A:B,2,FALSE)*F90, VLOOKUP(D90 & "",Surcharge!A:B,2,FALSE)*F90), "") -> 
C91: T500 Service Manual | D91: 9015504 | E91: 135 | G91: =F91*E91 -> 0 | H91: =IFERROR(IFERROR(VLOOKUP(D91,Surcharge!A:B,2,FALSE)*F91, VLOOKUP(D91 & "",Surcharge!A:B,2,FALSE)*F91), "") -> 
B93: OPTIONAL | C93: Packaging (Note 3) | F93: =SUM(F94) -> 0
C94: Skid w/Carton, Stackable | D94: 9015450 | E94: 472 | G94: =F94*E94 -> 0 | H94: =IFERROR(IFERROR(VLOOKUP(D94,Surcharge!A:B,2,FALSE)*F94, VLOOKUP(D94 & "",Surcharge!A:B,2,FALSE)*F94), "") -> 
F96: =SUM(#REF!) -> 
E98: =ROUND(SUM(G57:G97), 0) -> 0 | F98: =SUM(E99) -> 0
D99: Machine Subtotal | E99: =ROUND(SUM(G57:G97), 0) -> 0 | F99: =F98 -> 0
B100: Discounts | F100: =SUM(F101) -> 0
F101: =SUM(F102:F105) -> 0
D102: Discount % | F102: =IF(E102 <> "", 1, 0) -> 0 | G102: =IF(F102*(E102*0.01)*E98 < 0, F102*(E102*0.01)*E98, -(F102*(E102*0.01)*E98)) -> 0
D103: Discount $ | F103: =IF(E103 <> "", 1, 0) -> 0 | G103: =IF(F103*E103 < 0, F103*E103, -(F103*E103)) -> 0
D104: Discount $ | F104: =IF(E104 <> "", 1, 0) -> 0 | G104: =IF(F104*E104 < 0, F104*E104, -(F104*E104)) -> 0
D105: Discount $ | F105: =IF(E105 <> "", 1, 0) -> 0 | G105: =IF(F105*E105 < 0, F105*E105, -(F105*E105)) -> 0
D106: Discount Total | E106: =SUM(G102:G105) -> 0 | F106: =SUM(E106) -> 0
F107: =#REF! -> 
C108: Prepaid and Add | D108: Freight | F108: =IF(E108 <> "", 1, 0) -> 0 | G108: =F108*E108 -> 0
C109: Subject to all applicable taxes | D109: Tax | F109: =IF(E109 <> "", 1, 0) -> 0 | G109: =F109*E109 -> 0
F110: =SUM(F111) -> 0
D111: MACHINE TOTAL* | F111: =SUM(G111) -> 0 | G111: =SUM(G57:G109) -> 0 | N111: This goes to "My Documents"
B112: Financing | G112: =G111 -> 0
C114: Is customer interested in financing? | D114: Yes
C116: If not, why?
C119: First Western Equipment Finance - Leasing Calculation Option: | D119: Option 1 | F119: Option 2 | J119: =Financing!A38 -> Rates 2025 - Rev. 5/6/2025
D120: Monthly Payment | E120: Cost Per Day | F120: Monthly Payment | G120: Cost Per Day | J120: =Financing!A39 -> “Blank Payment Amounts Indicate The Financing Option Or Purchase Options Selected Are Not
C121: Purchase Option: | D121: FWEF: $1 Buyout Lease | F121: FWEF: Municipal Lease | J121: =Financing!A40 -> Applicable Or The Machine Total Is Below The Minimum Amount For The Selected Vendor”
C122: 24 Months | D122: 0 | E122: 0 | F122: 0 | G122: 0 | J122: =Financing!A41 -> "Quoted monthly payments are estimates only and are based on a certain level of credit rating.
C123: 30 Months | D123: 0 | E123: 0 | F123: 0 | G123: 0 | J123: =Financing!A42 -> Actual monthly payments may be higher depending on your credit rating."
C124: 36 Months | D124: 0 | E124: 0 | F124: 0 | G124: 0 | J124: =Financing!A43 -> “Financing rates do not include Pre-Paid Service”
C125: 48 Months | D125: 0 | E125: 0 | F125: 0 | G125: 0 | I125: =Financing!A44 -> 0
D127: Benefits of Equipment Financing:
D128: • Spreads out investment over time. | F128: • Keep current with latest technology.
D129: • Preserve capital. | F129: • Service and parts bundling available.
D130: • Low monthly payment. | F130: • Pay for labor savings as you go.
C133: Bundled Offerings | D133: Flexclean – Fair Market Value | F133: Flexclean - $1 Buyout
C134: FlexClean: | D134: 36 Month Term | F134: 36 Month Term | I134: No | J134: AB Brushes
C135: Hours included per Month: | D135: Gold | E135: Silver | F135: Gold | G135: Silver | H135: Check
C136: < 30/mo. (Avg. 1hr./day) | I136: =FlexCleanCalc!$A21 -> “FlexClean monthly rates include payment for both machine and service.”
C137: < 60/mo. (Avg. 2hrs./day)
C138: < 90/mo. (Avg. 3hrs./day)
C139: *This value assumes one service contract regardless of the number of UNITS included in the quote
C142: Bundled Offerings | D142: Flexclean – Fair Market Value | F142: Flexclean - $1 Buyout
C143: FlexClean 2: | D143: 48 Month Term | F143: 48 Month Term
C144: Hours included per Month: | D144: Gold | E144: Silver | F144: Gold | G144: Silver
C145: < 30/mo. (Avg. 1hr./day)
C146: < 60/mo. (Avg. 2hrs./day)
C147: < 90/mo. (Avg. 3hrs./day)
C148: *This value assumes one service contract regardless of the number of UNITS included in the quote
C150: Bundled Offerings | D150: Flexclean – Fair Market Value | F150: Flexclean - $1 Buyout
C151: FlexClean 3: | D151: 60 Month Term | F151: 60 Month Term
C152: Hours included per Month: | D152: Gold | E152: Silver | F152: Gold | G152: Silver
C153: < 30/mo. (Avg. 1hr./day)
C154: < 60/mo. (Avg. 2hrs./day)
C155: < 90/mo. (Avg. 3hrs./day)
C156: *This value assumes one service contract regardless of the number of UNITS included in the quote
B158: TennantTrue | D158: 0 | E158: 0
C160: Is customer interested in service program? | D160: Yes | E160: *State/County selection required for TennantTrue service options
C162: If not, why?
C164: Term: | D164: 36 | F164: AB Brushes | G164: No
C165: Monthly machine usage (hrs): | D165: < 30/mo. (Avg. 1hr./day)
C167: TennantTrue: | D167: Gold Contract | F167: Silver Contract
C168: Per Visit | F168: 425
C169: Monthly | D169: 129 | F169: 69
C170: Annually | F170: 816
C171: Pre-Pay Full Term | D171: 4444 | F171: 2397
C172: Hourly Labor Rate
C173: Site Visit
C175: * Verify customer current pricing prior to quote.
C176: **All rates and fees above reflect service for one (1) unit with the exception of Block of Time service.
C177: *Block of Time is available in 1 Year Term only and is priced as such no matter the term selection on this template.
B179: Servicing
C181: Is customer interested in a service plan? | D181: No
C183: If not, why?
C187: Quote Special Instructions:
C190: =Start_Here!E36 -> Terms and Conditions
C191: =Start_Here!E37 -> Ask your local sales rep for estimated lead times. Verify when placing order
C192: =Start_Here!E38 -> All orders subject to acceptance by Tennant Sales and Service Company, Minneapolis, Minnesota
C193: =Start_Here!E39 -> Prices subject to change without notice.
C194: =Start_Here!E40 -> Terms: Net 30 days. Subject to any applicable taxes.
C195: =Start_Here!E41 -> Freight: Machines and accessory orders delivered FOB shipping point Frt PPD & Add
C196: =Start_Here!E42 -> Parts, supplies, detergents and floor treating material orders delivered FOB
C197: =Start_Here!E43 -> shipping point Frt PPD
C198: =Start_Here!E44 -> All orders are subject to Tennant’s General Terms and Conditions available at http://www.tennantco.com/terms.
C199: =Start_Here!E45 -> Printed General Terms and Conditions are also available upon request.
C200: =Start_Here!E46 -> 0
E202: Quote Date : | G202: =Letter!$A$25 -> 2020-09-17
A203: Order Placement Information: To place your order, fill in PO# and customer signatures,
A204: call or fax to the numbers listed below. Customer Purchase Order is required.
A205: If information is missing, orders will be entered and held until all information is received.
C206: Customer Number | E206: Cust Grp 3
C207: =Start_Here!$C$25 -> 0 | E207: =Start_Here!$C$29 -> 0
C208: =Start_Here!$B$18 -> Who Owns the Machine? (Sold-To Info) (Please Verify)
A209: Company | C209: =Start_Here!$C$19 -> Company Name
A210: Address | C210: =Start_Here!$C$20 -> Address
C211: =Start_Here!$C$21 -> City, State Zip
A212: Name | C212: =Start_Here!$C$22 -> Contact Name
A213: Phone | C213: =Start_Here!$C$23 -> Contact Phone
C214: =Start_Here!$B$11 -> Where is the Machine Being Shipped? (Ship-To Info) (Please Verify)
A215: Company | C215: =Start_Here!$C$12 -> Company Name
A216: Address | C216: =Start_Here!$C$13 -> Address
C217: =Start_Here!$C$14 -> City, State Zip
A218: Name | C218: =Start_Here!$C$15 -> Contact Name
A219: Phone | C219: =Start_Here!$C$16 -> Contact Phone
C220: =Start_Here!$B$31 -> Shipping / Carrier Instructions: | E220: Order Special Instructions:
C221: =Start_Here!$C$32 -> 0
C223: Customer Purchase Order No.
C224: (please attach copy)
C227: Tax Exempt | E227: Yes
E228: No
C229: If Yes, attach a copy of your exemption certificate.
C231: Requested Delivery Date
C232: =Start_Here!$C$28 -> 0
C234: =Start_Here!$C$26 -> 0 | E234: =Start_Here!$C$27 -> 0
B235: 0 | C235: Authorized Buyer (please print) | E235: Phone Number
B238: 0 | C238: Authorized Buyer Signature
C240: =Start_Here!$C$41 -> Rep Name
C241: Tennant Representative
A243: Specialized Maintenance Equipment
A244: =Start_Here!$C$48 -> TENNANT · 10400 Clean Street · Eden Prairie, MN 55344 ·
A245: =Start_Here!$C$49 -> PHONE:800-553-8033 · FAX:763-513-2116
B248: Notes
B250: Notes:
B251: 1 | C251: One set of pad drivers come standard. A different brush may be chosen as an option
B252: 2 | C252: One English manual comes standard. A manual in a different language may be chosen as an option.
B253: 3 | C253: All machines come standard with Pad Wrap packaging. Skid with carton packaging may be chosen as an option
C254: Pad wrap packaging is only available in the continental US. For shipments outside of the continental US, please select skid with carton packaging
... 16 more rows

Sheet T600_Series_Std_Config
A1: T600_Series_Std_Config | C1: =Start_Here!$C19 -> Company Name
A2: =SUM(G110) -> 0 | C2: =Start_Here!$C20 -> Address
C3: =Start_Here!$C21 -> City, State Zip
C4: =Start_Here!$C22 -> Contact Name
C5: =Start_Here!$C$41 -> Rep Name
C6: =Start_Here!$C$37 -> Tennant Sales and Service Company
C7: =Start_Here!$C$38 -> 10400 Clean Street
C8: =Start_Here!$C$39 -> Eden Prairie, MN 55344
C9: =Start_Here!$C$43 -> 800-553-8033 | E9: Quote Date : | G9: =Letter!$A$25 -> 2020-09-17
C11: =Help!C2 -> US Date Rev - 5/6/2025
C12: BUILT-IN “TENNANT VALUE” INCLUDES:
C14: 121L/32 gal Solution Tank & 37 L/140 gal Recovery Tank | E14: Cast Aluminum Squeegee & Scrub Deck (Disk, Cylindrical)
C15: Rugged Duramer™ Rotomold Tank Construction | E15: 11 Gauge Steel Scrub Deck (Orbital Only)
C16: Fully Sprayable Hygienic® Recovery Tank | E16: Automatic: Water On / Off
C17: Three Down Pressure Settings- up to 200 lbs/90 kg | E17: Brush On / Off
C18: Adjustable Solution Flow | E18: Brush Shutoff at 80% Discharge
C19: Variable Speed Control Knob | E19: Linatex/Linard Squeegee Blades with Tool-less Replacement
C20: Pro-Membrane™ Control Panel w/ 3 Zone Settings™ (Standard) | E20: Emergency Stop
C21: LCD Pro-Panel™ Touch Screen Control Panel (Option) | E21: Free Floating Head Skirt (disk machines)
C22: On-Demand Tutorial Videos & 4 Customizable Zone Settings | E22: Fill Port w/ Hose Fins
C23: Supervisor QA ControlsTM settings (Lock Out Features) | E23: Integrated Heat Sink for Electronics Protection
C24: On Board Diagnostics | E24: Sealed Electrical Connectors
C25: Standard Low Noise Level (≤70 dBa) | E25: Anti-Static Strap
C26: Quiet-Mode™ Sound Reduction all models (≤62.5dBa) | E26: 1 HP brush motor/ 0.75 kW (disk)
C27: Standard (6) 6v. 240AH battery pack | E27: 300 RPM (disk) and 760 RPM (cylindrical)
C28: (Optional 360AH batteries available) | E28: 2200 RPM orbital scrub head
C29: (Optional Thin Plate Pure Lead Batteries available) | E29: Recovery Tank Debris Tray
C30: Smart-Fill™ Automatic Battery Watering (Option) | E30: Excellent Ergonomic Controls Design
C31: Auto Fill | E31: Non-Marking Polyurethane Tires
C32: Quick Release Battery Harness | E32: Includes Standard Pad Drivers or Scrubbing Brushes (Select One)
C33: Standard Controlled Battery Compartment Drain | E33: Key Switch for Safety
C34: On-board Charger with 3m/15 ft power cord | E34: Hour Meter
C35: Closed Machine Venting for Battery Charging | E35: Jacking Points/Shipping Tie Downs
C36: Breakaway Squeegee Design | E36: Yellow Maintenance Touch Points
C37: Factory Set Squeegee Assembly for Maximum Recovery | E37: Auto Fill for Solution Tank
C38: Cast Aluminum Squeegee Frame | E38: Integrated Accessory Rails
E39: Drain hose with pinch cuff to control water flow
C40: Optional ec-H2O NanoClean™ Equipped Models Include:
C41: Electrically Converted Water Technology System
C42: Two Scrubbing Modes: ec-H2O NanoCleanTM & Conventional Scrub
G45: Same
C46: TENNANT COMPANY WARRANTY
C47: 3 YEARS OR 2000 HOURS - PARTS
C48: 1 YEAR - BATTERY CHARGERS
C49: 2 YEARS LABOR, 6 MONTHS TRAVEL
C50: INCLUDING ORBITAL SCUB HEAD ISOLATORS
C51: 10 YEARS ON DURAMERTM ROTOMOLD TANKS
E54: Quote Request Information
G55: Fax (quote only)
G56: Mail (quote,lit, specs)
G57: Fax + Mail
E59: Primary Use
G60: Inside
G61: Outside
B63: Standard Configuration Machines: | D63: Reference # | E63: Price Each | F63: Qty | G63: Extended Price
C64: Descriptions | F64: =SUM(F65:F75) -> 0
C65: T600e Walk-Behind - Disk Scrubber, 800mm / 32", 240AH C/20 Battery, Conventional Cleaning, 25A 100-240V AC 50/60Hz 1Ph On-Board Charger, Standard Down Pressure, UL Type E, Black Pneumatic Tires (Pad Driver and Pad Wrap Packaging will default unless otherwise specified) | D65: T600E-1001D | E65: 20717 | G65: =F65*E65 -> 0 | H65: =IFERROR(IFERROR(VLOOKUP(D65,Surcharge!A:B,2,FALSE)*F65, VLOOKUP(D65 & "",Surcharge!A:B,2,FALSE)*F65), "") -> 
C67: T600e Walk-Behind - Disk Scrubber, 800mm / 32", 360AH C/20 Battery, Conventional Cleaning, 25A 100-240V AC 50/60Hz 1Ph On-Board Charger, Standard Down Pressure, UL Type E, Black Pneumatic Tires (Pad Driver and Pad Wrap Packaging will default unless otherwise specified) | D67: T600E-1002D | E67: 21499 | G67: =F67*E67 -> 0 | H67: =IFERROR(IFERROR(VLOOKUP(D67,Surcharge!A:B,2,FALSE)*F67, VLOOKUP(D67 & "",Surcharge!A:B,2,FALSE)*F67), "") -> 
C69: T600 Walk-Behind - Disk Scrubber, 800mm / 32", Pro Membrane Control Panel, 240AH C/20 Battery, Smart-Fill Battery Watering System, Conventional Cleaning, 25A 100-240V 50/60Hz 1Ph On-Board Charger, Standard Down Pressure, Auto Fill, Black Pneumatic Tires (Pad Driver and Pad Wrap Packaging will default unless otherwise specified) | D69: T600-2001D | E69: 24773 | G69: =F69*E69 -> 0
C71: T600 Walk-Behind - Disk Scrubber, 900mm / 36", Pro Membrane Control Panel, 240AH C/20 Battery, Smart-Fill Battery Watering System, Conventional Cleaning, 25A 100-240V 50/60Hz 1Ph On-Board Charger, Auto Fill, Black Pneumatic Tires (Pad Driver and Pad Wrap Packaging will default unless otherwise specified) | D71: T600-2002D | E71: 28032 | G71: 0
C73: T600 Walk-Behind - Disk Scrubber, 800mm / 32", Pro Membrane Control Panel, 360AH C/20 Battery, Smart-Fill Battery Watering System, ec-H20 NanoClean, 25A 100-240V 50/60Hz 1Ph On-Board Charger, Auto Fill, Black Pneumatic Tires (Pad Driver and Pad Wrap Packaging will default unless otherwise specified) | D73: T600-3001D | E73: 28595 | G73: 0
C75: T600 Walk-Behind - Disk Scrubber, 900mm / 36", Pro Membrane Control Panel, 360AH C/20 Battery, Smart-Fill Battery Watering System, ec-H20 NanoClean, 25A 100-240V 50/60Hz 1Ph On-Board Charger, Auto Fill, Black Pneumatic Tires (Pad Driver and Pad Wrap Packaging will default unless otherwise specified) | D75: T600-3002D | E75: 31854 | G75: 0
B77: OPTIONAL | C77: Brushes - in place of Pad Driver (2 Required) (Note 1) | F77: =SUM(F78:F81) -> 0
C78: 800mm / 32" Disk Nylon Brush | D78: 1234523 | E78: N/C | G78: =IF(F78=0," ","N/C") -> 
C79: 800mm / 32" Disk Polypropylene Brush | D79: 1234524 | E79: N/C | G79: =IF(F79=0," ","N/C") -> 
C80: 900mm / 36" Disk Nylon Brush | D80: 1230858 | E80: N/C | G80: =IF(F80=0," ","N/C") -> 
C81: 900mm / 36" Disk Polypropylene Brush | D81: 1230859 | E81: N/C | G81: =IF(F81=0," ","N/C") -> 
B83: OPTIONAL | C83: Manuals (Note 2) | D83: Reference Number | F83: =SUM(F84:F88) -> 0
C84: T600e/T600 Operator Manual (Spanish) - in place of English manual | D84: 9016600 | E84: N/C | G84: =IF(F84=0," ","N/C") -> 
C85: T600e/T600 Operator Manual (French) - in place of English manual | D85: 9016601 | E85: N/C | G85: =IF(F85=0," ","N/C") -> 
C86: Additional Operator Manual | D86: SEE ABOVE | E86: 135 | G86: =F86*E86 -> 0
C87: T600e/T600 Parts Manual | D87: 9016599 | E87: 55 | G87: =F87*E87 -> 0
C88: T600e/T600 Service Manual | D88: 9016605 | E88: 135 | G88: =F88*E88 -> 0
B90: OPTIONAL | C90: Packaging (Note 3) | F90: =SUM(F91) -> 0
C91: Skid w/Carton, Stackable | D91: 9001553 | E91: 472 | G91: =F91*E91 -> 0
F95: =SUM(#REF!) -> 
E97: =ROUND(SUM(G65:G96), 0) -> 0 | F97: =SUM(E98) -> 0
D98: Machine Subtotal | E98: =ROUND(SUM(G65:G96), 0) -> 0 | F98: =F97 -> 0
B99: Discounts | F99: =SUM(F100) -> 0
F100: =SUM(F101:F104) -> 0
D101: Discount % | F101: =IF(E101 <> "", 1, 0) -> 0 | G101: =IF(F101*(E101*0.01)*E97 < 0, F101*(E101*0.01)*E97, -(F101*(E101*0.01)*E97)) -> 0
D102: Discount $ | F102: =IF(E102 <> "", 1, 0) -> 0 | G102: =IF(F102*E102 < 0, F102*E102, -(F102*E102)) -> 0
D103: Discount $ | F103: =IF(E103 <> "", 1, 0) -> 0 | G103: =IF(F103*E103 < 0, F103*E103, -(F103*E103)) -> 0
D104: Discount $ | F104: =IF(E104 <> "", 1, 0) -> 0 | G104: =IF(F104*E104 < 0, F104*E104, -(F104*E104)) -> 0
D105: Discount Total | E105: =SUM(G101:G104) -> 0 | F105: =SUM(E105) -> 0
F106: =#REF! -> 
C107: Prepaid and Add | D107: Freight | F107: =IF(E107 <> "", 1, 0) -> 0 | G107: =F107*E107 -> 0
C108: Subject to all applicable taxes | D108: Tax | F108: =IF(E108 <> "", 1, 0) -> 0 | G108: =F108*E108 -> 0
F109: =SUM(F110) -> 0
D110: MACHINE TOTAL* | F110: =SUM(G110) -> 0 | G110: =SUM(G65:G108) -> 0 | N110: This goes to "My Documents"
B111: Financing | G111: =G110 -> 0
C113: Is customer interested in financing? | D113: Yes
C115: If not, why?
C118: First Western Equipment Finance - Leasing Calculation Option: | D118: Option 1 | F118: Option 2 | J118: =Financing!A38 -> Rates 2025 - Rev. 5/6/2025
D119: Monthly Payment | E119: Cost Per Day | F119: Monthly Payment | G119: Cost Per Day | J119: =Financing!A39 -> “Blank Payment Amounts Indicate The Financing Option Or Purchase Options Selected Are Not
C120: Purchase Option: | D120: FWEF: $1 Buyout Lease | F120: FWEF: Municipal Lease | J120: =Financing!A40 -> Applicable Or The Machine Total Is Below The Minimum Amount For The Selected Vendor”
C121: 24 Months | D121: 0 | E121: 0 | F121: 0 | G121: 0 | J121: =Financing!A41 -> "Quoted monthly payments are estimates only and are based on a certain level of credit rating.
C122: 30 Months | D122: 0 | E122: 0 | F122: 0 | G122: 0 | J122: =Financing!A42 -> Actual monthly payments may be higher depending on your credit rating."
C123: 36 Months | D123: 0 | E123: 0 | F123: 0 | G123: 0 | J123: =Financing!A43 -> “Financing rates do not include Pre-Paid Service”
C124: 48 Months | D124: 0 | E124: 0 | F124: 0 | G124: 0 | I124: =Financing!A44 -> 0
D126: Benefits of Equipment Financing:
D127: • Spreads out investment over time. | F127: • Keep current with latest technology.
D128: • Preserve capital. | F128: • Service and parts bundling available.
D129: • Low monthly payment. | F129: • Pay for labor savings as you go.
C132: Bundled Offerings | D132: Flexclean – Fair Market Value | F132: Flexclean - $1 Buyout
C133: FlexClean: | D133: 36 Month Term | F133: 36 Month Term | I133: No | J133: AB Brushes
C134: Hours included per Month: | D134: Gold | E134: Silver | F134: Gold | G134: Silver | H134: Check
C135: < 30/mo. (Avg. 1hr./day) | I135: =FlexCleanCalc!$A21 -> “FlexClean monthly rates include payment for both machine and service.”
C136: < 60/mo. (Avg. 2hrs./day)
C137: < 90/mo. (Avg. 3hrs./day)
C138: *This value assumes one service contract regardless of the number of UNITS included in the quote
C141: Bundled Offerings | D141: Flexclean – Fair Market Value | F141: Flexclean - $1 Buyout
C142: FlexClean 2: | D142: 48 Month Term | F142: 48 Month Term
C143: Hours included per Month: | D143: Gold | E143: Silver | F143: Gold | G143: Silver
C144: < 30/mo. (Avg. 1hr./day)
C145: < 60/mo. (Avg. 2hrs./day)
C146: < 90/mo. (Avg. 3hrs./day)
C147: *This value assumes one service contract regardless of the number of UNITS included in the quote
C149: Bundled Offerings | D149: Flexclean – Fair Market Value | F149: Flexclean - $1 Buyout
C150: FlexClean 3: | D150: 60 Month Term | F150: 60 Month Term
C151: Hours included per Month: | D151: Gold | E151: Silver | F151: Gold | G151: Silver
C152: < 30/mo. (Avg. 1hr./day)
C153: < 60/mo. (Avg. 2hrs./day)
C154: < 90/mo. (Avg. 3hrs./day)
C155: *This value assumes one service contract regardless of the number of UNITS included in the quote
B157: TennantTrue | D157: 0 | E157: 0
C159: Is customer interested in service program? | D159: Yes | E159: *State/County selection required for TennantTrue service options
C161: If not, why?
C163: Term: | D163: 36 | F163: AB Brushes | G163: No
C164: Monthly machine usage (hrs): | D164: < 30/mo. (Avg. 1hr./day)
C166: TennantTrue: | D166: Gold Contract | F166: Silver Contract
C167: Per Visit | F167: 481
C168: Monthly | D168: 141 | F168: 83
C169: Annually | F169: 972
C170: Pre-Pay Full Term | D170: 4884 | F170: 2858
C171: Hourly Labor Rate
C172: Site Visit
C174: * Verify customer current pricing prior to quote.
C175: **All rates and fees above reflect service for one (1) unit with the exception of Block of Time service.
C176: *Block of Time is available in 1 Year Term only and is priced as such no matter the term selection on this template.
B178: Servicing
C180: Is customer interested in a service plan? | D180: No
C182: If not, why?
C186: Quote Special Instructions:
C189: =Start_Here!E36 -> Terms and Conditions
C190: =Start_Here!E37 -> Ask your local sales rep for estimated lead times. Verify when placing order
C191: =Start_Here!E38 -> All orders subject to acceptance by Tennant Sales and Service Company, Minneapolis, Minnesota
C192: =Start_Here!E39 -> Prices subject to change without notice.
C193: =Start_Here!E40 -> Terms: Net 30 days. Subject to any applicable taxes.
C194: =Start_Here!E41 -> Freight: Machines and accessory orders delivered FOB shipping point Frt PPD & Add
C195: =Start_Here!E42 -> Parts, supplies, detergents and floor treating material orders delivered FOB
C196: =Start_Here!E43 -> shipping point Frt PPD
C197: =Start_Here!E44 -> All orders are subject to Tennant’s General Terms and Conditions available at http://www.tennantco.com/terms.
C198: =Start_Here!E45 -> Printed General Terms and Conditions are also available upon request.
C199: =Start_Here!E46 -> 0
E201: Quote Date : | G201: =Letter!$A$25 -> 2020-09-17
A202: Order Placement Information: To place your order, fill in PO# and customer signatures,
A203: call or fax to the numbers listed below. Customer Purchase Order is required.
A204: If information is missing, orders will be entered and held until all information is received.
C205: Customer Number | E205: Cust Grp 3
C206: =Start_Here!$C$25 -> 0 | E206: =Start_Here!$C$29 -> 0
C207: =Start_Here!$B$18 -> Who Owns the Machine? (Sold-To Info) (Please Verify)
A208: Company | C208: =Start_Here!$C$19 -> Company Name
A209: Address | C209: =Start_Here!$C$20 -> Address
C210: =Start_Here!$C$21 -> City, State Zip
A211: Name | C211: =Start_Here!$C$22 -> Contact Name
A212: Phone | C212: =Start_Here!$C$23 -> Contact Phone
C213: =Start_Here!$B$11 -> Where is the Machine Being Shipped? (Ship-To Info) (Please Verify)
A214: Company | C214: =Start_Here!$C$12 -> Company Name
A215: Address | C215: =Start_Here!$C$13 -> Address
C216: =Start_Here!$C$14 -> City, State Zip
A217: Name | C217: =Start_Here!$C$15 -> Contact Name
A218: Phone | C218: =Start_Here!$C$16 -> Contact Phone
C219: =Start_Here!$B$31 -> Shipping / Carrier Instructions: | E219: Order Special Instructions:
C220: =Start_Here!$C$32 -> 0
C222: Customer Purchase Order No.
C223: (please attach copy)
C226: Tax Exempt | E226: Yes
E227: No
C228: If Yes, attach a copy of your exemption certificate.
C230: Requested Delivery Date
C231: =Start_Here!$C$28 -> 0
C233: =Start_Here!$C$26 -> 0 | E233: =Start_Here!$C$27 -> 0
B234: 0 | C234: Authorized Buyer (please print) | E234: Phone Number
B237: 0 | C237: Authorized Buyer Signature
C239: =Start_Here!$C$41 -> Rep Name
C240: Tennant Representative
A242: Specialized Maintenance Equipment
A243: =Start_Here!$C$48 -> TENNANT · 10400 Clean Street · Eden Prairie, MN 55344 ·
A244: =Start_Here!$C$49 -> PHONE:800-553-8033 · FAX:763-513-2116
B247: Notes:
B248: 1 | C248: One set of pad drivers come standard. A different brush may be chosen as an option
B249: 2 | C249: One English manual comes standard. A manual in a different language may be chosen as an option.
B250: 3 | C250: All machines come standard with Pad Wrap packaging. Skid with carton packaging may be chosen as an option
C251: Pad wrap packaging is only available in the continental US. For shipments outside of the continental US, please select skid with carton packaging
B252: 4 | C252: Shipping Weights and Dimensions | D252: Pad Wrap | E252: Skid w/Carton
C255: 800 mm / 32" Disk
C256: Weight | D256: 466 lbs / 212 Kg | E256: 736 lbs / 334 Kg
C257: Length | D257: 66 in / 1677 mm | E257: 75" / 1905 mm
C258: Width | D258: 34 in / 864 mm | E258: 45" / 1143 mm
... 6 more rows

Sheet T7_Std_Config
A1: T7_Std_Config | C1: =Start_Here!$C19 -> Company Name
A2: =SUM(G85) -> 0 | C2: =Start_Here!$C20 -> Address
C3: =Start_Here!$C21 -> City, State Zip
C4: =Start_Here!$C22 -> Contact Name
C5: =Start_Here!$C$41 -> Rep Name
C6: =Start_Here!$C$37 -> Tennant Sales and Service Company
C7: =Start_Here!$C$38 -> 10400 Clean Street
C8: =Start_Here!$C$39 -> Eden Prairie, MN 55344
C9: =Start_Here!$C$43 -> 800-553-8033 | E9: Quote Date : | G9: =Letter!$A$25 -> 2020-09-17
C11: =Help!C2 -> US Date Rev - 5/6/2025
B12: BUILT-IN “TENNANT VALUE” INCLUDES:
C14: Fully Cleanable HygenicTM Tanks | E14: Unsurpassed Ergonomic Design
C15: Extremely Low 67 dBa Noise Levels | E15: Standard 240 AH Battery Pack (Optional 360 AH)
C16: Unmatched Solution Recovery | E16: Charger
C17: One-Button Scrubbing Operation | E17: Edge & Reach Under Cleaning
C18: Economy Mode (extends run time up to 4.5 hours) | E18: No Tool Brush / Squeegee Change
C19: On Board Diagnostics | E19: Standard Scrubbing Brushes & Pad Drivers (Select One Type)
C20: Touch Panel Controls | E20: Vacuum Fan In-Line Air Filter Cartridge
C21: Automatic: | E21: Brush Shutoff When Idle
C22: Squeegee Lift | E22: Brush Shutoff at 80% Discharge
C23: Water Shutoff | E23: Audio Back Up Alarm
C26: TENNANT COMPANY WARRANTY
C27: 3 YEARS OR 1500 HOURS ON ALL COMPONENTS, 3 YEARS LABOR
C28: 90 DAYS TRAVEL, 10 YEARS ON DURAMERTM TANKS
E31: Quote Request Information
G32: Fax (quote only)
G33: Mail (quote,lit, specs)
G34: Fax + Mail
E36: Primary Use
G37: Inside
G38: Outside
B40: Standard Configurations: | D40: Reference # | E40: Price Each | F40: Qty | G40: Extended Price
B41: Machine Descriptions | F41: =SUM(F42:F52) -> 0
C42: T7 Rider - Disk Scrubber, 650mm / 26", 240AH C/20 Battery, Conventional Cleaning, 25A 115V AC 60Hz 1Ph On-Board Charger (Pad Driver and Pad Wrap Packaging will default unless otherwise specified) | D42: T7-1001D | E42: 26871 | G42: =F42*E42 -> 0 | H42: =IFERROR(IFERROR(VLOOKUP(D42,Surcharge!A:B,2,FALSE)*F42, VLOOKUP(D42 & "",Surcharge!A:B,2,FALSE)*F42), "") -> 
C44: T7 Rider - Disk Scrubber, 800mm / 32", 240AH C/20 Battery, Conventional Cleaning, 25A 115V AC 60Hz 1Ph On-Board Charger (Pad Driver and Pad Wrap Packaging will default unless otherwise specified) | D44: T7-1002D | E44: 28806 | G44: 0 | H44: =IFERROR(IFERROR(VLOOKUP(D44,Surcharge!A:B,2,FALSE)*F44, VLOOKUP(D44 & "",Surcharge!A:B,2,FALSE)*F44), "") -> 
C46: T7 Rider - Disk Scrubber, 650mm / 26", 240AH C/20 Battery, ec-H20 NanoClean, 25A 115V AC 60Hz 1Ph On-Board Charger (Pad Driver and Pad Wrap Packaging will default unless otherwise specified) | D46: T7-2001D | E46: 30284 | G46: 0 | H46: =IFERROR(IFERROR(VLOOKUP(D46,Surcharge!A:B,2,FALSE)*F46, VLOOKUP(D46 & "",Surcharge!A:B,2,FALSE)*F46), "") -> 
C48: T7 Rider - Disk Scrubber, 800mm / 32", 240AH C/20 Battery, ec-H20 NanoClean, 25A 115V AC 60Hz 1Ph On-Board Charger (Pad Driver and Pad Wrap Packaging will default unless otherwise specified) | D48: T7-2002D | E48: 32219 | G48: 0 | H48: =IFERROR(IFERROR(VLOOKUP(D48,Surcharge!A:B,2,FALSE)*F48, VLOOKUP(D48 & "",Surcharge!A:B,2,FALSE)*F48), "") -> 
C50: T7 Rider - Disk Scrubber, 650mm / 26", 360AH C/20 Battery, Manual Battery Watering System, ec-H20 NanoClean, 25A 115V AC 60Hz 1Ph On-Board Charger (Pad Driver and Pad Wrap Packaging will default unless otherwise specified) | D50: T7-3001D | E50: 31616 | G50: 0 | H50: =IFERROR(IFERROR(VLOOKUP(D50,Surcharge!A:B,2,FALSE)*F50, VLOOKUP(D50 & "",Surcharge!A:B,2,FALSE)*F50), "") -> 
C52: T7 Rider - Disk Scrubber, 800mm / 32", 360AH C/20 Battery, Manual Battery Watering System, ec-H20 NanoClean, 25A 115V AC 60Hz 1Ph On-Board Charger (Pad Driver and Pad Wrap Packaging will default unless otherwise specified) | D52: T7-3002D | E52: 33551 | G52: 0 | H52: =IFERROR(IFERROR(VLOOKUP(D52,Surcharge!A:B,2,FALSE)*F52, VLOOKUP(D52 & "",Surcharge!A:B,2,FALSE)*F52), "") -> 
B54: OPTIONAL | C54: Brushes - in place of Pad Driver (2 Required) (Note 1) | D54: Reference Number | F54: =SUM(F55:F58) -> 0
C55: 650mm / 26" Disk Nylon Brush | D55: 1220226 | E55: N/C | G55: =IF(F55=0," ","N/C") ->  | H55: =IFERROR(IFERROR(VLOOKUP(D55,Surcharge!A:B,2,FALSE)*F55, VLOOKUP(D55 & "",Surcharge!A:B,2,FALSE)*F55), "") -> 
C56: 650mm / 26" Disk Polypropylene Brush | D56: 1220223 | E56: N/C | G56: =IF(F56=0," ","N/C") ->  | H56: =IFERROR(IFERROR(VLOOKUP(D56,Surcharge!A:B,2,FALSE)*F56, VLOOKUP(D56 & "",Surcharge!A:B,2,FALSE)*F56), "") -> 
C57: 800mm / 32" Disk Nylon Brush | D57: 1220225 | E57: N/C | G57: =IF(F57=0," ","N/C") ->  | H57: =IFERROR(IFERROR(VLOOKUP(D57,Surcharge!A:B,2,FALSE)*F57, VLOOKUP(D57 & "",Surcharge!A:B,2,FALSE)*F57), "") -> 
C58: 800mm / 32" Disk Polypropylene Brush | D58: 1220224 | E58: N/C | G58: =IF(F58=0," ","N/C") ->  | H58: =IFERROR(IFERROR(VLOOKUP(D58,Surcharge!A:B,2,FALSE)*F58, VLOOKUP(D58 & "",Surcharge!A:B,2,FALSE)*F58), "") -> 
B60: OPTIONAL | C60: Manuals (Note 2) | F60: =SUM(F61:F64) -> 0
C61: T7 Operator Manual (Spanish) - in place of English manual | D61: 331042 | E61: N/C | G61: =IF(F61=0," ","N/C") ->  | H61: =IFERROR(IFERROR(VLOOKUP(D61,Surcharge!A:B,2,FALSE)*F61, VLOOKUP(D61 & "",Surcharge!A:B,2,FALSE)*F61), "") -> 
C62: T7 Operator Manual (French) - in place of English manual | D62: 331043 | E62: N/C | G62: =IF(F62=0," ","N/C") ->  | H62: =IFERROR(IFERROR(VLOOKUP(D62,Surcharge!A:B,2,FALSE)*F62, VLOOKUP(D62 & "",Surcharge!A:B,2,FALSE)*F62), "") -> 
C63: T7 Parts Manual | D63: 9013606 | E63: 59 | G63: =F63*E63 -> 0 | H63: =IFERROR(IFERROR(VLOOKUP(D63,Surcharge!A:B,2,FALSE)*F63, VLOOKUP(D63 & "",Surcharge!A:B,2,FALSE)*F63), "") -> 
C64: T7 Service Manual | D64: 331045 | E64: 143 | G64: =F64*E64 -> 0 | H64: =IFERROR(IFERROR(VLOOKUP(D64,Surcharge!A:B,2,FALSE)*F64, VLOOKUP(D64 & "",Surcharge!A:B,2,FALSE)*F64), "") -> 
B66: OPTIONAL | C66: Packaging (Note 3) | F66: =SUM(F67) -> 0
C67: Skid w/Carton, Stackable | D67: 9000550 | E67: 500 | G67: =F67*E67 -> 0 | H67: =IFERROR(IFERROR(VLOOKUP(D67,Surcharge!A:B,2,FALSE)*F67, VLOOKUP(D67 & "",Surcharge!A:B,2,FALSE)*F67), "") -> 
F70: =SUM(#REF!) -> 
E72: =ROUND(SUM(G42:G71), 0) -> 0 | F72: =SUM(E73) -> 0
D73: Machine Subtotal | E73: =ROUND(SUM(G42:G71), 0) -> 0 | F73: =F72 -> 0
B74: Discounts | F74: =SUM(F75) -> 0
F75: =SUM(F76:F79) -> 0
D76: Discount % | F76: =IF(E76 <> "", 1, 0) -> 0 | G76: =IF(F76*(E76*0.01)*E72 < 0, F76*(E76*0.01)*E72, -(F76*(E76*0.01)*E72)) -> 0
D77: Discount $ | F77: =IF(E77 <> "", 1, 0) -> 0 | G77: =IF(F77*E77 < 0, F77*E77, -(F77*E77)) -> 0
D78: Discount $ | F78: =IF(E78 <> "", 1, 0) -> 0 | G78: =IF(F78*E78 < 0, F78*E78, -(F78*E78)) -> 0
D79: Discount $ | F79: =IF(E79 <> "", 1, 0) -> 0 | G79: =IF(F79*E79 < 0, F79*E79, -(F79*E79)) -> 0
D80: Discount Total | E80: =SUM(G76:G79) -> 0 | F80: =SUM(E80) -> 0
F81: =#REF! -> 
C82: Prepaid and Add | D82: Freight | F82: =IF(E82 <> "", 1, 0) -> 0 | G82: =F82*E82 -> 0
C83: Subject to all applicable taxes | D83: Tax | F83: =IF(E83 <> "", 1, 0) -> 0 | G83: =F83*E83 -> 0
F84: =SUM(F85) -> 0
D85: MACHINE TOTAL* | F85: =SUM(G85) -> 0 | G85: =SUM(G42:G83) -> 0 | N85: This goes to "My Documents"
G86: =G85 -> 0
B87: Financing
C89: Is customer interested in financing? | D89: Yes
C91: If not, why?
C94: First Western Equipment Finance - Leasing Calculation Option: | D94: Option 1 | F94: Option 2 | J94: =Financing!A38 -> Rates 2025 - Rev. 5/6/2025
D95: Monthly Payment | E95: Cost Per Day | F95: Monthly Payment | G95: Cost Per Day | J95: =Financing!A39 -> “Blank Payment Amounts Indicate The Financing Option Or Purchase Options Selected Are Not
C96: Purchase Option: | D96: FWEF: $1 Buyout Lease | F96: FWEF: Municipal Lease | J96: =Financing!A40 -> Applicable Or The Machine Total Is Below The Minimum Amount For The Selected Vendor”
C97: 24 Months | D97: 0 | E97: 0 | F97: 0 | G97: 0 | J97: =Financing!A41 -> "Quoted monthly payments are estimates only and are based on a certain level of credit rating.
C98: 30 Months | D98: 0 | E98: 0 | F98: 0 | G98: 0 | J98: =Financing!A42 -> Actual monthly payments may be higher depending on your credit rating."
C99: 36 Months | D99: 0 | E99: 0 | F99: 0 | G99: 0 | J99: =Financing!A43 -> “Financing rates do not include Pre-Paid Service”
C100: 48 Months | D100: 0 | E100: 0 | F100: 0 | G100: 0
D102: Benefits of Equipment Financing:
D103: • Spreads out investment over time. | F103: • Keep current with latest technology.
D104: • Preserve capital. | F104: • Service and parts bundling available.
D105: • Low monthly payment. | F105: • Pay for labor savings as you go.
C108: Bundled Offerings | D108: Flexclean – Fair Market Value | F108: Flexclean - $1 Buyout
C109: FlexClean: | D109: 36 Month Term | F109: 36 Month Term | I109: No | J109: AB Brushes
C110: Hours included per Month: | D110: Gold | E110: Silver | F110: Gold | G110: Silver | H110: Check
C111: < 30/mo. (Avg. 1hr./day) | I111: =FlexCleanCalc!$A21 -> “FlexClean monthly rates include payment for both machine and service.”
C112: < 60/mo. (Avg. 2hrs./day)
C113: < 90/mo. (Avg. 3hrs./day)
C114: *This value assumes one service contract regardless of the number of UNITS included in the quote
C117: Bundled Offerings | D117: Flexclean – Fair Market Value | F117: Flexclean - $1 Buyout
C118: FlexClean 2: | D118: 48 Month Term | F118: 48 Month Term
C119: Hours included per Month: | D119: Gold | E119: Silver | F119: Gold | G119: Silver
C120: < 30/mo. (Avg. 1hr./day)
C121: < 60/mo. (Avg. 2hrs./day)
C122: < 90/mo. (Avg. 3hrs./day)
C123: *This value assumes one service contract regardless of the number of UNITS included in the quote
C125: Bundled Offerings | D125: Flexclean – Fair Market Value | F125: Flexclean - $1 Buyout
C126: FlexClean 3: | D126: 60 Month Term | F126: 60 Month Term
C127: Hours included per Month: | D127: Gold | E127: Silver | F127: Gold | G127: Silver
C128: < 30/mo. (Avg. 1hr./day)
C129: < 60/mo. (Avg. 2hrs./day)
C130: < 90/mo. (Avg. 3hrs./day)
C131: *This value assumes one service contract regardless of the number of UNITS included in the quote
B133: TennantTrue
C135: Is customer interested in service program? | D135: Yes | E135: *State/County selection required for TennantTrue service options
C137: If not, why?
C139: Term: | D139: 36 | F139: AB Brushes | G139: No
C140: Monthly machine usage (hrs): | D140: < 30/mo. (Avg. 1hr./day)
C142: TennantTrue: | D142: Gold Contract | F142: Silver Contract
C143: Per Visit | F143: 501
C144: Monthly | D144: 173 | F144: 88
C145: Annually | F145: 1035
C146: Pre-Pay Full Term | D146: 5964 | F146: 3042
C147: Hourly Labor Rate
C148: Site Visit
C150: * Verify customer current pricing prior to quote.
C151: **All rates and fees above reflect service for one (1) unit with the exception of Block of Time service.
C152: *Block of Time is available in 1 Year Term only and is priced as such no matter the term selection on this template.
B156: Servicing
C158: Is customer interested in a service plan? | D158: No
C160: If not, why?
C163: Quote Special Instructions:
C166: =Start_Here!E36 -> Terms and Conditions
C167: =Start_Here!E37 -> Ask your local sales rep for estimated lead times. Verify when placing order
C168: =Start_Here!E38 -> All orders subject to acceptance by Tennant Sales and Service Company, Minneapolis, Minnesota
C169: =Start_Here!E39 -> Prices subject to change without notice.
C170: =Start_Here!E40 -> Terms: Net 30 days. Subject to any applicable taxes.
C171: =Start_Here!E41 -> Freight: Machines and accessory orders delivered FOB shipping point Frt PPD & Add
C172: =Start_Here!E42 -> Parts, supplies, detergents and floor treating material orders delivered FOB
C173: =Start_Here!E43 -> shipping point Frt PPD
C174: =Start_Here!E44 -> All orders are subject to Tennant’s General Terms and Conditions available at http://www.tennantco.com/terms.
C175: =Start_Here!E45 -> Printed General Terms and Conditions are also available upon request.
C176: =Start_Here!E46 -> 0
E178: Quote Date : | G178: =Letter!$A$25 -> 2020-09-17
A179: Order Placement Information: To place your order, fill in PO# and customer signatures,
A180: call or fax to the numbers listed below. Customer Purchase Order is required.
A181: If information is missing, orders will be entered and held until all information is received.
C182: Customer Number | E182: Cust Grp 3
C183: =Start_Here!$C$25 -> 0 | E183: =Start_Here!$C$29 -> 0
C184: =Start_Here!$B$18 -> Who Owns the Machine? (Sold-To Info) (Please Verify)
A185: Company | C185: =Start_Here!$C$19 -> Company Name
A186: Address | C186: =Start_Here!$C$20 -> Address
C187: =Start_Here!$C$21 -> City, State Zip
A188: Name | C188: =Start_Here!$C$22 -> Contact Name
A189: Phone | C189: =Start_Here!$C$23 -> Contact Phone
C190: =Start_Here!$B$11 -> Where is the Machine Being Shipped? (Ship-To Info) (Please Verify)
A191: Company | C191: =Start_Here!$C$12 -> Company Name
A192: Address | C192: =Start_Here!$C$13 -> Address
C193: =Start_Here!$C$14 -> City, State Zip
A194: Name | C194: =Start_Here!$C$15 -> Contact Name
A195: Phone | C195: =Start_Here!$C$16 -> Contact Phone
C196: =Start_Here!$B$31 -> Shipping / Carrier Instructions: | E196: Order Special Instructions:
C197: =Start_Here!$C$32 -> 0
C199: Customer Purchase Order No.
C200: (please attach copy)
C203: Tax Exempt | E203: Yes
E204: No
C205: If Yes, attach a copy of your exemption certificate.
C207: Requested Delivery Date
C208: =Start_Here!$C$28 -> 0
C210: =Start_Here!$C$26 -> 0 | E210: =Start_Here!$C$27 -> 0
B211: 0 | C211: Authorized Buyer (please print) | E211: Phone Number
B214: 0 | C214: Authorized Buyer Signature
C216: =Start_Here!$C$41 -> Rep Name
C217: Tennant Representative
A219: Specialized Maintenance Equipment
A220: =Start_Here!$C$48 -> TENNANT · 10400 Clean Street · Eden Prairie, MN 55344 ·
A221: =Start_Here!$C$49 -> PHONE:800-553-8033 · FAX:763-513-2116
B223: Notes:
B224: 1 | C224: One set of pad drivers come standard. A different brush may be chosen as an option
B225: 2 | C225: One English manual comes standard. A manual in a different language may be chosen as an option.
B226: 3 | C226: All machines come standard with Pad Wrap packaging. Skid with carton packaging may be chosen as an option
C227: Pad wrap packaging is only available in the continental US. For shipments outside of the continental US, please select skid with carton packaging
B229: 9 | C229: Shipping Weights and Dimentions | D229: Pad Wrap | E229: Skid w/Carton
C231: Weight (with 235AH batteries) | D231: 975 lbs / 443 kg | E231: 1000 lbs / 454 kg
C232: Length | D232: 60" / 1,524mm | E232: 62" / 1,574mm
C233: Width | D233: 39" / 991mm | E233: 33" / 838mm
C234: Height | D234: 50" / 1,270 | E234: 48" / 1,219mm

Sheet T12_Standard_Config
A1: T12_Standard_Config | C1: =Start_Here!$C19 -> Company Name
A2: =SUM(G122) -> 0 | C2: =Start_Here!$C20 -> Address
C3: =Start_Here!$C21 -> City, State Zip
C4: =Start_Here!$C22 -> Contact Name
C5: =Start_Here!$C$41 -> Rep Name
C6: =Start_Here!$C$37 -> Tennant Sales and Service Company
C7: =Start_Here!$C$38 -> 10400 Clean Street
C8: =Start_Here!$C$39 -> Eden Prairie, MN 55344
C9: =Start_Here!$C$43 -> 800-553-8033 | E9: Quote Date : | G9: =Letter!$A$25 -> 2020-09-17
C11: =Help!C2 -> US Date Rev - 5/6/2025
C12: BUILT-IN "TENNANT VALUE" INCLUDES:
C14: Two Speed Electronic Transmission with AC Propel Motor | D14: Cup Holder
C15: Disk or Cylindrcial Scrubbing - 32 in (800 mm) path | D15: Operator Manual and Video
C16: Standard Cylindrical Brushes | D16: Front and Rear Non-Marking Tires
C17: Non-Corrosive Duramer™ Solution and Recovery Tanks
C18: 35 gal (132 L) Solution Tank | D18: T12 Controls:
C19: 44 gal (166 L) Recovery Tank | D19: 1-Step™ One-Button Scrub Operation
C20: 9 gal (34 L) Demisting Chamber | D20: 3 Down-Pressure Settings
C21: Parabolic Rear Squeegee w/SmartRelease™ Breakaway System | D21: On Board Diagnostics
C22: Automatic Functions: | D22: Water Shutoff Switch
C23: - Parking Brake
C24: - Squeegee Lift | D24: T12 XP Only Controls and Features:
C25: - Water Shutoff | D25: T12 Controls, plus
C26: - Brush Shutoff When Idle | D26: Steering Wheel Mounted, Touch-N-GO Control Module (XP Only)
C27: - Brush Shutoff at 80% Battery Discharge | D27: AV Back Up Alarm w/Strobe Light
C28: No Tool Squeegee and Brush Change | D28: Water Shutoff Thumb Switch on Control Module
C29: In-Line Vacuum Fan Air Filter | D29: Head and Tail Lights
C30: High Visibility Maintenance Touch Points | D30: Deluxe Seat with Arm Rests
C31: Underwriters Laboratory (UL®) "E" Certification
C34: TENNANT COMPANY WARRANTY
C35: 36 MONTHS OR 2000 HOURS - PARTS
C36: 24 MONTHS - LABOR
C37: 6 MONTHS - TRAVEL
C38: 10 YEARS ON DURAMERTM TANKS
C39: CUSTOM options may add 1 week or more to standard lead times.
E45: Quote Request Information
G46: Fax (quote only)
G47: Mail (quote,lit, specs)
G48: Fax + Mail
E50: Primary Use
G51: Inside
G52: Outside
C54: Description | D54: Reference # | E54: Price Each | F54: Qty | G54: Extended Price
B55: Standard Configurations (Note 1 & 2) | F55: =SUM(F56) -> 0
F56: =SUM(F57) -> 0 | H56: =IFERROR(IFERROR(VLOOKUP(D56,Surcharge!A:B,2,FALSE)*F56, VLOOKUP(D56 & "",Surcharge!A:B,2,FALSE)*F56), "") ->  | L56: =SUM(F56) -> 0 | M56: Surcharge Qty
B57: Quick Ship | C57: T12 XP Rider - Disk Scrubber, ec-H2O™, Linatex Squeegee, Wet 360 AH C/20 (Kit of 6 batteries) (in lieu of standard), 21A 85-265V AC 50/60Hz 1Ph - 360AH Battery Off Board Charger, UL® Type E, Side Brush- Right Hand Scrubbing, Heavy Duty Squeegee Protection, Polypropylene Brushes, Operator Manual - English, Parts Manual, Operator Video, Pad Wrap Packaging | D57: MV-T12-0041 | E57: 43837 | G57: =F57*E57 -> 0 | H57: =IFERROR(IFERROR(VLOOKUP(D57,Surcharge!A:B,2,FALSE)*F57, VLOOKUP(D57 & "",Surcharge!A:B,2,FALSE)*F57), "") -> 
C58: The above listed configuration is a stock unit – Configuration cannot be altered, changed or added to. | F58: =SUM(F57) -> 0
B60: Quick Ship | C60: T12 Rider - Cylindrical Scrubber, ec-H2O™, Linatex Squeegee, Wet 360AH C/20 (Kit of 6 batteries), Manual Battery Watering Kit, Off-Board 21A 85-265V AC 50/60Hz 1Ph, UL® Type E, Scrubbing Side Brush, Heavy Duty Squeegee Protection, Deluxe Seat w/Armrest, Headlight, AV BU Alarm-Strobe on Tank, Poly Main and Side Brushes, English Operator Manual, Operator Video, Parts Manual, Pad Wrap Packaging | D60: MV-T12-0042 | E60: 44583 | G60: =F60*E60 -> 0
C61: The above listed configuration is a stock unit – Configuration cannot be altered, changed or added to. | F61: =SUM(F60) -> 0 | H61: =IFERROR(IFERROR(VLOOKUP(D61,Surcharge!A:B,2,FALSE)*F61, VLOOKUP(D61 & "",Surcharge!A:B,2,FALSE)*F61), "") -> 
C64: T12 Rider - Disk Scrubber, Conventional Cleaning, Linatex Squeegee, Wet 360AH C/20 (Kit of 6 batteries),Manual Battery Watering Kit , On-Board 20A 85-130V AC 50/60Hz 1Ph Charger, UL® Type E | D64: T12-1000D | E64: 33134 | G64: =F64*E64 -> 0
C65: Choice of Fire Extinguisher, Brushes, Operator Manual and Shipment Packaging available. | F65: =SUM(F64) -> 0
C67: T12 Rider - Cylindrical Scrubber, Conventional Cleaning, Linatex Squeegee, Wet 360AH C/20 (Kit of 6 batteries), Manual Battery Watering Kit, Off-Board 21A 85-265V 50/60Hz 1Ph Charger, UL® Type E, Heavy Duty Squeegee Protection, Safety Light Package, Vacuum Wand, Spray Nozzle with Hose | D67: T12-1001C | E67: 37067 | G67: =F67*E67 -> 0
C68: Choice of Fire Extinguisher, Brushes, Operator Manual and Shipment Packaging available. | F68: =SUM(F67) -> 0
C70: T12 Rider - Cylindrical Scrubber, Conventional Cleaning, Wet 360AH C/20 (Kit of 6 batteries), Manual Battery Watering Kit, On-Board 20A 85-130V 50/60Hz 1Ph Charger, UL® Type E, Productivity Package (Side Scrubbing Brush, Vac Wand, Spray Hose), Safety Light Package (LED Head Light, AV Backup Alarm), Heavy Duty Squeegee Protection | D70: T12-2002C | E70: 41449 | G70: =F70*E70 -> 0
C71: Choice of Fire Extinguisher, Brushes, Operator Manual and Shipment Packaging available. | F71: =SUM(F70) -> 0
C73: T12 Rider - Cylindrical Scrubber, ec-H2O™, Linatex Squeegee, Wet 360AH C/20 (Kit of 6 batteries), Manual Battery Watering Kit, Off-Board 21A 85-265V AC 50/60 Hz 1Ph, Scrubbing Side Brush, Heavy Duty Squeegee Protection, Deluxe Seat w/Armrest, Headlights, AV BU Alarm w/Strobe Light on Tank | D73: T12-2000C | E73: 44583 | G73: =F73*E73 -> 0
C74: Choice of Fire Extinguisher, Brushes, Operator Manual and Shipment Packaging available. | F74: =SUM(F73) -> 0
C76: T12 XP Rider - Cylindrical Scrubber, ec-H2O™, Linatex Squeegee, Wet 360AH C/20 (Kit of 6 batteries), Manual Battery Watering Kit, On-Board 20A 85-130V 50/60Hz 1Ph Charger, UL® Type E, Productivity Package, Safety Light Package, Heavy Duty Squeegee Protection, Deluxe Seat | D76: T12-3000C | E76: 47419 | G76: =F76*E76 -> 0
C77: Choice of Fire Extinguisher, Brushes, Operator Manual and Shipment Packaging available. | F77: =SUM(F76) -> 0
B79: Machine Protection & Safety | F79: =SUM(F80) -> 0
C80: Fire Extinguisher | D80: 9009878 | E80: 368 | G80: =F80*E80 -> 0
B82: Brushes and Pads | D82: Reference Number | F82: =SUM(F83,F87,F91) -> 0 | H82: =IFERROR(IFERROR(VLOOKUP(D82,Surcharge!A:B,2,FALSE)*F82, VLOOKUP(D82 & "",Surcharge!A:B,2,FALSE)*F82), "") -> 
C83: Disk Scrubbing Brushes/Pads (2 Required) | F83: =SUM(F84:F85) -> 0 | H83: =IFERROR(IFERROR(VLOOKUP(D83,Surcharge!A:B,2,FALSE)*F83, VLOOKUP(D83 & "",Surcharge!A:B,2,FALSE)*F83), "") -> 
C84: Polypropylene Brush | D84: 1220241 | E84: N/C | G84: =IF(F84=0," ","N/C") ->  | H84: =IFERROR(IFERROR(VLOOKUP(D84,Surcharge!A:B,2,FALSE)*F84, VLOOKUP(D84 & "",Surcharge!A:B,2,FALSE)*F84), "") -> 
C85: Super Abrasive Brush | D85: 1221543 | E85: 212 | G85: =F85*E85 -> 0 | H85: =IFERROR(IFERROR(VLOOKUP(D85,Surcharge!A:B,2,FALSE)*F85, VLOOKUP(D85 & "",Surcharge!A:B,2,FALSE)*F85), "") -> 
H86: =IFERROR(IFERROR(VLOOKUP(D86,Surcharge!A:B,2,FALSE)*F86, VLOOKUP(D86 & "",Surcharge!A:B,2,FALSE)*F86), "") -> 
C87: Cylindrical Scrubbing Brushes (2 Required) | F87: =SUM(F88:F89) -> 0 | H87: =IFERROR(IFERROR(VLOOKUP(D87,Surcharge!A:B,2,FALSE)*F87, VLOOKUP(D87 & "",Surcharge!A:B,2,FALSE)*F87), "") -> 
C88: Polypropylene Brush | D88: 1201572 | E88: N/C | G88: =IF(F88=0," ","N/C") ->  | H88: =IFERROR(IFERROR(VLOOKUP(D88,Surcharge!A:B,2,FALSE)*F88, VLOOKUP(D88 & "",Surcharge!A:B,2,FALSE)*F88), "") -> 
C89: Super Abrasive Brush | D89: 1201928 | E89: 212 | G89: =F89*E89 -> 0 | H89: =IFERROR(IFERROR(VLOOKUP(D89,Surcharge!A:B,2,FALSE)*F89, VLOOKUP(D89 & "",Surcharge!A:B,2,FALSE)*F89), "") -> 
H90: =IFERROR(IFERROR(VLOOKUP(D90,Surcharge!A:B,2,FALSE)*F90, VLOOKUP(D90 & "",Surcharge!A:B,2,FALSE)*F90), "") -> 
C91: Disk Scrubbing Brush/Pad and Sweeping Brush for Side Brush Option (1 Required) | F91: =SUM(F92:F94) -> 0 | H91: =IFERROR(IFERROR(VLOOKUP(D91,Surcharge!A:B,2,FALSE)*F91, VLOOKUP(D91 & "",Surcharge!A:B,2,FALSE)*F91), "") -> 
C92: Polypropylene Brush | D92: 1220240 | E92: N/C | G92: =IF(F92=0," ","N/C") ->  | H92: =IFERROR(IFERROR(VLOOKUP(D92,Surcharge!A:B,2,FALSE)*F92, VLOOKUP(D92 & "",Surcharge!A:B,2,FALSE)*F92), "") -> 
C93: Heavy Duty Polypropylene | D93: 1220231 | E93: N/C | G93: =IF(F93=0," ","N/C") ->  | H93: =IFERROR(IFERROR(VLOOKUP(D93,Surcharge!A:B,2,FALSE)*F93, VLOOKUP(D93 & "",Surcharge!A:B,2,FALSE)*F93), "") -> 
C94: Super Abrasive Brush | D94: 1220232 | E94: 212 | G94: =F94*E94 -> 0 | H94: =IFERROR(IFERROR(VLOOKUP(D94,Surcharge!A:B,2,FALSE)*F94, VLOOKUP(D94 & "",Surcharge!A:B,2,FALSE)*F94), "") -> 
H95: =IFERROR(IFERROR(VLOOKUP(D95,Surcharge!A:B,2,FALSE)*F95, VLOOKUP(D95 & "",Surcharge!A:B,2,FALSE)*F95), "") -> 
B96: Support | D96: Reference Number | F96: =SUM(F97:F102) -> 0 | H96: =IFERROR(IFERROR(VLOOKUP(D96,Surcharge!A:B,2,FALSE)*F96, VLOOKUP(D96 & "",Surcharge!A:B,2,FALSE)*F96), "") -> 
C97: Operator Manual (English) | D97: 9009910 | E97: N/C | G97: =IF(F97=0," ","N/C") ->  | H97: =IFERROR(IFERROR(VLOOKUP(D97,Surcharge!A:B,2,FALSE)*F97, VLOOKUP(D97 & "",Surcharge!A:B,2,FALSE)*F97), "") -> 
C98: Operator Manual (Spanish) | D98: 9009911 | E98: N/C | G98: =IF(F98=0," ","N/C") ->  | H98: =IFERROR(IFERROR(VLOOKUP(D98,Surcharge!A:B,2,FALSE)*F98, VLOOKUP(D98 & "",Surcharge!A:B,2,FALSE)*F98), "") -> 
C99: Operator Manual (French) | D99: 9009912 | E99: N/C | G99: =IF(F99=0," ","N/C") ->  | H99: =IFERROR(IFERROR(VLOOKUP(D99,Surcharge!A:B,2,FALSE)*F99, VLOOKUP(D99 & "",Surcharge!A:B,2,FALSE)*F99), "") -> 
C100: Parts Manual | D100: 9009916 | E100: N/C | G100: =IF(F100=0," ","N/C") -> 
H101: =IFERROR(IFERROR(VLOOKUP(D101,Surcharge!A:B,2,FALSE)*F101, VLOOKUP(D101 & "",Surcharge!A:B,2,FALSE)*F101), "") -> 
C102: Packaging | F102: =SUM(F103:F104) -> 0 | H102: =IFERROR(IFERROR(VLOOKUP(D102,Surcharge!A:B,2,FALSE)*F102, VLOOKUP(D102 & "",Surcharge!A:B,2,FALSE)*F102), "") -> 
C103: Pad Wrap | E103: N/C | G103: =IF(F103=0," ","N/C") ->  | H103: =IFERROR(IFERROR(VLOOKUP(D103,Surcharge!A:B,2,FALSE)*F103, VLOOKUP(D103 & "",Surcharge!A:B,2,FALSE)*F103), "") -> 
C104: Skid w/Carton, Non-Stackable | D104: 9009900 | E104: 763 | G104: =F104*E104 -> 0 | H104: =IFERROR(IFERROR(VLOOKUP(D104,Surcharge!A:B,2,FALSE)*F104, VLOOKUP(D104 & "",Surcharge!A:B,2,FALSE)*F104), "") -> 
F107: =SUM(#REF!) -> 
E109: =ROUND(SUM(G57:G108), 0) -> 0 | F109: =SUM(E110) -> 0
D110: Machine Subtotal | E110: =ROUND(SUM(G57:G108), 0) -> 0 | F110: =F109 -> 0
B111: Discounts | F111: =SUM(F112) -> 0
F112: =SUM(F113:F116) -> 0
D113: Discount % | F113: =IF(E113 <> "", 1, 0) -> 0 | G113: =IF(F113*(E113*0.01)*E109 < 0, F113*(E113*0.01)*E109, -(F113*(E113*0.01)*E109)) -> 0
D114: Discount $ | F114: =IF(E114 <> "", 1, 0) -> 0 | G114: =IF(F114*E114 < 0, F114*E114, -(F114*E114)) -> 0
D115: Discount $ | F115: =IF(E115 <> "", 1, 0) -> 0 | G115: =IF(F115*E115 < 0, F115*E115, -(F115*E115)) -> 0
D116: Discount $ | F116: =IF(E116 <> "", 1, 0) -> 0 | G116: =IF(F116*E116 < 0, F116*E116, -(F116*E116)) -> 0
D117: Discount Total | E117: =SUM(G113:G116) -> 0 | F117: =SUM(E117) -> 0
F118: =#REF! -> 
C119: Prepaid and Add | D119: Freight | F119: =IF(E119 <> "", 1, 0) -> 0 | G119: =F119*E119 -> 0
C120: Subject to all applicable taxes | D120: Tax | F120: =IF(E120 <> "", 1, 0) -> 0 | G120: =F120*E120 -> 0
F121: =SUM(F122) -> 0
D122: MACHINE TOTAL* | F122: =SUM(G122) -> 0 | G122: =SUM(G57:G120) -> 0 | K122: This goes to "My Documents"
G123: =G122 -> 0
B124: Financing
C126: Is customer interested in financing? | D126: Yes
C128: If not, why?
C131: First Western Equipment Finance - Leasing Calculation Option: | D131: Option 1 | F131: Option 2 | J131: =Financing!A38 -> Rates 2025 - Rev. 5/6/2025
D132: Monthly Payment | E132: Cost Per Day | F132: Monthly Payment | G132: Cost Per Day | J132: =Financing!A39 -> “Blank Payment Amounts Indicate The Financing Option Or Purchase Options Selected Are Not
C133: Purchase Option: | D133: FWEF: $1 Buyout Lease | F133: FWEF: Municipal Lease | J133: =Financing!A40 -> Applicable Or The Machine Total Is Below The Minimum Amount For The Selected Vendor”
C134: 24 Months | D134: 0 | E134: 0 | F134: 0 | G134: 0 | J134: =Financing!A41 -> "Quoted monthly payments are estimates only and are based on a certain level of credit rating.
C135: 30 Months | D135: 0 | E135: 0 | F135: 0 | G135: 0 | J135: =Financing!A42 -> Actual monthly payments may be higher depending on your credit rating."
C136: 36 Months | D136: 0 | E136: 0 | F136: 0 | G136: 0 | J136: =Financing!A43 -> “Financing rates do not include Pre-Paid Service”
C137: 48 Months | D137: 0 | E137: 0 | F137: 0 | G137: 0 | I137: =Financing!A44 -> 0
D139: Benefits of Equipment Financing:
D140: • Spreads out investment over time. | F140: • Keep current with latest technology.
D141: • Preserve capital. | F141: • Service and parts bundling available.
D142: • Low monthly payment. | F142: • Pay for labor savings as you go.
C145: Bundled Offerings | D145: Flexclean – Fair Market Value | F145: Flexclean - $1 Buyout
C146: FlexClean: | D146: 36 Month Term | F146: 36 Month Term | I146: No | J146: AB Brushes
C147: Hours included per Month: | D147: Gold | E147: Silver | F147: Gold | G147: Silver | H147: Check
C148: < 30/mo. (Avg. 1hr./day) | I148: =FlexCleanCalc!$A21 -> “FlexClean monthly rates include payment for both machine and service.”
C149: < 60/mo. (Avg. 2hrs./day)
C150: < 90/mo. (Avg. 3hrs./day)
C151: *This value assumes one service contract regardless of the number of UNITS included in the quote
C154: Bundled Offerings | D154: Flexclean – Fair Market Value | F154: Flexclean - $1 Buyout
C155: FlexClean 2: | D155: 48 Month Term | F155: 48 Month Term
C156: Hours included per Month: | D156: Gold | E156: Silver | F156: Gold | G156: Silver
C157: < 30/mo. (Avg. 1hr./day)
C158: < 60/mo. (Avg. 2hrs./day)
C159: < 90/mo. (Avg. 3hrs./day)
C160: *This value assumes one service contract regardless of the number of UNITS included in the quote
C162: Bundled Offerings | D162: Flexclean – Fair Market Value | F162: Flexclean - $1 Buyout
C163: FlexClean 3: | D163: 60 Month Term | F163: 60 Month Term
C164: Hours included per Month: | D164: Gold | E164: Silver | F164: Gold | G164: Silver
C165: < 30/mo. (Avg. 1hr./day)
C166: < 60/mo. (Avg. 2hrs./day)
C167: < 90/mo. (Avg. 3hrs./day)
C168: *This value assumes one service contract regardless of the number of UNITS included in the quote
B170: TennantTrue
C172: Is customer interested in service program? | D172: Yes | E172: *State/County selection required for TennantTrue service options
C174: If not, why?
C176: Term: | D176: 36 | F176: AB Brushes | G176: No
C177: Monthly machine usage (hrs): | D177: < 30/mo. (Avg. 1hr./day)
C179: TennantTrue: | D179: Gold Contract | F179: Silver Contract
C180: Per Visit | F180: 501
C181: Monthly | D181: 189 | F181: 88
C182: Annually | F182: 1035
C183: Pre-Pay Full Term | D183: 6526 | F183: 3042
C184: Hourly Labor Rate
C185: Site Visit
C187: * Verify customer current pricing prior to quote.
C188: **All rates and fees above reflect service for one (1) unit with the exception of Block of Time service.
C189: *Block of Time is available in 1 Year Term only and is priced as such no matter the term selection on this template.
B192: Servicing
C194: Is customer interested in a service plan? | D194: No
C196: If not, why?
C199: Quote Special Instructions:
C202: =Start_Here!E36 -> Terms and Conditions
C203: =Start_Here!E37 -> Ask your local sales rep for estimated lead times. Verify when placing order
C204: =Start_Here!E38 -> All orders subject to acceptance by Tennant Sales and Service Company, Minneapolis, Minnesota
C205: =Start_Here!E39 -> Prices subject to change without notice.
C206: =Start_Here!E40 -> Terms: Net 30 days. Subject to any applicable taxes.
C207: =Start_Here!E41 -> Freight: Machines and accessory orders delivered FOB shipping point Frt PPD & Add
C208: =Start_Here!E42 -> Parts, supplies, detergents and floor treating material orders delivered FOB
C209: =Start_Here!E43 -> shipping point Frt PPD
C210: =Start_Here!E44 -> All orders are subject to Tennant’s General Terms and Conditions available at http://www.tennantco.com/terms.
C211: =Start_Here!E45 -> Printed General Terms and Conditions are also available upon request.
C212: =Start_Here!E46 -> 0
E214: Quote Date : | G214: =Letter!$A$25 -> 2020-09-17
A215: Order Placement Information: To place your order, fill in PO# and customer signatures,
A216: call or fax to the numbers listed below. Customer Purchase Order is required.
A217: If information is missing, orders will be entered and held until all information is received.
C218: Customer Number | E218: Cust Grp 3
C219: =Start_Here!$C$25 -> 0 | E219: =Start_Here!$C$29 -> 0
C220: =Start_Here!$B$18 -> Who Owns the Machine? (Sold-To Info) (Please Verify)
A221: Company | C221: =Start_Here!$C$19 -> Company Name
A222: Address | C222: =Start_Here!$C$20 -> Address
C223: =Start_Here!$C$21 -> City, State Zip
A224: Name | C224: =Start_Here!$C$22 -> Contact Name
A225: Phone | C225: =Start_Here!$C$23 -> Contact Phone
C226: =Start_Here!$B$11 -> Where is the Machine Being Shipped? (Ship-To Info) (Please Verify)
A227: Company | C227: =Start_Here!$C$12 -> Company Name
A228: Address | C228: =Start_Here!$C$13 -> Address
C229: =Start_Here!$C$14 -> City, State Zip
A230: Name | C230: =Start_Here!$C$15 -> Contact Name
A231: Phone | C231: =Start_Here!$C$16 -> Contact Phone
C232: =Start_Here!$B$31 -> Shipping / Carrier Instructions: | E232: Order Special Instructions:
C233: =Start_Here!$C$32 -> 0
C235: Customer Purchase Order No.
C236: (please attach copy)
C239: Tax Exempt | E239: Yes
E240: No
C241: If Yes, attach a copy of your exemption certificate.
C243: Requested Delivery Date
C244: =Start_Here!$C$28 -> 0
C246: =Start_Here!$C$26 -> 0 | E246: =Start_Here!$C$27 -> 0
B247: 0 | C247: Authorized Buyer (please print) | E247: Phone Number
B250: 0 | C250: Authorized Buyer Signature
C252: =Start_Here!$C$41 -> Rep Name
C253: Tennant Representative
A255: Specialized Maintenance Equipment
A256: =Start_Here!$C$48 -> TENNANT · 10400 Clean Street · Eden Prairie, MN 55344 ·
A257: =Start_Here!$C$49 -> PHONE:800-553-8033 · FAX:763-513-2116
... 12 more rows

Sheet T16_Standard_Config
A1: T16_Standard_Config | C1: =Start_Here!$C19 -> Company Name
A2: =SUM(G122) -> 0 | C2: =Start_Here!$C20 -> Address
C3: =Start_Here!$C21 -> City, State Zip
C4: =Start_Here!$C22 -> Contact Name
C5: =Start_Here!$C$41 -> Rep Name
C6: =Start_Here!$C$37 -> Tennant Sales and Service Company
C7: =Start_Here!$C$38 -> 10400 Clean Street
C8: =Start_Here!$C$39 -> Eden Prairie, MN 55344
C9: =Start_Here!$C$43 -> 800-553-8033 | E9: Quote Date : | G9: =Letter!$A$25 -> 2020-09-17
C11: =Help!C2 -> US Date Rev - 5/6/2025
C12: BUILT-IN “TENNANT VALUE” INCLUDES:
C14: 36V, 235 AH Battery Pack | E14: Removable Tool Caddy and Large Cargo Net Storage Area
C15: 20 Amp, 115 Volt 60 Hz Charger | E15: Standard Cylindrical or Disk Scrubbing Brushes (Select One)
C16: Two Speed Electronic Overdrive Transmission with | E16: Hygienic Non-Corrosive Duramer™ Solution and Recovery Tanks
C17: AC Propel Motor | E17: 50 gal (190 L) Solution Tank
C18: Disk or Cylindrcial Scrubbing - 36 in (910 mm) path | E18: 60 gal (225 L) Recovery Tank
C19: Steering Wheel Mounted, Touch-N-GO Control Module | E19: 10 gal (38 L) Demisting Chamber
C20: 1-Step™ One-Button Scrub Operation | E20: Parabolic Rear Squeegee
C21: 3 Down-Pressure Settings | E21: SmartRelease™ Breakaway System
C22: Steering Wheel Mounted Horn | E22: Linatex Squeegee Blades
C23: On Board Diagnostics | E23: Cast Aluminum Rear Squeegee Frame
C24: Water Shutoff Thumb Switch | E24: No Tool Squeegee and Brush Change
C25: Automatic: | E25: In-Line Vacuum Fan Air Filter
C26: Parking Brake | E26: High Visibility Maintenance Touch Points
C27: Squeegee Lift | E27: Underwriters Laboratory (UL®) "E" Certification
C28: Water Shutoff | E28: Cup Holder
C29: Brush Shutoff When Idle | E29: Operator Manual and Video
C30: Brush Shutoff at 80% Battery Discharge | E30: Front and Rear Non-Marking Tires
C31: ec-H2OTM Cleaning Solution Includes:
C32: Electrically Converted Water Technology System
C33: Two Scrubbing Modes: ec-H2OTM& Conventional Scrubbing
C35: TENNANT COMPANY WARRANTY
C36: 36 MONTHS OR 2000 HOURS - PARTS
C37: 24 MONTHS - LABOR
C38: 6 MONTHS - TRAVEL
C39: 10 YEARS ON DURAMERTM TANKS
E42: Quote Request Information
G43: Fax (quote only)
G44: Mail (quote,lit, specs)
G45: Fax + Mail
E47: Primary Use
G48: Inside
G49: Outside
C51: Description | D51: Reference Number | E51: US Price Each | F51: Qty | G51: Extended Price
B52: Standard Configurations (Note 2) | H52: =IFERROR(IFERROR(VLOOKUP(D52,Surcharge!A:B,2,FALSE)*F52, VLOOKUP(D52 & "",Surcharge!A:B,2,FALSE)*F52), "") -> 
F53: =SUM(F54:F71) -> 0
B54: Quick Ship | C54: T16 Rider Scrubber, Cylindrical, Wet 360 AH batteries, Off Board Charger 36VDC 21A 85-265VAC 1PH 45/65HZ, UL Type E, Side Scrub, Light Kit, Deluxe seat w/armrest, Polypropylene main brush, Polypropylene side brush, English Operator manual, Parts Manual, Pad Wrap. | D54: T16-0055 | E54: 45062 | G54: =F54*E54 -> 0
C55: The above listed configuration is a stock unit – Configuration cannot be altered, changed or added to. | F55: =SUM(F54) -> 0
C58: T16 Rider - Disk Scrubber, Conventional Cleaning Technology, Wet 360AH C/20, HydroLink® Battery Watering System, On-Board 20A 85-130V AC 50/60Hz 1Ph Charger, UL® Type E, Standard Seat | D58: T16-1000D | E58: 40500 | G58: =F58*E58 -> 0
C59: Choice of HD Front Bumper, Overhead Guard, Fire Extinguisher, Brushes, Operator Manual, Service Manual, and Shipment Packaging available. | F59: =SUM(F58) -> 0
C61: T16 Rider - Cylindrical Scrubber, Conventional Cleaning Technology, Wet 240AH C/20 Battery, Off-Board 21A 85-265V AC 50/60Hz 1Ph Charger, UL® Type E, Standard Seat | D61: T16-1001C | E61: 37638 | G61: =F61*E61 -> 0
C62: Choice of HD Front Bumper, Overhead Guard, Fire Extinguisher, Brushes, Operator Manual, Service Manual, and Shipment Packaging available. | F62: =SUM(F61) -> 0
C64: T16 Rider - Cylindrical Scrubber, ec-H20 ®Cleaning Technology, Wet 360AH C/20 Battery, Off-Board 21A 85-265V AC 50/60Hz 1Ph Charger, UL® Type E, Safety Light Package, Spray Nozzle with Hose, Heavy Duty Squeegee Protection, Deluxe Seat w/Armrests | D64: T16-2000C | E64: 46878 | G64: =F64*E64 -> 0
C65: Choice of HD Front Bumper, Overhead Guard, Fire Extinguisher, Brushes, Operator Manual, Service Manual, and Shipment Packaging available. | F65: =SUM(F64) -> 0 | H65: =IFERROR(IFERROR(VLOOKUP(D65,Surcharge!A:B,2,FALSE)*F65, VLOOKUP(D65 & "",Surcharge!A:B,2,FALSE)*F65), "") -> 
C67: T16 Rider - Cylindrical Scrubber, Conventional Cleaning Technology, Wet 360AH C/20 Battery, Manual Battery Watering, On-Board 20A 85-130V AC 50/60Hz 1ph Charger, UL® Type E, Safety Light Package (LED Headlight and AV BU Alarm), Productivity Package (Scrubbing Side Brush, Spray Nozzle with Hose and Vacuum Wand), Heavy Duty Squeegee Protection | D67: T16-2003C | E67: 47975 | G67: =F67*E67 -> 0
C68: Choice of HD Front Bumper, Overhead Guard, Fire Extinguisher, Brushes, Operator Manual, Service Manual, and Shipment Packaging available. | F68: =SUM(F67) -> 0
C70: T16 Rider - Cylindrical Scrubber, ec-H20 ®Cleaning Technology, Wet 360AH C/20 Battery, On-Board 20A 85-130V AC 50/60Hz 1ph Charger, UL® Type E, Safety Light Package, Scrubbing Side Brush, Spray Nozzle with Hose, Heavy Duty Squeegee Protection, Deluxe Seat w/Armrest | D70: T16-3000C | E70: 52474 | G70: =F70*E70 -> 0
C71: Choice of HD Front Bumper, Overhead Guard, Fire Extinguisher, Brushes, Operator Manual, Service Manual, and Shipment Packaging available. | F71: =SUM(F70) -> 0
B74: Brushes and Pads | D74: Reference Number | F74: =SUM(F75,F81,F85) -> 0 | H74: =IFERROR(IFERROR(VLOOKUP(D74,Surcharge!A:B,2,FALSE)*F74, VLOOKUP(D74 & "",Surcharge!A:B,2,FALSE)*F74), "") -> 
C75: Disk Scrubbing Brushes/Pads (2 Required) | F75: =SUM(F76:F79) -> 0 | H75: =IFERROR(IFERROR(VLOOKUP(D75,Surcharge!A:B,2,FALSE)*F75, VLOOKUP(D75 & "",Surcharge!A:B,2,FALSE)*F75), "") -> 
C76: Polypropylene Brush | D76: 1220188 | E76: N/C | G76: =IF(F76=0," ","N/C") ->  | H76: =IFERROR(IFERROR(VLOOKUP(D76,Surcharge!A:B,2,FALSE)*F76, VLOOKUP(D76 & "",Surcharge!A:B,2,FALSE)*F76), "") -> 
C77: Super Abrasive Brush | D77: 1220190 | E77: 212 | G77: =F77*E77 -> 0 | H77: =IFERROR(IFERROR(VLOOKUP(D77,Surcharge!A:B,2,FALSE)*F77, VLOOKUP(D77 & "",Surcharge!A:B,2,FALSE)*F77), "") -> 
H78: =IFERROR(IFERROR(VLOOKUP(D78,Surcharge!A:B,2,FALSE)*F78, VLOOKUP(D78 & "",Surcharge!A:B,2,FALSE)*F78), "") -> 
C79: Pad Driver | D79: 1220200 | E79: N/C | G79: =IF(F79=0," ","N/C") ->  | H79: =IFERROR(IFERROR(VLOOKUP(D79,Surcharge!A:B,2,FALSE)*F79, VLOOKUP(D79 & "",Surcharge!A:B,2,FALSE)*F79), "") -> 
H80: =IFERROR(IFERROR(VLOOKUP(D80,Surcharge!A:B,2,FALSE)*F80, VLOOKUP(D80 & "",Surcharge!A:B,2,FALSE)*F80), "") -> 
C81: Cylindrical Scrubbing Brushes (2 Required) | F81: =SUM(F82:F83) -> 0 | H81: =IFERROR(IFERROR(VLOOKUP(D81,Surcharge!A:B,2,FALSE)*F81, VLOOKUP(D81 & "",Surcharge!A:B,2,FALSE)*F81), "") -> 
C82: Polypropylene Brush | D82: 1053893 | E82: N/C | G82: =IF(F82=0," ","N/C") ->  | H82: =IFERROR(IFERROR(VLOOKUP(D82,Surcharge!A:B,2,FALSE)*F82, VLOOKUP(D82 & "",Surcharge!A:B,2,FALSE)*F82), "") -> 
C83: Super Abrasive Brush | D83: 1062578 | E83: 212 | G83: =F83*E83 -> 0 | H83: =IFERROR(IFERROR(VLOOKUP(D83,Surcharge!A:B,2,FALSE)*F83, VLOOKUP(D83 & "",Surcharge!A:B,2,FALSE)*F83), "") -> 
H84: =IFERROR(IFERROR(VLOOKUP(D84,Surcharge!A:B,2,FALSE)*F84, VLOOKUP(D84 & "",Surcharge!A:B,2,FALSE)*F84), "") -> 
C85: Disk Scrubbing Brush/Pad and Sweeping Brush for Side Brush Option (1 Required) | F85: =SUM(F86:F89) -> 0 | H85: =IFERROR(IFERROR(VLOOKUP(D85,Surcharge!A:B,2,FALSE)*F85, VLOOKUP(D85 & "",Surcharge!A:B,2,FALSE)*F85), "") -> 
C86: Polypropylene Scrubbing Brush | D86: 1220240 | E86: N/C | G86: =IF(F86=0," ","N/C") ->  | H86: =IFERROR(IFERROR(VLOOKUP(D86,Surcharge!A:B,2,FALSE)*F86, VLOOKUP(D86 & "",Surcharge!A:B,2,FALSE)*F86), "") -> 
C87: Super Abrasive Brush | D87: 1220232 | E87: 212 | G87: =F87*E87 -> 0 | H87: =IFERROR(IFERROR(VLOOKUP(D87,Surcharge!A:B,2,FALSE)*F87, VLOOKUP(D87 & "",Surcharge!A:B,2,FALSE)*F87), "") -> 
H88: =IFERROR(IFERROR(VLOOKUP(D88,Surcharge!A:B,2,FALSE)*F88, VLOOKUP(D88 & "",Surcharge!A:B,2,FALSE)*F88), "") -> 
C89: Pad Driver | D89: 1220243 | E89: N/C | G89: =IF(F89=0," ","N/C") ->  | H89: =IFERROR(IFERROR(VLOOKUP(D89,Surcharge!A:B,2,FALSE)*F89, VLOOKUP(D89 & "",Surcharge!A:B,2,FALSE)*F89), "") -> 
B91: Machine Protection & Safety | F91: =SUM(F92:F96) -> 0
C92: Heavy Duty Front Bumper (Note 21) | D92: 9006922 | E92: 1007 | G92: =F92*E92 -> 0
C93: Overhead Guard (order Heavy Duty Front Bumper also) (Note 22) | D93: 9008018 | E93: 2179 | G93: =F93*E93 -> 0
C94: Fire Extinguisher | D94: 9008079 | E94: 368 | G94: =F94*E94 -> 0
H95: =IFERROR(IFERROR(VLOOKUP(D95,Surcharge!A:B,2,FALSE)*F95, VLOOKUP(D95 & "",Surcharge!A:B,2,FALSE)*F95), "") -> 
B96: Support | D96: Reference Number | F96: =SUM(F97:F101) -> 0 | H96: =IFERROR(IFERROR(VLOOKUP(D96,Surcharge!A:B,2,FALSE)*F96, VLOOKUP(D96 & "",Surcharge!A:B,2,FALSE)*F96), "") -> 
C97: Operator Manual (English) | D97: 9008142 | E97: N/C | G97: =IF(F97=0," ","N/C") ->  | H97: =IFERROR(IFERROR(VLOOKUP(D97,Surcharge!A:B,2,FALSE)*F97, VLOOKUP(D97 & "",Surcharge!A:B,2,FALSE)*F97), "") -> 
C98: Operator Manual (Spanish) | D98: 9008143 | E98: N/C | G98: =IF(F98=0," ","N/C") ->  | H98: =IFERROR(IFERROR(VLOOKUP(D98,Surcharge!A:B,2,FALSE)*F98, VLOOKUP(D98 & "",Surcharge!A:B,2,FALSE)*F98), "") -> 
C99: Operator Manual (French) | D99: 9008144 | E99: N/C | G99: =IF(F99=0," ","N/C") ->  | H99: =IFERROR(IFERROR(VLOOKUP(D99,Surcharge!A:B,2,FALSE)*F99, VLOOKUP(D99 & "",Surcharge!A:B,2,FALSE)*F99), "") -> 
H100: =IFERROR(IFERROR(VLOOKUP(D100,Surcharge!A:B,2,FALSE)*F100, VLOOKUP(D100 & "",Surcharge!A:B,2,FALSE)*F100), "") -> 
C101: Packaging | F101: =SUM(F102:F105) -> 0 | H101: =IFERROR(IFERROR(VLOOKUP(D101,Surcharge!A:B,2,FALSE)*F101, VLOOKUP(D101 & "",Surcharge!A:B,2,FALSE)*F101), "") -> 
